'DEPARTMENT_FAMILY,ENTITY,PAYMENT_DATE,EXPENSE_TYPE,EXPENSE_AREA,SUPPLIER,TRANSACTION_NUMBER,AMOUNT,DESCRIPTION,
Ministry of Justice,LAA,07/12/2016,221000-Property Rent and Rates,VA396-Property Costs,BILFINGER GVA,2007639,"102,199.20",Property Costs,
Ministry of Justice,LAA,23/12/2016,610400-Debtors <1 year - Prepayments & Accrued Income,VA396-Property Costs,BIRMINGHAM CITY COUNCIL,2007892,"8,788.10",Property Costs,
Ministry of Justice,LAA,23/12/2016,610400-Debtors <1 year - Prepayments & Accrued Income,VA396-Property Costs,BRIGHTON & HOVE CITY COUNCIL,2007893,"14,026.21",Property Costs,
Ministry of Justice,LAA,23/12/2016,610400-Debtors <1 year - Prepayments & Accrued Income,VA396-Property Costs,BRISTOL CITY COUNCIL,2007894,"13,157.33",Property Costs,
Ministry of Justice,LAA,07/12/2016,265000-IT & Telecommunications,VA403-IDP - Infrastructure,CAPGEMINI UK PLC,2007642,"106,000.00",IT Costs,
Ministry of Justice,LAA,28/12/2016,265000-IT & Telecommunications,VA403-IDP - Infrastructure,CAPGEMINI UK PLC,2007916,"106,000.00",IT Costs,
Ministry of Justice,LAA,07/12/2016,265000-IT & Telecommunications,VA403-IDP - Infrastructure,CAPGEMINI UK PLC,2007642,"106,000.00",IT Costs,
Ministry of Justice,LAA,23/12/2016,610400-Debtors <1 year - Prepayments & Accrued Income,VA396-Property Costs,CARDIFF COUNTY COUNCIL,2007895,"3,204.39",Property Costs,
Ministry of Justice,LAA,21/12/2016,221000-Property Rent and Rates,VA396-Property Costs,CBRE LTD,2007806,"71,846.40",Property Costs,
Ministry of Justice,LAA,21/12/2016,222002-Other Property Costs,VA396-Property Costs,CBRE LTD,2007806,"9,356.58",Property Costs,
Ministry of Justice,LAA,28/12/2016,223000-Other Expenditure,VA701-Central Funds,CLARION INTERPRETING LTD,2007919,"22,295.03",Central funds costs,
Ministry of Justice,LAA,21/12/2016,222002-Other Property Costs,VA396-Property Costs,DTZ DEBENHAM TIE LEUNG,2007814,"62,500.00",Property Costs,
Ministry of Justice,LAA,21/12/2016,221000-Property Rent and Rates,VA396-Property Costs,DTZ DEBENHAM TIE LEUNG,2007814,"56,000.00",Property Costs,
Ministry of Justice,LAA,28/12/2016,264000-Consultancy,VA192-Head of Serv Dev&Central Com,ERNST & YOUNG LLP,2007930,"31,879.20",Development costs,
Ministry of Justice,LAA,08/12/2016,212001-Agency staff,VA403-IDP - Infrastructure,HOME OFFICE IT,2007698,"44,118.23",IT Costs,
Ministry of Justice,LAA,08/12/2016,212001-Agency staff,VA403-IDP - Infrastructure,HOME OFFICE IT,2007700,"31,480.91",IT Costs,
Ministry of Justice,LAA,21/12/2016,221000-Property Rent and Rates,VA396-Property Costs,JONES LANG LASALLE LTD,2007842,"94,040.10",Property Costs,
Ministry of Justice,LAA,21/12/2016,222002-Other Property Costs,VA396-Property Costs,JONES LANG LASALLE LTD,2007843,"59,127.77",Property Costs,
Ministry of Justice,LAA,21/12/2016,221000-Property Rent and Rates,VA396-Property Costs,KNIGHT FRANK LLP,2007844,"23,274.00",Property Costs,
Ministry of Justice,LAA,21/12/2016,221000-Property Rent and Rates,VA396-Property Costs,KNIGHT FRANK LLP,2007844,"23,145.00",Property Costs,
Ministry of Justice,LAA,21/12/2016,222002-Other Property Costs,VA396-Property Costs,KNIGHT FRANK LLP,2007844,"13,943.99",Property Costs,
Ministry of Justice,LAA,21/12/2016,222002-Other Property Costs,VA396-Property Costs,KNIGHT FRANK LLP,2007844,"13,869.49",Property Costs,
Ministry of Justice,LAA,23/12/2016,610400-Debtors <1 year - Prepayments & Accrued Income,VA396-Property Costs,LEEDS CITY COUNCIL,2007899,"11,270.62",Property Costs,
Ministry of Justice,LAA,14/12/2016,221000-Property Rent and Rates,VA396-Property Costs,LONDON & SCOTTISH PROPERTY MANAGEMENT LTD,2007752,"57,600.00",Property Costs,
Ministry of Justice,LAA,14/12/2016,222002-Other Property Costs,VA396-Property Costs,LONDON & SCOTTISH PROPERTY MANAGEMENT LTD,2007753,"33,796.40",Property Costs,
Ministry of Justice,LAA,23/12/2016,610400-Debtors <1 year - Prepayments & Accrued Income,VA396-Property Costs,NOTTINGHAM CITY COUNCIL,2007900,"6,007.69",Property Costs,
Ministry of Justice,LAA,28/12/2016,512000-Intangible GBV - Additions,VA403-IDP - Infrastructure,ORACLE CORPORATION U K LTD,2007958,"137,150.00",IT Costs,
Ministry of Justice,LAA,28/12/2016,512000-Intangible GBV - Additions,VA403-IDP - Infrastructure,ORACLE CORPORATION U K LTD,2007958,"28,664.35",IT Costs,
Ministry of Justice,LAA,28/12/2016,512000-Intangible GBV - Additions,VA403-IDP - Infrastructure,ORACLE CORPORATION U K LTD,2007958,"19,201.00",IT Costs,
Ministry of Justice,LAA,28/12/2016,512000-Intangible GBV - Additions,VA403-IDP - Infrastructure,ORACLE CORPORATION U K LTD,2007958,"4,205.02",IT Costs,
Ministry of Justice,LAA,21/12/2016,221000-Property Rent and Rates,VA396-Property Costs,ORBIT PROPERTY MANAGEMENT BIRMINGHAM LTD,2007863,"24,718.50",Property Costs,
Ministry of Justice,LAA,21/12/2016,221000-Property Rent and Rates,VA396-Property Costs,ORBIT PROPERTY MANAGEMENT BIRMINGHAM LTD,2007863,"8,566.16",Property Costs,
Ministry of Justice,LAA,21/12/2016,265000-IT & Telecommunications,VA294-ISD,REDCENTRIC SOLUTIONS LTD,2007868,"69,736.60",IT Costs,
Ministry of Justice,LAA,14/12/2016,223000-Other Expenditure,VA395-National Courts Team,ROSSENDALES LTD,2007765,"78,765.80",Debt Enforcement Costs,
Ministry of Justice,LAA,14/12/2016,223000-Other Expenditure,VA395-National Courts Team,ROSSENDALES LTD,2007765,"35,601.50",Debt Enforcement Costs,
Ministry of Justice,LAA,14/12/2016,223000-Other Expenditure,VA395-National Courts Team,ROSSENDALES LTD,2007765,"31,444.00",Debt Enforcement Costs,
Ministry of Justice,LAA,14/12/2016,223000-Other Expenditure,VA395-National Courts Team,ROSSENDALES LTD,2007765,"7,277.57",Debt Enforcement Costs,
Ministry of Justice,LAA,23/12/2016,610400-Debtors <1 year - Prepayments & Accrued Income,VA396-Property Costs,SOUTH TYNESIDE COUNCIL,2007902,"12,065.02",Property Costs,
Ministry of Justice,LAA,06/12/2016,222001-Maintenance,VA501-Centralised Costs,THE PLANNING INSPECTORATE,2007626,"32,622.84",Centralised costs,
Ministry of Justice,LAA,14/12/2016,223000-Other Expenditure,VA701-Central Funds,THEBIGWORD INTERPRETING SERVICES LTD,2007776,"610,594.04",Central funds costs,
Ministry of Justice,LAA,21/12/2016,223000-Other Expenditure,VA701-Central Funds,THEBIGWORD INTERPRETING SERVICES LTD,2007882,"421,279.87",Central funds costs,
Ministry of Justice,LAA,28/12/2016,532000-Tangible GBV - Additions,VA403-IDP - Infrastructure,TRUSTMARQUE SOLUTIONS LTD,2007971,"35,864.16",IT Costs,
MINISTRY OF JUSTICE,LEGAL AID AGENCY,14/12/2016,Higher Crime,LEGAL AID FUND,9 JOCKEYS FIELDS LTD,1113884:146003232,"95,707.01",Legal Aid Payment Higher Crime,
MINISTRY OF JUSTICE,LEGAL AID AGENCY,21/12/2016,Civil Representation,LEGAL AID FUND,A & N CARE SOLICITORS,1118481:146064158,"30,552.02",Legal Aid Payment Civil Representation,
MINISTRY OF JUSTICE,LEGAL AID AGENCY,19/12/2016,Lower Crime,LEGAL AID FUND,A A MIRSONS SOLICITORS LTD-IN LIQUIDATION,1118184:143457076,"-25,185.42",Legal Aid Payment Lower Crime,
MINISTRY OF JUSTICE,LEGAL AID AGENCY,08/12/2016,Legal Help,LEGAL AID FUND,A J O SOLICITORS,1113756:145385438,"30,253.00",Legal Aid Payment Legal Help,
MINISTRY OF JUSTICE,LEGAL AID AGENCY,14/12/2016,Higher Crime,LEGAL AID FUND,ABBEY SOLICITORS,1114797:146002385,"33,489.11",Legal Aid Payment Higher Crime,
MINISTRY OF JUSTICE,LEGAL AID AGENCY,21/12/2016,Higher Crime,LEGAL AID FUND,ABBEY SOLICITORS,1122124:146059864,"49,729.07",Legal Aid Payment Higher Crime,
MINISTRY OF JUSTICE,LEGAL AID AGENCY,21/12/2016,Higher Crime,LEGAL AID FUND,ABBEY SOLICITORS,1122124:146069683,"127,029.30",Legal Aid Payment Higher Crime,
MINISTRY OF JUSTICE,LEGAL AID AGENCY,28/12/2016,Legal Help,LEGAL AID FUND,ABBOTSTONE LAW LLP,1125914:146121712,"55,115.00",Legal Aid Payment Legal Help,
MINISTRY OF JUSTICE,LEGAL AID AGENCY,21/12/2016,Higher Crime,LEGAL AID FUND,ABR SOLICITORS,1122088:146060969,"30,696.68",Legal Aid Payment Higher Crime,
MINISTRY OF JUSTICE,LEGAL AID AGENCY,28/12/2016,Lower Crime,LEGAL AID FUND,ABV SOLICITORS,1123664:146121876,"80,800.00",Legal Aid Payment Lower Crime,
MINISTRY OF JUSTICE,LEGAL AID AGENCY,28/12/2016,Lower Crime,LEGAL AID FUND,ACA LAW LTD,1123754:146122516,"44,103.00",Legal Aid Payment Lower Crime,
MINISTRY OF JUSTICE,LEGAL AID AGENCY,28/12/2016,Civil Representation,LEGAL AID FUND,ACCESS LAW LLP,1123667:146107504,"36,577.70",Legal Aid Payment Civil Representation,
MINISTRY OF JUSTICE,LEGAL AID AGENCY,28/12/2016,Higher Crime,LEGAL AID FUND,ADAM G MORGAN,1125048:146104220,"30,213.98",Legal Aid Payment Higher Crime,
MINISTRY OF JUSTICE,LEGAL AID AGENCY,14/12/2016,Higher Crime,LEGAL AID FUND,ADAM P P WISEMAN,1114436:145984230,"26,492.64",Legal Aid Payment Higher Crime,
MINISTRY OF JUSTICE,LEGAL AID AGENCY,07/12/2016,Higher Crime,LEGAL AID FUND,ADRIAN M WATERMAN QC,1110666:145952427,"43,155.91",Legal Aid Payment Higher Crime,
MINISTRY OF JUSTICE,LEGAL AID AGENCY,28/12/2016,Higher Crime,LEGAL AID FUND,ALAN P KENT QC,1123312:146112354,"56,499.80",Legal Aid Payment Higher Crime,
MINISTRY OF JUSTICE,LEGAL AID AGENCY,28/12/2016,Legal Help,LEGAL AID FUND,ALASTAIR BATEMAN & CO,1123784:146121005,"39,567.00",Legal Aid Payment Legal Help,
MINISTRY OF JUSTICE,LEGAL AID AGENCY,28/12/2016,Lower Crime,LEGAL AID FUND,ALBIN & CO LTD,1126785:146122144,"56,600.00",Legal Aid Payment Lower Crime,
MINISTRY OF JUSTICE,LEGAL AID AGENCY,28/12/2016,Lower Crime,LEGAL AID FUND,ALDERSON LAW LLP,1122852:146122263,"30,800.00",Legal Aid Payment Lower Crime,
MINISTRY OF JUSTICE,LEGAL AID AGENCY,14/12/2016,Higher Crime,LEGAL AID FUND,ALDRIDGE BROWNLEE SOLICITORS LLP,1115173:145993393,"63,342.86",Legal Aid Payment Higher Crime,
MINISTRY OF JUSTICE,LEGAL AID AGENCY,28/12/2016,Lower Crime,LEGAL AID FUND,ALEXANDER BENNETT,1124378:146122269,"27,000.00",Legal Aid Payment Lower Crime,
MINISTRY OF JUSTICE,LEGAL AID AGENCY,14/12/2016,Higher Crime,LEGAL AID FUND,ALEXANDER JOHNSON,1117916:146011424,"32,685.55",Legal Aid Payment Higher Crime,
MINISTRY OF JUSTICE,LEGAL AID AGENCY,28/12/2016,Higher Crime,LEGAL AID FUND,ALEXANDER JOHNSON,1124108:146103278,"105,857.75",Legal Aid Payment Higher Crime,
MINISTRY OF JUSTICE,LEGAL AID AGENCY,21/12/2016,Higher Crime,LEGAL AID FUND,ALEXANDRA HEALY QC,1120593:146050998,"74,677.04",Legal Aid Payment Higher Crime,
MINISTRY OF JUSTICE,LEGAL AID AGENCY,14/12/2016,Higher Crime,LEGAL AID FUND,ALI & CO,1114845:146030996,"32,029.12",Legal Aid Payment Higher Crime,
MINISTRY OF JUSTICE,LEGAL AID AGENCY,21/12/2016,Higher Crime,LEGAL AID FUND,ALI R RAFATI,1121535:146051033,"31,481.09",Legal Aid Payment Higher Crime,
MINISTRY OF JUSTICE,LEGAL AID AGENCY,14/12/2016,Civil Representation,LEGAL AID FUND,ALISON BALL QC,1115969:145946702,"38,952.00",Legal Aid Payment Civil Representation,
MINISTRY OF JUSTICE,LEGAL AID AGENCY,22/12/2016,Lower Crime,LEGAL AID FUND,ALISTAIR HARPER & CO,1122637:146092222,"-37,610.44",Legal Aid Payment Lower Crime,
MINISTRY OF JUSTICE,LEGAL AID AGENCY,28/12/2016,Lower Crime,LEGAL AID FUND,ALLEN HOOLE SOLICITORS,1123571:146122174,"25,000.00",Legal Aid Payment Lower Crime,
MINISTRY OF JUSTICE,LEGAL AID AGENCY,28/12/2016,Lower Crime,LEGAL AID FUND,ALLEN HOOLE SOLICITORS,1123978:146122163,"43,600.00",Legal Aid Payment Lower Crime,
MINISTRY OF JUSTICE,LEGAL AID AGENCY,16/12/2016,Higher Crime,LEGAL AID FUND,ALTAF SOLICITORS LTD,1118171:145975877,"-38,767.91",Legal Aid Payment Higher Crime,
MINISTRY OF JUSTICE,LEGAL AID AGENCY,21/12/2016,Higher Crime,LEGAL AID FUND,AMANDA JOHNSON,1120193:146059961,"34,053.94",Legal Aid Payment Higher Crime,
MINISTRY OF JUSTICE,LEGAL AID AGENCY,14/12/2016,Higher Crime,LEGAL AID FUND,ANDREW J O'BYRNE QC,1114623:145998474,"48,360.00",Legal Aid Payment Higher Crime,
MINISTRY OF JUSTICE,LEGAL AID AGENCY,07/12/2016,Higher Crime,LEGAL AID FUND,ANDREW THOMAS QC,1110121:145934419,"36,752.52",Legal Aid Payment Higher Crime,
MINISTRY OF JUSTICE,LEGAL AID AGENCY,21/12/2016,Higher Crime,LEGAL AID FUND,ANESTA G WEEKES QC,1120353:146068789,"61,454.66",Legal Aid Payment Higher Crime,
MINISTRY OF JUSTICE,LEGAL AID AGENCY,14/12/2016,Higher Crime,LEGAL AID FUND,ANGUS H MACDONALD,1115533:146037580,"37,200.00",Legal Aid Payment Higher Crime,
MINISTRY OF JUSTICE,LEGAL AID AGENCY,28/12/2016,Civil Representation,LEGAL AID FUND,ANNA L MCKENNA,1123318:145651346,"46,440.00",Legal Aid Payment Civil Representation,
MINISTRY OF JUSTICE,LEGAL AID AGENCY,28/12/2016,Civil Representation,LEGAL AID FUND,ANNA L MCKENNA,1123318:145695321,"-34,245.06",Legal Aid Payment Civil Representation,
MINISTRY OF JUSTICE,LEGAL AID AGENCY,21/12/2016,Higher Crime,LEGAL AID FUND,ANTHONY C BERRY QC,1119169:146069005,"48,342.67",Legal Aid Payment Higher Crime,
MINISTRY OF JUSTICE,LEGAL AID AGENCY,14/12/2016,Higher Crime,LEGAL AID FUND,ANTHONY D E METZER QC,1115906:146037791,"73,920.00",Legal Aid Payment Higher Crime,
MINISTRY OF JUSTICE,LEGAL AID AGENCY,28/12/2016,Legal Help,LEGAL AID FUND,APFEL BELL & CO SOLICITORS,1126161:146121437,"33,784.00",Legal Aid Payment Legal Help,
MINISTRY OF JUSTICE,LEGAL AID AGENCY,28/12/2016,Legal Help,LEGAL AID FUND,APPLEMAN LEGAL,1125908:146121717,"55,341.00",Legal Aid Payment Legal Help,
MINISTRY OF JUSTICE,LEGAL AID AGENCY,14/12/2016,Higher Crime,LEGAL AID FUND,ASHCOTT SOLICITORS LTD,1114707:146002944,"35,978.26",Legal Aid Payment Higher Crime,
MINISTRY OF JUSTICE,LEGAL AID AGENCY,14/12/2016,Higher Crime,LEGAL AID FUND,ASHMANS SOLICITORS LTD,1114736:146003412,"50,313.98",Legal Aid Payment Higher Crime,
MINISTRY OF JUSTICE,LEGAL AID AGENCY,21/12/2016,Higher Crime,LEGAL AID FUND,ASHMANS SOLICITORS LTD,1119114:146042325,"41,362.55",Legal Aid Payment Higher Crime,
MINISTRY OF JUSTICE,LEGAL AID AGENCY,21/12/2016,Higher Crime,LEGAL AID FUND,ASHMANS SOLICITORS LTD,1119114:146051359,"89,975.11",Legal Aid Payment Higher Crime,
MINISTRY OF JUSTICE,LEGAL AID AGENCY,14/12/2016,Higher Crime,LEGAL AID FUND,ASKEWS LEGAL LLP,1114671:145984684,"59,455.32",Legal Aid Payment Higher Crime,
MINISTRY OF JUSTICE,LEGAL AID AGENCY,14/12/2016,Higher Crime,LEGAL AID FUND,ASKEWS LEGAL LLP,1114671:146003219,"35,842.82",Legal Aid Payment Higher Crime,
MINISTRY OF JUSTICE,LEGAL AID AGENCY,28/12/2016,Higher Crime,LEGAL AID FUND,ASKEWS LEGAL LLP,1125164:146095612,"30,519.79",Legal Aid Payment Higher Crime,
MINISTRY OF JUSTICE,LEGAL AID AGENCY,07/12/2016,Civil Representation,LEGAL AID FUND,ATKINS HOPE SOLICITORS LIMITED,1113509:139436166,"25,249.87",Legal Aid Payment Civil Representation,
MINISTRY OF JUSTICE,LEGAL AID AGENCY,07/12/2016,Higher Crime,LEGAL AID FUND,AYOUB  KHAN,1110304:145925146,"26,014.08",Legal Aid Payment Higher Crime,
MINISTRY OF JUSTICE,LEGAL AID AGENCY,14/12/2016,Higher Crime,LEGAL AID FUND,B H MOHAMMED,1117903:146003409,"70,157.83",Legal Aid Payment Higher Crime,
MINISTRY OF JUSTICE,LEGAL AID AGENCY,07/12/2016,Higher Crime,LEGAL AID FUND,BAILEY GARCHA SOLICITORS LTD,1113361:145975684,"60,310.56",Legal Aid Payment Higher Crime,
MINISTRY OF JUSTICE,LEGAL AID AGENCY,28/12/2016,Higher Crime,LEGAL AID FUND,BAILEY NICHOLSON GRAYSON,1126929:146123972,"59,864.15",Legal Aid Payment Higher Crime,
MINISTRY OF JUSTICE,LEGAL AID AGENCY,28/12/2016,Lower Crime,LEGAL AID FUND,BAL DHALIWAL SOLICITORS,1125364:146122457,"31,594.00",Legal Aid Payment Lower Crime,
MINISTRY OF JUSTICE,LEGAL AID AGENCY,07/12/2016,Higher Crime,LEGAL AID FUND,BALVINDER BHATTI,1111367:145925766,"36,345.77",Legal Aid Payment Higher Crime,
MINISTRY OF JUSTICE,LEGAL AID AGENCY,14/12/2016,Higher Crime,LEGAL AID FUND,BANNISTER & CO,1116615:146030733,"33,881.12",Legal Aid Payment Higher Crime,
MINISTRY OF JUSTICE,LEGAL AID AGENCY,14/12/2016,Civil Representation,LEGAL AID FUND,BARBARA W CONNOLLY QC,1117113:3000001166670007,"47,250.48",Legal Aid Payment Civil Representation,
MINISTRY OF JUSTICE,LEGAL AID AGENCY,14/12/2016,Higher Crime,LEGAL AID FUND,BARK & CO,1117775:146030984,"29,245.89",Legal Aid Payment Higher Crime,
MINISTRY OF JUSTICE,LEGAL AID AGENCY,21/12/2016,Higher Crime,LEGAL AID FUND,BARK & CO,1120932:146091669,"131,474.13",Legal Aid Payment Higher Crime,
MINISTRY OF JUSTICE,LEGAL AID AGENCY,16/12/2016,Civil Representation,LEGAL AID FUND,BARKER GILLETTE LLP,1118173:145704730,"-38,888.68",Legal Aid Payment Civil Representation,
MINISTRY OF JUSTICE,LEGAL AID AGENCY,28/12/2016,Legal Help,LEGAL AID FUND,BARNES HARRILD & DYER,1125677:146121072,"42,533.00",Legal Aid Payment Legal Help,
MINISTRY OF JUSTICE,LEGAL AID AGENCY,28/12/2016,Legal Help,LEGAL AID FUND,BARNES HARRILD & DYER,1126006:146121527,"49,544.00",Legal Aid Payment Legal Help,
MINISTRY OF JUSTICE,LEGAL AID AGENCY,28/12/2016,Lower Crime,LEGAL AID FUND,BARRETT & NELLIGAN SOLICITORS LTD,1124045:146122078,"27,000.00",Legal Aid Payment Lower Crime,
MINISTRY OF JUSTICE,LEGAL AID AGENCY,07/12/2016,Civil Representation,LEGAL AID FUND,BATES & MOUNTAIN,1112782:3000001497860029,"36,363.60",Legal Aid Payment Civil Representation,
MINISTRY OF JUSTICE,LEGAL AID AGENCY,14/12/2016,Higher Crime,LEGAL AID FUND,BAXTER BROWN MCARTHUR SOLICITORS,1114824:146003330,"37,657.45",Legal Aid Payment Higher Crime,
MINISTRY OF JUSTICE,LEGAL AID AGENCY,21/12/2016,Higher Crime,LEGAL AID FUND,BCL BURTON COPELAND,1122446:146066750,"83,865.36",Legal Aid Payment Higher Crime,
MINISTRY OF JUSTICE,LEGAL AID AGENCY,28/12/2016,Lower Crime,LEGAL AID FUND,BDH SOLICITORS,1124029:146122073,"27,400.00",Legal Aid Payment Lower Crime,
MINISTRY OF JUSTICE,LEGAL AID AGENCY,28/12/2016,Lower Crime,LEGAL AID FUND,BELMORES SOLICITORS LTD,1123629:146122425,"38,640.00",Legal Aid Payment Lower Crime,
MINISTRY OF JUSTICE,LEGAL AID AGENCY,28/12/2016,Lower Crime,LEGAL AID FUND,BESWICKS SOLICITORS LLP,1125726:146122919,"50,930.00",Legal Aid Payment Lower Crime,
MINISTRY OF JUSTICE,LEGAL AID AGENCY,28/12/2016,Lower Crime,LEGAL AID FUND,BHATIA BEST LTD,1125525:146121770,"35,200.00",Legal Aid Payment Lower Crime,
MINISTRY OF JUSTICE,LEGAL AID AGENCY,28/12/2016,Lower Crime,LEGAL AID FUND,BHATIA BEST LTD,1125527:146121766,"67,000.00",Legal Aid Payment Lower Crime,
MINISTRY OF JUSTICE,LEGAL AID AGENCY,21/12/2016,Civil Representation,LEGAL AID FUND,BINDMANS LLP,1119341:146066456,"27,884.82",Legal Aid Payment Civil Representation,
MINISTRY OF JUSTICE,LEGAL AID AGENCY,28/12/2016,Legal Help,LEGAL AID FUND,BINDMANS LLP,1125385:146120648,"55,800.00",Legal Aid Payment Legal Help,
MINISTRY OF JUSTICE,LEGAL AID AGENCY,21/12/2016,Higher Crime,LEGAL AID FUND,BIRCHALL BLACKBURN SOLICITORS,1120926:146069057,"59,109.24",Legal Aid Payment Higher Crime,
MINISTRY OF JUSTICE,LEGAL AID AGENCY,14/12/2016,Higher Crime,LEGAL AID FUND,BIRDS SOLICITORS LTD,1114767:145989169,"33,599.98",Legal Aid Payment Higher Crime,
MINISTRY OF JUSTICE,LEGAL AID AGENCY,14/12/2016,Higher Crime,LEGAL AID FUND,BIRDS SOLICITORS LTD,1114767:145993616,"27,822.05",Legal Aid Payment Higher Crime,
MINISTRY OF JUSTICE,LEGAL AID AGENCY,28/12/2016,Lower Crime,LEGAL AID FUND,BIRDS SOLICITORS LTD,1126814:146121864,"40,800.00",Legal Aid Payment Lower Crime,
MINISTRY OF JUSTICE,LEGAL AID AGENCY,07/12/2016,Higher Crime,LEGAL AID FUND,BIRNBERG PEIRCE LTD,1112555:145953388,"72,900.86",Legal Aid Payment Higher Crime,
MINISTRY OF JUSTICE,LEGAL AID AGENCY,28/12/2016,Legal Help,LEGAL AID FUND,BISON SOLICITORS LTD,1125918:146115790,"99,000.00",Legal Aid Payment Legal Help,
MINISTRY OF JUSTICE,LEGAL AID AGENCY,28/12/2016,Legal Help,LEGAL AID FUND,BISON SOLICITORS LTD,1125918:146115791,"52,732.00",Legal Aid Payment Legal Help,
MINISTRY OF JUSTICE,LEGAL AID AGENCY,21/12/2016,Higher Crime,LEGAL AID FUND,BIVONAS LLP,1122298:146046565,"32,208.00",Legal Aid Payment Higher Crime,
MINISTRY OF JUSTICE,LEGAL AID AGENCY,14/12/2016,Higher Crime,LEGAL AID FUND,BJ & CO SOLICITORS LTD,1117683:145992665,"44,435.89",Legal Aid Payment Higher Crime,
MINISTRY OF JUSTICE,LEGAL AID AGENCY,14/12/2016,Higher Crime,LEGAL AID FUND,BJ & CO SOLICITORS LTD,1117683:145993491,"97,616.83",Legal Aid Payment Higher Crime,
MINISTRY OF JUSTICE,LEGAL AID AGENCY,21/12/2016,Higher Crime,LEGAL AID FUND,BJ & CO SOLICITORS LTD,1120786:146051505,"107,574.07",Legal Aid Payment Higher Crime,
MINISTRY OF JUSTICE,LEGAL AID AGENCY,07/12/2016,Higher Crime,LEGAL AID FUND,BLACKFORDS LLP,1113505:145979854,"31,465.14",Legal Aid Payment Higher Crime,
MINISTRY OF JUSTICE,LEGAL AID AGENCY,07/12/2016,Higher Crime,LEGAL AID FUND,BLACKFORDS LLP,1113505:145980580,"97,728.24",Legal Aid Payment Higher Crime,
MINISTRY OF JUSTICE,LEGAL AID AGENCY,14/12/2016,Higher Crime,LEGAL AID FUND,BLACKFORDS LLP,1115162:145984586,"44,960.52",Legal Aid Payment Higher Crime,
MINISTRY OF JUSTICE,LEGAL AID AGENCY,14/12/2016,Civil Representation,LEGAL AID FUND,BLACKFORDS LLP,1115169:145946679,"39,008.50",Legal Aid Payment Civil Representation,
MINISTRY OF JUSTICE,LEGAL AID AGENCY,21/12/2016,Higher Crime,LEGAL AID FUND,BLACKFORDS LLP,1122458:146056399,"27,883.93",Legal Aid Payment Higher Crime,
MINISTRY OF JUSTICE,LEGAL AID AGENCY,21/12/2016,Civil Representation,LEGAL AID FUND,BLACKFORDS LLP,1122465:146035751,"35,485.46",Legal Aid Payment Civil Representation,
MINISTRY OF JUSTICE,LEGAL AID AGENCY,28/12/2016,Lower Crime,LEGAL AID FUND,BLACKFORDS LLP,1125788:146122488,"53,839.00",Legal Aid Payment Lower Crime,
MINISTRY OF JUSTICE,LEGAL AID AGENCY,28/12/2016,Higher Crime,LEGAL AID FUND,BLACKFORDS LLP,1125788:146123493,"29,811.85",Legal Aid Payment Higher Crime,
MINISTRY OF JUSTICE,LEGAL AID AGENCY,21/12/2016,Civil Representation,LEGAL AID FUND,BLACKFORDS LLP,1122465:146044475,"-32,742.00",Legal Aid Payment Civil Representation,
MINISTRY OF JUSTICE,LEGAL AID AGENCY,14/12/2016,Civil Representation,LEGAL AID FUND,BLACKFORDS LLP,1115169:146005951,"-30,996.93",Legal Aid Payment Civil Representation,
MINISTRY OF JUSTICE,LEGAL AID AGENCY,28/12/2016,Lower Crime,LEGAL AID FUND,BLACKWELLS,1126838:146122015,"31,000.00",Legal Aid Payment Lower Crime,
MINISTRY OF JUSTICE,LEGAL AID AGENCY,28/12/2016,Civil Representation,LEGAL AID FUND,BLAIR ALLISON,1126807:146091810,"25,891.32",Legal Aid Payment Civil Representation,
MINISTRY OF JUSTICE,LEGAL AID AGENCY,21/12/2016,Higher Crime,LEGAL AID FUND,BLASER MILLS LLP,1121984:146068953,"33,026.26",Legal Aid Payment Higher Crime,
MINISTRY OF JUSTICE,LEGAL AID AGENCY,28/12/2016,Lower Crime,LEGAL AID FUND,BOBBETTS MACKAN,1127264:146122161,"42,000.00",Legal Aid Payment Lower Crime,
MINISTRY OF JUSTICE,LEGAL AID AGENCY,28/12/2016,Lower Crime,LEGAL AID FUND,BOND JOSEPH,1123787:146122795,"25,394.00",Legal Aid Payment Lower Crime,
MINISTRY OF JUSTICE,LEGAL AID AGENCY,28/12/2016,Lower Crime,LEGAL AID FUND,BOOTS STARKE GOACHER SOLICITORS,1125458:146122808,"33,422.00",Legal Aid Payment Lower Crime,
MINISTRY OF JUSTICE,LEGAL AID AGENCY,28/12/2016,Lower Crime,LEGAL AID FUND,BOWDEN JONES SOLICITORS,1125290:146122337,"25,270.00",Legal Aid Payment Lower Crime,
MINISTRY OF JUSTICE,LEGAL AID AGENCY,28/12/2016,Higher Crime,LEGAL AID FUND,BOYCE & CO,1127090:146094847,"45,961.74",Legal Aid Payment Higher Crime,
MINISTRY OF JUSTICE,LEGAL AID AGENCY,07/12/2016,Civil Representation,LEGAL AID FUND,BRADBURY ROBERTS & RABY,1112898:3000001258110027,"49,450.50",Legal Aid Payment Civil Representation,
MINISTRY OF JUSTICE,LEGAL AID AGENCY,28/12/2016,Civil Representation,LEGAL AID FUND,BREEZE & WYLES SOLICITORS LTD,1124615:146116397,"47,610.76",Legal Aid Payment Civil Representation,
MINISTRY OF JUSTICE,LEGAL AID AGENCY,21/12/2016,Civil Representation,LEGAL AID FUND,BRENDAN FLEMING SOLICITORS,1120986:146054057,"30,674.40",Legal Aid Payment Civil Representation,
MINISTRY OF JUSTICE,LEGAL AID AGENCY,14/12/2016,Higher Crime,LEGAL AID FUND,BRETT WILSON LLP,1114760:146003493,"30,695.83",Legal Aid Payment Higher Crime,
MINISTRY OF JUSTICE,LEGAL AID AGENCY,28/12/2016,Higher Crime,LEGAL AID FUND,BREYDONS SOLICITORS LTD,1125897:146095468,"37,235.52",Legal Aid Payment Higher Crime,
MINISTRY OF JUSTICE,LEGAL AID AGENCY,21/12/2016,Higher Crime,LEGAL AID FUND,BRIAN L ST LOUIS,1120107:146050601,"34,458.89",Legal Aid Payment Higher Crime,
MINISTRY OF JUSTICE,LEGAL AID AGENCY,28/12/2016,Legal Help,LEGAL AID FUND,BRIGHTON HOUSING TRUST,1123439:146121397,"31,644.00",Legal Aid Payment Legal Help,
MINISTRY OF JUSTICE,LEGAL AID AGENCY,21/12/2016,Civil Representation,LEGAL AID FUND,BROWN & VAUTIER LTD,1119420:146054100,"42,900.00",Legal Aid Payment Civil Representation,
MINISTRY OF JUSTICE,LEGAL AID AGENCY,28/12/2016,Lower Crime,LEGAL AID FUND,BULLIVANT LAW LTD,1125197:146121847,"41,000.00",Legal Aid Payment Lower Crime,
MINISTRY OF JUSTICE,LEGAL AID AGENCY,28/12/2016,Legal Help,LEGAL AID FUND,BURKE NIAZI  LTD,1127181:146115761,"97,000.00",Legal Aid Payment Legal Help,
MINISTRY OF JUSTICE,LEGAL AID AGENCY,28/12/2016,Higher Crime,LEGAL AID FUND,BURRELL JENKINS SOLICITORS,1125218:146094422,"36,332.26",Legal Aid Payment Higher Crime,
MINISTRY OF JUSTICE,LEGAL AID AGENCY,21/12/2016,Higher Crime,LEGAL AID FUND,BURTON COPELAND LLP,1120854:146068636,"44,975.84",Legal Aid Payment Higher Crime,
MINISTRY OF JUSTICE,LEGAL AID AGENCY,28/12/2016,Lower Crime,LEGAL AID FUND,BURTON COPELAND LLP,1123867:146122770,"40,505.00",Legal Aid Payment Lower Crime,
MINISTRY OF JUSTICE,LEGAL AID AGENCY,28/12/2016,Legal Help,LEGAL AID FUND,BUTLER & CO,1123634:146120551,"36,500.00",Legal Aid Payment Legal Help,
MINISTRY OF JUSTICE,LEGAL AID AGENCY,21/12/2016,Higher Crime,LEGAL AID FUND,BYRNE & PARTNERS LLP,1119359:146046612,"329,055.84",Legal Aid Payment Higher Crime,
MINISTRY OF JUSTICE,LEGAL AID AGENCY,21/12/2016,Civil Representation,LEGAL AID FUND,CAMERON JONES HUSSELL & HOWE,1122417:3000000593480015,"27,848.75",Legal Aid Payment Civil Representation,
MINISTRY OF JUSTICE,LEGAL AID AGENCY,28/12/2016,Legal Help,LEGAL AID FUND,CAMPBELL-TAYLOR SOLICITORS,1125728:146121098,"25,133.00",Legal Aid Payment Legal Help,
MINISTRY OF JUSTICE,LEGAL AID AGENCY,28/12/2016,Lower Crime,LEGAL AID FUND,CARR & CO,1125646:146122012,"34,600.00",Legal Aid Payment Lower Crime,
MINISTRY OF JUSTICE,LEGAL AID AGENCY,28/12/2016,Lower Crime,LEGAL AID FUND,CARRINGTONS SOLICITORS,1125192:146122387,"171,568.00",Legal Aid Payment Lower Crime,
MINISTRY OF JUSTICE,LEGAL AID AGENCY,28/12/2016,Higher Crime,LEGAL AID FUND,CARSON KAYE SOLICITORS,1122707:146103850,"66,749.34",Legal Aid Payment Higher Crime,
MINISTRY OF JUSTICE,LEGAL AID AGENCY,21/12/2016,Higher Crime,LEGAL AID FUND,CARTER MOORE SOLICITORS LTD,1119188:146086632,"35,586.82",Legal Aid Payment Higher Crime,
MINISTRY OF JUSTICE,LEGAL AID AGENCY,28/12/2016,Lower Crime,LEGAL AID FUND,CARTER OSBORNE LTD,1125464:146122383,"45,591.00",Legal Aid Payment Lower Crime,
MINISTRY OF JUSTICE,LEGAL AID AGENCY,21/12/2016,Civil Representation,LEGAL AID FUND,CARTWRIGHT KING SOLICITORS,1119117:3000000627520028,"26,274.67",Legal Aid Payment Civil Representation,
MINISTRY OF JUSTICE,LEGAL AID AGENCY,21/12/2016,Higher Crime,LEGAL AID FUND,CARTWRIGHT KING SOLICITORS,1122113:146059935,"41,656.39",Legal Aid Payment Higher Crime,
MINISTRY OF JUSTICE,LEGAL AID AGENCY,21/12/2016,Higher Crime,LEGAL AID FUND,CARTWRIGHT KING SOLICITORS,1122113:146092131,"103,375.55",Legal Aid Payment Higher Crime,
MINISTRY OF JUSTICE,LEGAL AID AGENCY,28/12/2016,Lower Crime,LEGAL AID FUND,CARTWRIGHT KING SOLICITORS,1125297:146122396,"37,025.00",Legal Aid Payment Lower Crime,
MINISTRY OF JUSTICE,LEGAL AID AGENCY,28/12/2016,Legal Help,LEGAL AID FUND,CARTWRIGHT KING SOLICITORS,1125298:146121238,"70,029.00",Legal Aid Payment Legal Help,
MINISTRY OF JUSTICE,LEGAL AID AGENCY,28/12/2016,Lower Crime,LEGAL AID FUND,CARTWRIGHT KING SOLICITORS,1125298:146122393,"57,721.00",Legal Aid Payment Lower Crime,
MINISTRY OF JUSTICE,LEGAL AID AGENCY,28/12/2016,Lower Crime,LEGAL AID FUND,CARTWRIGHT KING SOLICITORS,1125875:146123192,"27,818.00",Legal Aid Payment Lower Crime,
MINISTRY OF JUSTICE,LEGAL AID AGENCY,28/12/2016,Lower Crime,LEGAL AID FUND,CARTWRIGHT KING SOLICITORS,1125876:146122275,"40,900.00",Legal Aid Payment Lower Crime,
MINISTRY OF JUSTICE,LEGAL AID AGENCY,28/12/2016,Lower Crime,LEGAL AID FUND,CARTWRIGHT KING SOLICITORS,1126669:146122992,"44,989.00",Legal Aid Payment Lower Crime,
MINISTRY OF JUSTICE,LEGAL AID AGENCY,28/12/2016,Higher Crime,LEGAL AID FUND,CHARLES G KNOWLES,1126488:146098644,"38,675.40",Legal Aid Payment Higher Crime,
MINISTRY OF JUSTICE,LEGAL AID AGENCY,28/12/2016,Civil Representation,LEGAL AID FUND,CHARLOTTE E STREET,1123504:146090892,"29,557.15",Legal Aid Payment Civil Representation,
MINISTRY OF JUSTICE,LEGAL AID AGENCY,14/12/2016,Higher Crime,LEGAL AID FUND,CHARTER SOLICITORS,1113889:146011769,"72,697.32",Legal Aid Payment Higher Crime,
MINISTRY OF JUSTICE,LEGAL AID AGENCY,28/12/2016,Higher Crime,LEGAL AID FUND,CHIVERS SOLICITORS,1126631:146094420,"76,961.56",Legal Aid Payment Higher Crime,
MINISTRY OF JUSTICE,LEGAL AID AGENCY,28/12/2016,Higher Crime,LEGAL AID FUND,CHIVERS SOLICITORS,1126631:146103153,"105,857.75",Legal Aid Payment Higher Crime,
MINISTRY OF JUSTICE,LEGAL AID AGENCY,28/12/2016,Higher Crime,LEGAL AID FUND,CHRISTOPHER L W DIAMOND,1124987:146112584,"28,351.66",Legal Aid Payment Higher Crime,
MINISTRY OF JUSTICE,LEGAL AID AGENCY,21/12/2016,Higher Crime,LEGAL AID FUND,CHRISTOPHER MARTIN,1120218:146086776,"35,024.18",Legal Aid Payment Higher Crime,
MINISTRY OF JUSTICE,LEGAL AID AGENCY,21/12/2016,Higher Crime,LEGAL AID FUND,CHRISTOPHER TEHRANI QC,1118661:146050993,"79,456.98",Legal Aid Payment Higher Crime,
MINISTRY OF JUSTICE,LEGAL AID AGENCY,28/12/2016,Lower Crime,LEGAL AID FUND,CHURCHERS BOLITHO WAY,1126703:146122818,"25,932.00",Legal Aid Payment Lower Crime,
MINISTRY OF JUSTICE,LEGAL AID AGENCY,28/12/2016,Legal Help,LEGAL AID FUND,CJCH SOLICITORS,1125887:146121720,"38,477.00",Legal Aid Payment Legal Help,
MINISTRY OF JUSTICE,LEGAL AID AGENCY,07/12/2016,Civil Representation,LEGAL AID FUND,CLAIRE MURDEN,1111723:3000001142900006,"29,468.70",Legal Aid Payment Civil Representation,
MINISTRY OF JUSTICE,LEGAL AID AGENCY,14/12/2016,Higher Crime,LEGAL AID FUND,CLARKE KIERNAN LLP,1116333:146012112,"32,702.72",Legal Aid Payment Higher Crime,
MINISTRY OF JUSTICE,LEGAL AID AGENCY,28/12/2016,Lower Crime,LEGAL AID FUND,CLARKE KIERNAN LLP,1123748:146122783,"34,063.00",Legal Aid Payment Lower Crime,
MINISTRY OF JUSTICE,LEGAL AID AGENCY,07/12/2016,Higher Crime,LEGAL AID FUND,CLIVE REES & ASSOCIATES,1112185:145942813,"40,176.28",Legal Aid Payment Higher Crime,
MINISTRY OF JUSTICE,LEGAL AID AGENCY,28/12/2016,Lower Crime,LEGAL AID FUND,COBAINS SOLICITORS,1126879:146122079,"30,000.00",Legal Aid Payment Lower Crime,
MINISTRY OF JUSTICE,LEGAL AID AGENCY,07/12/2016,Higher Crime,LEGAL AID FUND,COBLEYS LLP,1112614:145925200,"57,993.03",Legal Aid Payment Higher Crime,
MINISTRY OF JUSTICE,LEGAL AID AGENCY,07/12/2016,Higher Crime,LEGAL AID FUND,COBLEYS LLP,1112614:145953384,"27,578.62",Legal Aid Payment Higher Crime,
MINISTRY OF JUSTICE,LEGAL AID AGENCY,28/12/2016,Higher Crime,LEGAL AID FUND,COBLEYS LLP,1123756:146103396,"67,377.08",Legal Aid Payment Higher Crime,
MINISTRY OF JUSTICE,LEGAL AID AGENCY,28/12/2016,Lower Crime,LEGAL AID FUND,COBLEYS LLP,1123756:146122590,"28,413.00",Legal Aid Payment Lower Crime,
MINISTRY OF JUSTICE,LEGAL AID AGENCY,07/12/2016,Higher Crime,LEGAL AID FUND,COBLEYS LLP-ADVOCATE,1110535:145943270,"27,297.26",Legal Aid Payment Higher Crime,
MINISTRY OF JUSTICE,LEGAL AID AGENCY,28/12/2016,Legal Help,LEGAL AID FUND,CONFREYS,1124146:146120933,"36,626.00",Legal Aid Payment Legal Help,
MINISTRY OF JUSTICE,LEGAL AID AGENCY,28/12/2016,Lower Crime,LEGAL AID FUND,CONNOR ROSS-BROWN SOLICITORS,1126102:146122260,"35,000.00",Legal Aid Payment Lower Crime,
MINISTRY OF JUSTICE,LEGAL AID AGENCY,28/12/2016,Civil Representation,LEGAL AID FUND,CONSTANCE M HUGHES,1126455:146090654,"27,075.60",Legal Aid Payment Civil Representation,
MINISTRY OF JUSTICE,LEGAL AID AGENCY,21/12/2016,Legal Help,LEGAL AID FUND,CORAM CHILDREN'S LEGAL CENTRE,1120858:146065069,"45,751.36",Legal Aid Payment Legal Help,
MINISTRY OF JUSTICE,LEGAL AID AGENCY,14/12/2016,Higher Crime,LEGAL AID FUND,CORKER BINNING,1114859:146037820,"114,508.26",Legal Aid Payment Higher Crime,
MINISTRY OF JUSTICE,LEGAL AID AGENCY,14/12/2016,Civil Representation,LEGAL AID FUND,COVENT GARDEN FAMILY LAW SOLICITORS,1116877:145996746,"37,214.03",Legal Aid Payment Civil Representation,
MINISTRY OF JUSTICE,LEGAL AID AGENCY,14/12/2016,Civil Representation,LEGAL AID FUND,COVENT GARDEN FAMILY LAW SOLICITORS,1116877:146007606,"25,383.76",Legal Aid Payment Civil Representation,
MINISTRY OF JUSTICE,LEGAL AID AGENCY,14/12/2016,Civil Representation,LEGAL AID FUND,COVENT GARDEN FAMILY LAW SOLICITORS,1116877:146007845,"-37,214.03",Legal Aid Payment Civil Representation,
MINISTRY OF JUSTICE,LEGAL AID AGENCY,28/12/2016,Legal Help,LEGAL AID FUND,COVENTRY LAW CENTRE LTD,1123717:146120826,"31,317.00",Legal Aid Payment Legal Help,
MINISTRY OF JUSTICE,LEGAL AID AGENCY,14/12/2016,Civil Representation,LEGAL AID FUND,CREIGHTON & PARTNERS,1117628:145998195,"47,159.78",Legal Aid Payment Civil Representation,
MINISTRY OF JUSTICE,LEGAL AID AGENCY,21/12/2016,Civil Representation,LEGAL AID FUND,CREIGHTON & PARTNERS,1120761:3000000968860018,"33,308.58",Legal Aid Payment Civil Representation,
MINISTRY OF JUSTICE,LEGAL AID AGENCY,28/12/2016,Lower Crime,LEGAL AID FUND,CRIMINAL DEFENCE ASSOCIATES,1125188:146121799,"29,300.00",Legal Aid Payment Lower Crime,
MINISTRY OF JUSTICE,LEGAL AID AGENCY,28/12/2016,Lower Crime,LEGAL AID FUND,CRIMINAL DEFENCE MILTON KEYNES LTD,1123547:146122134,"38,500.00",Legal Aid Payment Lower Crime,
MINISTRY OF JUSTICE,LEGAL AID AGENCY,14/12/2016,Higher Crime,LEGAL AID FUND,CRIMINAL DEFENCE SOLICITORS,1116179:145983916,"29,925.36",Legal Aid Payment Higher Crime,
MINISTRY OF JUSTICE,LEGAL AID AGENCY,21/12/2016,Higher Crime,LEGAL AID FUND,CRIMINAL DEFENCE SOLICITORS,1119196:146050540,"32,604.72",Legal Aid Payment Higher Crime,
MINISTRY OF JUSTICE,LEGAL AID AGENCY,28/12/2016,Higher Crime,LEGAL AID FUND,CRIMINAL DEFENCE SOLICITORS,1123619:146094887,"68,630.18",Legal Aid Payment Higher Crime,
MINISTRY OF JUSTICE,LEGAL AID AGENCY,28/12/2016,Lower Crime,LEGAL AID FUND,CRIMINAL DEFENCE SOLICITORS,1123619:146121912,"31,900.00",Legal Aid Payment Lower Crime,
MINISTRY OF JUSTICE,LEGAL AID AGENCY,21/12/2016,Civil Representation,LEGAL AID FUND,CROCKETT LIMITED TA CROCKETT & CO SOLICITORS,1122273:3000001387760029,"49,896.00",Legal Aid Payment Civil Representation,
MINISTRY OF JUSTICE,LEGAL AID AGENCY,28/12/2016,Lower Crime,LEGAL AID FUND,CROWE HUMBLE WESENCRAFT,1123736:146121971,"34,200.00",Legal Aid Payment Lower Crime,
MINISTRY OF JUSTICE,LEGAL AID AGENCY,07/12/2016,Higher Crime,LEGAL AID FUND,CROWLEY & CO,1113495:145933686,"31,772.68",Legal Aid Payment Higher Crime,
MINISTRY OF JUSTICE,LEGAL AID AGENCY,21/12/2016,Civil Representation,LEGAL AID FUND,DAFYDD GRIFFITHS,1121572:3000000866880018,"42,768.00",Legal Aid Payment Civil Representation,
MINISTRY OF JUSTICE,LEGAL AID AGENCY,28/12/2016,Lower Crime,LEGAL AID FUND,DALTON HOLMES GRAY,1125418:146122548,"36,306.00",Legal Aid Payment Lower Crime,
MINISTRY OF JUSTICE,LEGAL AID AGENCY,28/12/2016,Lower Crime,LEGAL AID FUND,DARRYL INGRAM & CO,1126858:146121883,"27,600.00",Legal Aid Payment Lower Crime,
MINISTRY OF JUSTICE,LEGAL AID AGENCY,28/12/2016,Higher Crime,LEGAL AID FUND,DAVID  MILLER,1124486:146123833,"38,946.48",Legal Aid Payment Higher Crime,
MINISTRY OF JUSTICE,LEGAL AID AGENCY,14/12/2016,Civil Representation,LEGAL AID FUND,DAVID B WILLIAMS QC,1117259:146006340,"28,153.46",Legal Aid Payment Civil Representation,
MINISTRY OF JUSTICE,LEGAL AID AGENCY,14/12/2016,Higher Crime,LEGAL AID FUND,DAVID C L ETHERINGTON QC,1114425:145983856,"52,520.58",Legal Aid Payment Higher Crime,
MINISTRY OF JUSTICE,LEGAL AID AGENCY,14/12/2016,Higher Crime,LEGAL AID FUND,DAVID ELLIOT POJUR,1114616:145998475,"25,080.00",Legal Aid Payment Higher Crime,
MINISTRY OF JUSTICE,LEGAL AID AGENCY,14/12/2016,Civil Representation,LEGAL AID FUND,DAVID GRAY LLP,1114787:145968566,"61,974.36",Legal Aid Payment Civil Representation,
MINISTRY OF JUSTICE,LEGAL AID AGENCY,21/12/2016,Civil Representation,LEGAL AID FUND,DAVID GRAY LLP,1122082:3000001051880009,"26,946.66",Legal Aid Payment Civil Representation,
MINISTRY OF JUSTICE,LEGAL AID AGENCY,28/12/2016,Higher Crime,LEGAL AID FUND,DAVID GRAY LLP,1126846:146104079,"68,903.62",Legal Aid Payment Higher Crime,
MINISTRY OF JUSTICE,LEGAL AID AGENCY,28/12/2016,Legal Help,LEGAL AID FUND,DAVID GRAY LLP,1126846:146121203,"41,101.00",Legal Aid Payment Legal Help,
MINISTRY OF JUSTICE,LEGAL AID AGENCY,07/12/2016,Civil Representation,LEGAL AID FUND,DAVID PHILLIPS,1110428:3000001094400030,"30,007.66",Legal Aid Payment Civil Representation,
MINISTRY OF JUSTICE,LEGAL AID AGENCY,14/12/2016,Higher Crime,LEGAL AID FUND,DAVID R BRIGHT,1117435:145984078,"44,131.92",Legal Aid Payment Higher Crime,
MINISTRY OF JUSTICE,LEGAL AID AGENCY,28/12/2016,Higher Crime,LEGAL AID FUND,DAVID S HISLOP QC,1124794:146124151,"38,476.62",Legal Aid Payment Higher Crime,
MINISTRY OF JUSTICE,LEGAL AID AGENCY,07/12/2016,Higher Crime,LEGAL AID FUND,DEFENCE LAW LTD,1112139:145925235,"77,412.44",Legal Aid Payment Higher Crime,
MINISTRY OF JUSTICE,LEGAL AID AGENCY,28/12/2016,Lower Crime,LEGAL AID FUND,DEFENCE LAW LTD,1126674:146123102,"32,666.00",Legal Aid Payment Lower Crime,
MINISTRY OF JUSTICE,LEGAL AID AGENCY,28/12/2016,Higher Crime,LEGAL AID FUND,DEFENCE LAW LTD,1126674:146123552,"59,109.24",Legal Aid Payment Higher Crime,
MINISTRY OF JUSTICE,LEGAL AID AGENCY,14/12/2016,Higher Crime,LEGAL AID FUND,DENNIS N KAVANAGH,1117328:146002565,"27,652.18",Legal Aid Payment Higher Crime,
MINISTRY OF JUSTICE,LEGAL AID AGENCY,21/12/2016,Higher Crime,LEGAL AID FUND,DERMOT KEATING,1119921:146060194,"39,468.72",Legal Aid Payment Higher Crime,
MINISTRY OF JUSTICE,LEGAL AID AGENCY,07/12/2016,Civil Representation,LEGAL AID FUND,DEVONALDS,1113365:145946142,"25,170.64",Legal Aid Payment Civil Representation,
MINISTRY OF JUSTICE,LEGAL AID AGENCY,07/12/2016,Higher Crime,LEGAL AID FUND,DEXTER HENRY & CO,1113271:145942334,"53,433.76",Legal Aid Payment Higher Crime,
MINISTRY OF JUSTICE,LEGAL AID AGENCY,07/12/2016,Higher Crime,LEGAL AID FUND,DEXTER HENRY & CO,1113271:145943161,"81,347.36",Legal Aid Payment Higher Crime,
MINISTRY OF JUSTICE,LEGAL AID AGENCY,07/12/2016,Legal Help,LEGAL AID FUND,DIRECT HELP & ADVICE LTD,1112507:145970471,"30,728.16",Legal Aid Payment Legal Help,
MINISTRY OF JUSTICE,LEGAL AID AGENCY,14/12/2016,Higher Crime,LEGAL AID FUND,DJMS SOLICITORS LTD,1114823:146002296,"74,963.09",Legal Aid Payment Higher Crime,
MINISTRY OF JUSTICE,LEGAL AID AGENCY,28/12/2016,Lower Crime,LEGAL AID FUND,DJMS SOLICITORS LTD,1125105:146122603,"44,525.00",Legal Aid Payment Lower Crime,
MINISTRY OF JUSTICE,LEGAL AID AGENCY,14/12/2016,Civil Representation,LEGAL AID FUND,DMA LAW,1117987:3000000262750021,"29,477.91",Legal Aid Payment Civil Representation,
MINISTRY OF JUSTICE,LEGAL AID AGENCY,14/12/2016,Civil Representation,LEGAL AID FUND,DMA LAW,1118116:3000000262750021,"29,477.91",Legal Aid Payment Civil Representation,
MINISTRY OF JUSTICE,LEGAL AID AGENCY,14/12/2016,Civil Representation,LEGAL AID FUND,DMA LAW,1118148:3000000262750021,"29,477.91",Legal Aid Payment Civil Representation,
MINISTRY OF JUSTICE,LEGAL AID AGENCY,21/12/2016,Higher Crime,LEGAL AID FUND,DMA LAW,1122285:146060918,"85,437.82",Legal Aid Payment Higher Crime,
MINISTRY OF JUSTICE,LEGAL AID AGENCY,14/12/2016,Civil Representation,LEGAL AID FUND,DMA LAW,1117987:3000000262750021,"-29,477.91",Legal Aid Payment Civil Representation,
MINISTRY OF JUSTICE,LEGAL AID AGENCY,14/12/2016,Civil Representation,LEGAL AID FUND,DMA LAW,1118116:3000000262750021,"-29,477.91",Legal Aid Payment Civil Representation,
MINISTRY OF JUSTICE,LEGAL AID AGENCY,28/12/2016,Lower Crime,LEGAL AID FUND,DOBSONS,1124227:146121868,"35,000.00",Legal Aid Payment Lower Crime,
MINISTRY OF JUSTICE,LEGAL AID AGENCY,28/12/2016,Higher Crime,LEGAL AID FUND,DON SOLICITORS,1123639:146104328,"87,656.79",Legal Aid Payment Higher Crime,
MINISTRY OF JUSTICE,LEGAL AID AGENCY,28/12/2016,Legal Help,LEGAL AID FUND,DONOVAN NEWTON SOLICITORS,1125258:146121222,"35,100.00",Legal Aid Payment Legal Help,
MINISTRY OF JUSTICE,LEGAL AID AGENCY,28/12/2016,Higher Crime,LEGAL AID FUND,DORIAN LOVELL-PANK QC,1122904:146112761,"30,392.30",Legal Aid Payment Higher Crime,
MINISTRY OF JUSTICE,LEGAL AID AGENCY,14/12/2016,Civil Representation,LEGAL AID FUND,DORIAN S DAY,1116046:145947002,"29,548.80",Legal Aid Payment Civil Representation,
MINISTRY OF JUSTICE,LEGAL AID AGENCY,14/12/2016,Higher Crime,LEGAL AID FUND,DPP LAW LTD,1116340:146012552,"34,307.12",Legal Aid Payment Higher Crime,
MINISTRY OF JUSTICE,LEGAL AID AGENCY,28/12/2016,Lower Crime,LEGAL AID FUND,DPP LAW LTD,1123757:146121875,"28,400.00",Legal Aid Payment Lower Crime,
MINISTRY OF JUSTICE,LEGAL AID AGENCY,28/12/2016,Lower Crime,LEGAL AID FUND,DPP LAW LTD,1123758:146121935,"27,800.00",Legal Aid Payment Lower Crime,
MINISTRY OF JUSTICE,LEGAL AID AGENCY,28/12/2016,Higher Crime,LEGAL AID FUND,DPP LAW LTD,1123761:146113062,"42,251.04",Legal Aid Payment Higher Crime,
MINISTRY OF JUSTICE,LEGAL AID AGENCY,07/12/2016,Higher Crime,LEGAL AID FUND,DRAYCOTT BROWNE LTD,1112809:145953211,"61,362.49",Legal Aid Payment Higher Crime,
MINISTRY OF JUSTICE,LEGAL AID AGENCY,28/12/2016,Higher Crime,LEGAL AID FUND,DRAYCOTT BROWNE LTD,1123876:146095734,"47,495.04",Legal Aid Payment Higher Crime,
MINISTRY OF JUSTICE,LEGAL AID AGENCY,28/12/2016,Lower Crime,LEGAL AID FUND,DRISCOLL YOUNG SOLICITORS LTD,1126912:146122304,"26,189.00",Legal Aid Payment Lower Crime,
MINISTRY OF JUSTICE,LEGAL AID AGENCY,07/12/2016,Legal Help,LEGAL AID FUND,DUNCAN LEWIS SOLICITORS  LTD,1112632:145980681,"95,000.00",Legal Aid Payment Legal Help,
MINISTRY OF JUSTICE,LEGAL AID AGENCY,07/12/2016,Legal Help,LEGAL AID FUND,DUNCAN LEWIS SOLICITORS  LTD,1112632:145980685,"81,400.00",Legal Aid Payment Legal Help,
MINISTRY OF JUSTICE,LEGAL AID AGENCY,07/12/2016,Legal Help,LEGAL AID FUND,DUNCAN LEWIS SOLICITORS  LTD,1112632:145980688,"92,000.00",Legal Aid Payment Legal Help,
MINISTRY OF JUSTICE,LEGAL AID AGENCY,14/12/2016,Civil Representation,LEGAL AID FUND,DUNCAN LEWIS SOLICITORS  LTD,1116318:3000000689320021,"26,114.89",Legal Aid Payment Civil Representation,
MINISTRY OF JUSTICE,LEGAL AID AGENCY,14/12/2016,Higher Crime,LEGAL AID FUND,DUNCAN LEWIS SOLICITORS  LTD,1116319:145993520,"94,087.77",Legal Aid Payment Higher Crime,
MINISTRY OF JUSTICE,LEGAL AID AGENCY,21/12/2016,Civil Representation,LEGAL AID FUND,DUNCAN LEWIS SOLICITORS  LTD,1119133:3000000847240026,"25,345.03",Legal Aid Payment Civil Representation,
MINISTRY OF JUSTICE,LEGAL AID AGENCY,28/12/2016,Legal Help,LEGAL AID FUND,DUNCAN LEWIS SOLICITORS  LTD,1124385:146120789,"59,300.00",Legal Aid Payment Legal Help,
MINISTRY OF JUSTICE,LEGAL AID AGENCY,28/12/2016,Legal Help,LEGAL AID FUND,DUNCAN LEWIS SOLICITORS  LTD,1126713:146120625,"36,400.00",Legal Aid Payment Legal Help,
MINISTRY OF JUSTICE,LEGAL AID AGENCY,28/12/2016,Legal Help,LEGAL AID FUND,DUNCAN LEWIS SOLICITORS  LTD,1126891:146115757,"98,000.00",Legal Aid Payment Legal Help,
MINISTRY OF JUSTICE,LEGAL AID AGENCY,28/12/2016,Legal Help,LEGAL AID FUND,DUNCAN LEWIS SOLICITORS  LTD,1126891:146115758,"97,000.00",Legal Aid Payment Legal Help,
MINISTRY OF JUSTICE,LEGAL AID AGENCY,28/12/2016,Legal Help,LEGAL AID FUND,DUNCAN LEWIS SOLICITORS  LTD,1126891:146115759,"73,400.00",Legal Aid Payment Legal Help,
MINISTRY OF JUSTICE,LEGAL AID AGENCY,28/12/2016,Lower Crime,LEGAL AID FUND,DUNCAN LEWIS SOLICITORS  LTD,1126891:146121890,"70,100.00",Legal Aid Payment Lower Crime,
MINISTRY OF JUSTICE,LEGAL AID AGENCY,28/12/2016,Legal Help,LEGAL AID FUND,DUNCAN LEWIS SOLICITORS  LTD,1126892:146115669,"98,000.00",Legal Aid Payment Legal Help,
MINISTRY OF JUSTICE,LEGAL AID AGENCY,28/12/2016,Legal Help,LEGAL AID FUND,DUNCAN LEWIS SOLICITORS  LTD,1126892:146115670,"97,000.00",Legal Aid Payment Legal Help,
MINISTRY OF JUSTICE,LEGAL AID AGENCY,28/12/2016,Legal Help,LEGAL AID FUND,DUNCAN LEWIS SOLICITORS  LTD,1126892:146115672,"96,000.00",Legal Aid Payment Legal Help,
MINISTRY OF JUSTICE,LEGAL AID AGENCY,28/12/2016,Legal Help,LEGAL AID FUND,DUNCAN LEWIS SOLICITORS  LTD,1126892:146115673,"95,000.00",Legal Aid Payment Legal Help,
MINISTRY OF JUSTICE,LEGAL AID AGENCY,28/12/2016,Lower Crime,LEGAL AID FUND,DUNCAN LEWIS SOLICITORS  LTD,1126892:146122519,"56,148.00",Legal Aid Payment Lower Crime,
MINISTRY OF JUSTICE,LEGAL AID AGENCY,21/12/2016,Civil Representation,LEGAL AID FUND,DYLAN EVANS,1119852:146035903,"53,892.00",Legal Aid Payment Civil Representation,
MINISTRY OF JUSTICE,LEGAL AID AGENCY,21/12/2016,Civil Representation,LEGAL AID FUND,DYLAN EVANS,1119852:146044471,"-29,628.00",Legal Aid Payment Civil Representation,
MINISTRY OF JUSTICE,LEGAL AID AGENCY,07/12/2016,Civil Representation,LEGAL AID FUND,EATON SMITH LLP,1113107:3000000695600014,"34,087.98",Legal Aid Payment Civil Representation,
MINISTRY OF JUSTICE,LEGAL AID AGENCY,21/12/2016,Civil Representation,LEGAL AID FUND,EATON SMITH LLP,1120887:3000000700110023,"53,136.00",Legal Aid Payment Civil Representation,
MINISTRY OF JUSTICE,LEGAL AID AGENCY,28/12/2016,Lower Crime,LEGAL AID FUND,EBR ATTRIDGE LLP,1123563:146122485,"28,620.00",Legal Aid Payment Lower Crime,
MINISTRY OF JUSTICE,LEGAL AID AGENCY,28/12/2016,Lower Crime,LEGAL AID FUND,EBR ATTRIDGE LLP,1125229:146121858,"38,400.00",Legal Aid Payment Lower Crime,
MINISTRY OF JUSTICE,LEGAL AID AGENCY,28/12/2016,Higher Crime,LEGAL AID FUND,EBR ATTRIDGE LLP-ADVOCATE,1124692:146123694,"27,567.53",Legal Aid Payment Higher Crime,
MINISTRY OF JUSTICE,LEGAL AID AGENCY,21/12/2016,Higher Crime,LEGAL AID FUND,EDWARD FAIL BRADSHAW & WATERSON,1121080:146060801,"39,841.53",Legal Aid Payment Higher Crime,
MINISTRY OF JUSTICE,LEGAL AID AGENCY,14/12/2016,Civil Representation,LEGAL AID FUND,EDWARDS DUTHIE,1116566:146036144,"29,938.00",Legal Aid Payment Civil Representation,
MINISTRY OF JUSTICE,LEGAL AID AGENCY,21/12/2016,Higher Crime,LEGAL AID FUND,EDWARDS DUTHIE,1122510:146069405,"54,497.60",Legal Aid Payment Higher Crime,
MINISTRY OF JUSTICE,LEGAL AID AGENCY,28/12/2016,Civil Representation,LEGAL AID FUND,EDWARDS DUTHIE,1125837:146115087,"30,135.76",Legal Aid Payment Civil Representation,
MINISTRY OF JUSTICE,LEGAL AID AGENCY,28/12/2016,Legal Help,LEGAL AID FUND,EDWARDS DUTHIE,1125837:146121059,"25,257.00",Legal Aid Payment Legal Help,
MINISTRY OF JUSTICE,LEGAL AID AGENCY,28/12/2016,Lower Crime,LEGAL AID FUND,EDWARDS DUTHIE,1125837:146123179,"48,742.00",Legal Aid Payment Lower Crime,
MINISTRY OF JUSTICE,LEGAL AID AGENCY,28/12/2016,Civil Representation,LEGAL AID FUND,EDWARDS DUTHIE,1125837:146115089,"-29,938.00",Legal Aid Payment Civil Representation,
MINISTRY OF JUSTICE,LEGAL AID AGENCY,28/12/2016,Legal Help,LEGAL AID FUND,ELDER RAHIMI LIMITED,1123871:146121132,"47,184.00",Legal Aid Payment Legal Help,
MINISTRY OF JUSTICE,LEGAL AID AGENCY,28/12/2016,Lower Crime,LEGAL AID FUND,ELLIOT MATHER LLP,1123991:146121787,"28,500.00",Legal Aid Payment Lower Crime,
MINISTRY OF JUSTICE,LEGAL AID AGENCY,21/12/2016,Civil Representation,LEGAL AID FUND,EMMA SOUTHERN,1120245:146063486,"35,675.24",Legal Aid Payment Civil Representation,
MINISTRY OF JUSTICE,LEGAL AID AGENCY,28/12/2016,Higher Crime,LEGAL AID FUND,ESN SOLICITORS,1126799:146112724,"72,969.57",Legal Aid Payment Higher Crime,
MINISTRY OF JUSTICE,LEGAL AID AGENCY,14/12/2016,Higher Crime,LEGAL AID FUND,EWINGS & CO,1116620:145983298,"41,267.42",Legal Aid Payment Higher Crime,
MINISTRY OF JUSTICE,LEGAL AID AGENCY,28/12/2016,Lower Crime,LEGAL AID FUND,EWINGS & CO,1127347:146121869,"27,100.00",Legal Aid Payment Lower Crime,
MINISTRY OF JUSTICE,LEGAL AID AGENCY,28/12/2016,Legal Help,LEGAL AID FUND,FADIGA & CO LTD,1124077:146121068,"39,456.00",Legal Aid Payment Legal Help,
MINISTRY OF JUSTICE,LEGAL AID AGENCY,21/12/2016,Higher Crime,LEGAL AID FUND,FARADAYS SOLICITORS LTD,1119313:146060544,"49,729.07",Legal Aid Payment Higher Crime,
MINISTRY OF JUSTICE,LEGAL AID AGENCY,28/12/2016,Lower Crime,LEGAL AID FUND,FARLEYS SOLICITORS LLP,1124062:146122050,"29,900.00",Legal Aid Payment Lower Crime,
MINISTRY OF JUSTICE,LEGAL AID AGENCY,14/12/2016,Higher Crime,LEGAL AID FUND,FARNSWORTH MORGAN BAKHAT,1116210:146003406,"72,345.46",Legal Aid Payment Higher Crime,
MINISTRY OF JUSTICE,LEGAL AID AGENCY,07/12/2016,Higher Crime,LEGAL AID FUND,FIONA A M ELDER,1110764:145953645,"34,021.44",Legal Aid Payment Higher Crime,
MINISTRY OF JUSTICE,LEGAL AID AGENCY,28/12/2016,Legal Help,LEGAL AID FUND,FISHER JONES GREENWOOD LLP,1122826:146121554,"28,600.00",Legal Aid Payment Legal Help,
MINISTRY OF JUSTICE,LEGAL AID AGENCY,28/12/2016,Lower Crime,LEGAL AID FUND,FMW LAW LTD,1125682:146121836,"69,300.00",Legal Aid Payment Lower Crime,
MINISTRY OF JUSTICE,LEGAL AID AGENCY,07/12/2016,Higher Crime,LEGAL AID FUND,FORBES SOLICITORS,1112696:145953726,"25,929.83",Legal Aid Payment Higher Crime,
MINISTRY OF JUSTICE,LEGAL AID AGENCY,14/12/2016,Higher Crime,LEGAL AID FUND,FORBES SOLICITORS,1114896:146003304,"95,707.01",Legal Aid Payment Higher Crime,
MINISTRY OF JUSTICE,LEGAL AID AGENCY,21/12/2016,Higher Crime,LEGAL AID FUND,FORBES SOLICITORS,1122222:146051587,"105,031.68",Legal Aid Payment Higher Crime,
MINISTRY OF JUSTICE,LEGAL AID AGENCY,21/12/2016,Higher Crime,LEGAL AID FUND,FORBES SOLICITORS,1122222:146069612,"81,347.36",Legal Aid Payment Higher Crime,
MINISTRY OF JUSTICE,LEGAL AID AGENCY,28/12/2016,Lower Crime,LEGAL AID FUND,FORBES SOLICITORS,1125397:146122064,"25,600.00",Legal Aid Payment Lower Crime,
MINISTRY OF JUSTICE,LEGAL AID AGENCY,07/12/2016,Higher Crime,LEGAL AID FUND,FORTIS ROSE SOLICITORS LTD,1112117:145925368,"34,830.65",Legal Aid Payment Higher Crime,
MINISTRY OF JUSTICE,LEGAL AID AGENCY,28/12/2016,Legal Help,LEGAL AID FUND,FOUNTAIN SOLICITORS LTD,1126744:146120515,"55,000.00",Legal Aid Payment Legal Help,
MINISTRY OF JUSTICE,LEGAL AID AGENCY,13/12/2016,Civil Representation,LEGAL AID FUND,FRANCES J JUDD,1113781:145928988,"-67,301.58",Legal Aid Payment Civil Representation,
MINISTRY OF JUSTICE,LEGAL AID AGENCY,07/12/2016,Civil Representation,LEGAL AID FUND,FRANCESCA P D WILEY QC,1111340:3000001302350018,"33,928.80",Legal Aid Payment Civil Representation,
MINISTRY OF JUSTICE,LEGAL AID AGENCY,14/12/2016,Higher Crime,LEGAL AID FUND,FRANCIS G H D FITZGIBBON QC,1115788:146002547,"39,961.26",Legal Aid Payment Higher Crime,
MINISTRY OF JUSTICE,LEGAL AID AGENCY,14/12/2016,Lower Crime,LEGAL AID FUND,FRANK BRAZELL & PARTNERS LTD,1117647:146006175,"42,694.12",Legal Aid Payment Lower Crime,
MINISTRY OF JUSTICE,LEGAL AID AGENCY,28/12/2016,Lower Crime,LEGAL AID FUND,FREEMANS SOLICITORS,1125766:146121906,"27,900.00",Legal Aid Payment Lower Crime,
MINISTRY OF JUSTICE,LEGAL AID AGENCY,14/12/2016,Higher Crime,LEGAL AID FUND,FRISBY SOLICITORS LTD,1114820:146031303,"36,600.32",Legal Aid Payment Higher Crime,
MINISTRY OF JUSTICE,LEGAL AID AGENCY,14/12/2016,Higher Crime,LEGAL AID FUND,FYLDE LAW,1117781:145993521,"89,975.11",Legal Aid Payment Higher Crime,
MINISTRY OF JUSTICE,LEGAL AID AGENCY,28/12/2016,Legal Help,LEGAL AID FUND,G T STEWART LTD,1123695:146121721,"26,143.00",Legal Aid Payment Legal Help,
MINISTRY OF JUSTICE,LEGAL AID AGENCY,28/12/2016,Lower Crime,LEGAL AID FUND,G T STEWART LTD,1123695:146122557,"53,924.00",Legal Aid Payment Lower Crime,
MINISTRY OF JUSTICE,LEGAL AID AGENCY,28/12/2016,Lower Crime,LEGAL AID FUND,G T STEWART LTD,1125091:146123030,"52,109.00",Legal Aid Payment Lower Crime,
MINISTRY OF JUSTICE,LEGAL AID AGENCY,28/12/2016,Higher Crime,LEGAL AID FUND,G T STEWART LTD,1125093:146104369,"51,250.93",Legal Aid Payment Higher Crime,
MINISTRY OF JUSTICE,LEGAL AID AGENCY,28/12/2016,Lower Crime,LEGAL AID FUND,G T STEWART LTD,1125096:146123026,"28,640.00",Legal Aid Payment Lower Crime,
MINISTRY OF JUSTICE,LEGAL AID AGENCY,28/12/2016,Lower Crime,LEGAL AID FUND,G T STEWART LTD,1125097:146123025,"53,746.00",Legal Aid Payment Lower Crime,
MINISTRY OF JUSTICE,LEGAL AID AGENCY,28/12/2016,Lower Crime,LEGAL AID FUND,GALBRAITH BRANLEY SOLICITORS,1123802:146122505,"28,203.00",Legal Aid Payment Lower Crime,
MINISTRY OF JUSTICE,LEGAL AID AGENCY,28/12/2016,Lower Crime,LEGAL AID FUND,GAMMON PIERCY & GAIGER,1125796:146122815,"46,483.00",Legal Aid Payment Lower Crime,
MINISTRY OF JUSTICE,LEGAL AID AGENCY,28/12/2016,Higher Crime,LEGAL AID FUND,GARETH D HUGHES,1126120:146104101,"35,131.93",Legal Aid Payment Higher Crime,
MINISTRY OF JUSTICE,LEGAL AID AGENCY,07/12/2016,Higher Crime,LEGAL AID FUND,GARETH WEBB & CO LLP,1112383:145925753,"33,881.12",Legal Aid Payment Higher Crime,
MINISTRY OF JUSTICE,LEGAL AID AGENCY,28/12/2016,Legal Help,LEGAL AID FUND,GARRATTS,1123836:146121140,"28,219.00",Legal Aid Payment Legal Help,
MINISTRY OF JUSTICE,LEGAL AID AGENCY,07/12/2016,Civil Representation,LEGAL AID FUND,GARTSIDES,1113356:145929561,"31,006.57",Legal Aid Payment Civil Representation,
MINISTRY OF JUSTICE,LEGAL AID AGENCY,07/12/2016,Higher Crime,LEGAL AID FUND,GARTSIDES,1113356:145942472,"90,284.91",Legal Aid Payment Higher Crime,
MINISTRY OF JUSTICE,LEGAL AID AGENCY,28/12/2016,Lower Crime,LEGAL AID FUND,GEOFF WHITE & CO,1123544:146122799,"53,847.00",Legal Aid Payment Lower Crime,
MINISTRY OF JUSTICE,LEGAL AID AGENCY,28/12/2016,Lower Crime,LEGAL AID FUND,GEOFFREY FORRESTER & CO,1125635:146121965,"46,700.00",Legal Aid Payment Lower Crime,
MINISTRY OF JUSTICE,LEGAL AID AGENCY,14/12/2016,Higher Crime,LEGAL AID FUND,GERARD P DORAN,1115424:145984163,"33,433.42",Legal Aid Payment Higher Crime,
MINISTRY OF JUSTICE,LEGAL AID AGENCY,28/12/2016,Lower Crime,LEGAL AID FUND,GGP LAW LTD,1126697:146122360,"26,044.00",Legal Aid Payment Lower Crime,
MINISTRY OF JUSTICE,LEGAL AID AGENCY,28/12/2016,Lower Crime,LEGAL AID FUND,GHP LEGAL,1126934:146121761,"43,800.00",Legal Aid Payment Lower Crime,
MINISTRY OF JUSTICE,LEGAL AID AGENCY,21/12/2016,Higher Crime,LEGAL AID FUND,GLAISYERS LLP,1122056:146068709,"25,126.32",Legal Aid Payment Higher Crime,
MINISTRY OF JUSTICE,LEGAL AID AGENCY,28/12/2016,Lower Crime,LEGAL AID FUND,GLAISYERS LLP,1126809:146122911,"28,507.00",Legal Aid Payment Lower Crime,
MINISTRY OF JUSTICE,LEGAL AID AGENCY,28/12/2016,Legal Help,LEGAL AID FUND,GLEDHILL SOLICITORS,1127331:146120845,"51,902.00",Legal Aid Payment Legal Help,
MINISTRY OF JUSTICE,LEGAL AID AGENCY,28/12/2016,Higher Crime,LEGAL AID FUND,GOOD & CO SOLICITORS LLP-ADVOCATE,1124249:146094494,"33,711.94",Legal Aid Payment Higher Crime,
MINISTRY OF JUSTICE,LEGAL AID AGENCY,21/12/2016,Higher Crime,LEGAL AID FUND,GORDON SHINE & CO,1119657:146068936,"35,510.56",Legal Aid Payment Higher Crime,
MINISTRY OF JUSTICE,LEGAL AID AGENCY,07/12/2016,Higher Crime,LEGAL AID FUND,GRAHAM EVANS & PARTNERS LLP,1113383:145974954,"40,176.28",Legal Aid Payment Higher Crime,
MINISTRY OF JUSTICE,LEGAL AID AGENCY,28/12/2016,Lower Crime,LEGAL AID FUND,GRAHAM EVANS & PARTNERS LLP,1125705:146121753,"31,900.00",Legal Aid Payment Lower Crime,
MINISTRY OF JUSTICE,LEGAL AID AGENCY,07/12/2016,Civil Representation,LEGAL AID FUND,GRAHAME STOWE BATESON,1112516:145979220,"54,140.94",Legal Aid Payment Civil Representation,
MINISTRY OF JUSTICE,LEGAL AID AGENCY,28/12/2016,Legal Help,LEGAL AID FUND,GRAHAME STOWE BATESON,1125333:146121028,"31,777.00",Legal Aid Payment Legal Help,
MINISTRY OF JUSTICE,LEGAL AID AGENCY,07/12/2016,Civil Representation,LEGAL AID FUND,GRAHAME STOWE BATESON,1112516:145979221,"-53,830.94",Legal Aid Payment Civil Representation,
MINISTRY OF JUSTICE,LEGAL AID AGENCY,28/12/2016,Lower Crime,LEGAL AID FUND,GRECH GOODEN SOLICITORS LTD,1126777:146122339,"52,636.00",Legal Aid Payment Lower Crime,
MINISTRY OF JUSTICE,LEGAL AID AGENCY,28/12/2016,Legal Help,LEGAL AID FUND,GUILE NICHOLAS-INC DONALD GALBRAITH & CO,1126747:146120641,"73,400.00",Legal Aid Payment Legal Help,
MINISTRY OF JUSTICE,LEGAL AID AGENCY,28/12/2016,Lower Crime,LEGAL AID FUND,GURNEY HARDEN SOLICITORS,1123549:146122789,"50,863.00",Legal Aid Payment Lower Crime,
MINISTRY OF JUSTICE,LEGAL AID AGENCY,28/12/2016,Lower Crime,LEGAL AID FUND,GWB HARTHILLS LLP,1123573:146122650,"28,392.00",Legal Aid Payment Lower Crime,
MINISTRY OF JUSTICE,LEGAL AID AGENCY,28/12/2016,Lower Crime,LEGAL AID FUND,GWB HARTHILLS LLP,1126836:146122649,"33,912.00",Legal Aid Payment Lower Crime,
MINISTRY OF JUSTICE,LEGAL AID AGENCY,28/12/2016,Lower Crime,LEGAL AID FUND,H P GOWER SOLICITORS,1125137:146123078,"57,352.00",Legal Aid Payment Lower Crime,
MINISTRY OF JUSTICE,LEGAL AID AGENCY,28/12/2016,Legal Help,LEGAL AID FUND,HALLIDAY REEVES LAW FIRM,1123604:146121289,"32,584.00",Legal Aid Payment Legal Help,
MINISTRY OF JUSTICE,LEGAL AID AGENCY,28/12/2016,Lower Crime,LEGAL AID FUND,HAMER CHILDS,1127231:146122219,"25,000.00",Legal Aid Payment Lower Crime,
MINISTRY OF JUSTICE,LEGAL AID AGENCY,14/12/2016,Civil Representation,LEGAL AID FUND,HARDING EVANS LLP,1116603:145986586,"27,226.40",Legal Aid Payment Civil Representation,
MINISTRY OF JUSTICE,LEGAL AID AGENCY,28/12/2016,Lower Crime,LEGAL AID FUND,HARRIS CUFFARO & NICHOLS,1124027:146121811,"48,200.00",Legal Aid Payment Lower Crime,
MINISTRY OF JUSTICE,LEGAL AID AGENCY,14/12/2016,Higher Crime,LEGAL AID FUND,HARRIS SOLICITORS,1114712:145992202,"59,109.24",Legal Aid Payment Higher Crime,
MINISTRY OF JUSTICE,LEGAL AID AGENCY,14/12/2016,Higher Crime,LEGAL AID FUND,HARRIS SOLICITORS,1114712:145992286,"29,763.86",Legal Aid Payment Higher Crime,
MINISTRY OF JUSTICE,LEGAL AID AGENCY,14/12/2016,Higher Crime,LEGAL AID FUND,HARRIS SOLICITORS,1114712:145993543,"80,356.02",Legal Aid Payment Higher Crime,
MINISTRY OF JUSTICE,LEGAL AID AGENCY,28/12/2016,Higher Crime,LEGAL AID FUND,HARRIS SOLICITORS,1126654:146095663,"81,347.36",Legal Aid Payment Higher Crime,
MINISTRY OF JUSTICE,LEGAL AID AGENCY,28/12/2016,Higher Crime,LEGAL AID FUND,HARRIS SOLICITORS,1126654:146112428,"107,574.07",Legal Aid Payment Higher Crime,
MINISTRY OF JUSTICE,LEGAL AID AGENCY,28/12/2016,Lower Crime,LEGAL AID FUND,HASKELL & CO,1126734:146122787,"35,089.00",Legal Aid Payment Lower Crime,
MINISTRY OF JUSTICE,LEGAL AID AGENCY,28/12/2016,Lower Crime,LEGAL AID FUND,HAYES LAW SOLICITORS AND ADVOCATES LLP,1124536:146123180,"31,094.00",Legal Aid Payment Lower Crime,
MINISTRY OF JUSTICE,LEGAL AID AGENCY,28/12/2016,Lower Crime,LEGAL AID FUND,HDH LAW,1125123:146122248,"25,000.00",Legal Aid Payment Lower Crime,
MINISTRY OF JUSTICE,LEGAL AID AGENCY,28/12/2016,Lower Crime,LEGAL AID FUND,HE LAW LTD,1126635:146123111,"26,384.00",Legal Aid Payment Lower Crime,
MINISTRY OF JUSTICE,LEGAL AID AGENCY,28/12/2016,Lower Crime,LEGAL AID FUND,HEALEY COLBON,1123579:146121809,"27,300.00",Legal Aid Payment Lower Crime,
MINISTRY OF JUSTICE,LEGAL AID AGENCY,07/12/2016,Higher Crime,LEGAL AID FUND,HEDLEY SOLICITORS,1112132:145975130,"49,729.07",Legal Aid Payment Higher Crime,
MINISTRY OF JUSTICE,LEGAL AID AGENCY,07/12/2016,Higher Crime,LEGAL AID FUND,HEDLEY SOLICITORS,1112132:145975204,"37,604.50",Legal Aid Payment Higher Crime,
MINISTRY OF JUSTICE,LEGAL AID AGENCY,28/12/2016,Lower Crime,LEGAL AID FUND,HENNESSY & HAMMUDI,1126711:146122145,"50,000.00",Legal Aid Payment Lower Crime,
MINISTRY OF JUSTICE,LEGAL AID AGENCY,28/12/2016,Lower Crime,LEGAL AID FUND,HENRY HYAMS,1127153:146122680,"49,799.00",Legal Aid Payment Lower Crime,
MINISTRY OF JUSTICE,LEGAL AID AGENCY,28/12/2016,Lower Crime,LEGAL AID FUND,HENRY'S SOLICITORS LTD,1125311:146122774,"60,304.00",Legal Aid Payment Lower Crime,
MINISTRY OF JUSTICE,LEGAL AID AGENCY,28/12/2016,Lower Crime,LEGAL AID FUND,HERMANS,1125324:146122054,"27,200.00",Legal Aid Payment Lower Crime,
MINISTRY OF JUSTICE,LEGAL AID AGENCY,28/12/2016,Higher Crime,LEGAL AID FUND,HILL TWINE,1122854:146104278,"44,656.32",Legal Aid Payment Higher Crime,
MINISTRY OF JUSTICE,LEGAL AID AGENCY,28/12/2016,Lower Crime,LEGAL AID FUND,HILL TWINE,1122854:146123172,"26,629.00",Legal Aid Payment Lower Crime,
MINISTRY OF JUSTICE,LEGAL AID AGENCY,28/12/2016,Lower Crime,LEGAL AID FUND,HINE SOLICITORS,1125101:146123038,"57,390.00",Legal Aid Payment Lower Crime,
MINISTRY OF JUSTICE,LEGAL AID AGENCY,28/12/2016,Lower Crime,LEGAL AID FUND,HINE SOLICITORS,1125102:146123037,"64,000.00",Legal Aid Payment Lower Crime,
MINISTRY OF JUSTICE,LEGAL AID AGENCY,28/12/2016,Lower Crime,LEGAL AID FUND,HINE SOLICITORS,1125103:146123036,"51,796.00",Legal Aid Payment Lower Crime,
MINISTRY OF JUSTICE,LEGAL AID AGENCY,28/12/2016,Lower Crime,LEGAL AID FUND,HINE SOLICITORS,1125104:146123035,"32,932.00",Legal Aid Payment Lower Crime,
MINISTRY OF JUSTICE,LEGAL AID AGENCY,28/12/2016,Lower Crime,LEGAL AID FUND,HINE SOLICITORS,1126643:146123034,"50,148.00",Legal Aid Payment Lower Crime,
MINISTRY OF JUSTICE,LEGAL AID AGENCY,28/12/2016,Lower Crime,LEGAL AID FUND,HINE SOLICITORS,1126646:146123032,"35,736.00",Legal Aid Payment Lower Crime,
MINISTRY OF JUSTICE,LEGAL AID AGENCY,07/12/2016,Civil Representation,LEGAL AID FUND,HODGE JONES & ALLEN LLP,1113314:145940301,"27,346.00",Legal Aid Payment Civil Representation,
MINISTRY OF JUSTICE,LEGAL AID AGENCY,28/12/2016,Higher Crime,LEGAL AID FUND,HODGE JONES & ALLEN LLP,1124094:146041264,"79,593.87",Legal Aid Payment Higher Crime,
MINISTRY OF JUSTICE,LEGAL AID AGENCY,28/12/2016,Legal Help,LEGAL AID FUND,HODGE JONES & ALLEN LLP,1124094:146121104,"27,196.00",Legal Aid Payment Legal Help,
MINISTRY OF JUSTICE,LEGAL AID AGENCY,28/12/2016,Lower Crime,LEGAL AID FUND,HODGE JONES & ALLEN LLP,1124094:146122539,"82,788.00",Legal Aid Payment Lower Crime,
MINISTRY OF JUSTICE,LEGAL AID AGENCY,07/12/2016,Higher Crime,LEGAL AID FUND,HODGSON COULTHARD & CO,1113027:145975855,"87,343.87",Legal Aid Payment Higher Crime,
MINISTRY OF JUSTICE,LEGAL AID AGENCY,28/12/2016,Lower Crime,LEGAL AID FUND,HODGSON COULTHARD & CO,1125577:146122607,"30,003.00",Legal Aid Payment Lower Crime,
MINISTRY OF JUSTICE,LEGAL AID AGENCY,21/12/2016,Higher Crime,LEGAL AID FUND,HOGAN BROWN SOLICITORS,1119229:146068649,"27,006.40",Legal Aid Payment Higher Crime,
MINISTRY OF JUSTICE,LEGAL AID AGENCY,28/12/2016,Lower Crime,LEGAL AID FUND,HORSMAN SOLICITORS LTD,1125611:146122791,"26,656.00",Legal Aid Payment Lower Crime,
MINISTRY OF JUSTICE,LEGAL AID AGENCY,28/12/2016,Lower Crime,LEGAL AID FUND,HOWARD & BYRNE SOLICITORS,1126811:146122010,"43,000.00",Legal Aid Payment Lower Crime,
MINISTRY OF JUSTICE,LEGAL AID AGENCY,14/12/2016,Civil Representation,LEGAL AID FUND,HOWARD & CO,1116394:146005358,"37,257.88",Legal Aid Payment Civil Representation,
MINISTRY OF JUSTICE,LEGAL AID AGENCY,28/12/2016,Legal Help,LEGAL AID FUND,HOWE & CO,1126837:146121126,"59,904.00",Legal Aid Payment Legal Help,
MINISTRY OF JUSTICE,LEGAL AID AGENCY,14/12/2016,Higher Crime,LEGAL AID FUND,HOWELL & CO.,1116194:145992225,"52,726.34",Legal Aid Payment Higher Crime,
MINISTRY OF JUSTICE,LEGAL AID AGENCY,28/12/2016,Legal Help,LEGAL AID FUND,HOWELLS LLP,1123965:146120598,"34,800.00",Legal Aid Payment Legal Help,
MINISTRY OF JUSTICE,LEGAL AID AGENCY,28/12/2016,Lower Crime,LEGAL AID FUND,HOWELLS LLP,1123965:146121992,"52,900.00",Legal Aid Payment Lower Crime,
MINISTRY OF JUSTICE,LEGAL AID AGENCY,28/12/2016,Higher Crime,LEGAL AID FUND,HSR SOLICITORS,1125202:146104351,"38,211.75",Legal Aid Payment Higher Crime,
MINISTRY OF JUSTICE,LEGAL AID AGENCY,16/12/2016,Civil Representation,LEGAL AID FUND,HUGH JAMES,1118169:145997809,"-48,436.56",Legal Aid Payment Civil Representation,
MINISTRY OF JUSTICE,LEGAL AID AGENCY,21/12/2016,Higher Crime,LEGAL AID FUND,HUGHMANS,1122452:146051349,"26,754.78",Legal Aid Payment Higher Crime,
MINISTRY OF JUSTICE,LEGAL AID AGENCY,28/12/2016,Legal Help,LEGAL AID FUND,HUNT & COOMBS LLP,1125486:146120580,"32,200.00",Legal Aid Payment Legal Help,
MINISTRY OF JUSTICE,LEGAL AID AGENCY,14/12/2016,Higher Crime,LEGAL AID FUND,HURRAIRAH HARRIS SOLICITORS,1114705:145984180,"69,554.32",Legal Aid Payment Higher Crime,
MINISTRY OF JUSTICE,LEGAL AID AGENCY,21/12/2016,Higher Crime,LEGAL AID FUND,HURRAIRAH HARRIS SOLICITORS,1119147:146060659,"31,033.38",Legal Aid Payment Higher Crime,
MINISTRY OF JUSTICE,LEGAL AID AGENCY,28/12/2016,Lower Crime,LEGAL AID FUND,I B B SOLICITORS,1123693:146121873,"98,100.00",Legal Aid Payment Lower Crime,
MINISTRY OF JUSTICE,LEGAL AID AGENCY,14/12/2016,Higher Crime,LEGAL AID FUND,IMRAN KHAN & PARTNERS,1115187:145984075,"71,426.08",Legal Aid Payment Higher Crime,
MINISTRY OF JUSTICE,LEGAL AID AGENCY,21/12/2016,Higher Crime,LEGAL AID FUND,IMRAN KHAN & PARTNERS,1122482:146060981,"44,960.52",Legal Aid Payment Higher Crime,
MINISTRY OF JUSTICE,LEGAL AID AGENCY,28/12/2016,Lower Crime,LEGAL AID FUND,INGRAMS SOLICITORS,1125358:146122690,"28,397.00",Legal Aid Payment Lower Crime,
MINISTRY OF JUSTICE,LEGAL AID AGENCY,28/12/2016,Lower Crime,LEGAL AID FUND,INSTALAW,1122703:146123241,"35,177.00",Legal Aid Payment Lower Crime,
MINISTRY OF JUSTICE,LEGAL AID AGENCY,28/12/2016,Legal Help,LEGAL AID FUND,IRIS LAW SOLICITORS,1123482:146121417,"32,533.00",Legal Aid Payment Legal Help,
MINISTRY OF JUSTICE,LEGAL AID AGENCY,14/12/2016,Higher Crime,LEGAL AID FUND,IRVINE THANVI NATAS SOLICITORS,1117632:146012435,"127,029.30",Legal Aid Payment Higher Crime,
MINISTRY OF JUSTICE,LEGAL AID AGENCY,28/12/2016,Lower Crime,LEGAL AID FUND,IRVINE THANVI NATAS SOLICITORS,1125318:146121853,"70,400.00",Legal Aid Payment Lower Crime,
MINISTRY OF JUSTICE,LEGAL AID AGENCY,14/12/2016,Higher Crime,LEGAL AID FUND,IRVINE THANVI NATAS SOLICITORS,1117632:146012451,"-85,855.08",Legal Aid Payment Higher Crime,
MINISTRY OF JUSTICE,LEGAL AID AGENCY,14/12/2016,Higher Crime,LEGAL AID FUND,IRVINE THANVI NATAS SOLICITORS-ADVOCATE,1116889:145984400,"26,032.94",Legal Aid Payment Higher Crime,
MINISTRY OF JUSTICE,LEGAL AID AGENCY,28/12/2016,Lower Crime,LEGAL AID FUND,ISON HARRISON LTD,1125363:146122026,"26,200.00",Legal Aid Payment Lower Crime,
MINISTRY OF JUSTICE,LEGAL AID AGENCY,07/12/2016,Higher Crime,LEGAL AID FUND,J D SOLICITORS,1112423:145934955,"40,229.82",Legal Aid Payment Higher Crime,
MINISTRY OF JUSTICE,LEGAL AID AGENCY,28/12/2016,Lower Crime,LEGAL AID FUND,J D SOLICITORS,1123645:146122945,"36,031.00",Legal Aid Payment Lower Crime,
MINISTRY OF JUSTICE,LEGAL AID AGENCY,28/12/2016,Lower Crime,LEGAL AID FUND,J D SOLICITORS,1125117:146123006,"41,959.00",Legal Aid Payment Lower Crime,
MINISTRY OF JUSTICE,LEGAL AID AGENCY,14/12/2016,Higher Crime,LEGAL AID FUND,J D SPICER ZEB,1117910:145992265,"36,587.50",Legal Aid Payment Higher Crime,
MINISTRY OF JUSTICE,LEGAL AID AGENCY,28/12/2016,Higher Crime,LEGAL AID FUND,J D SPICER ZEB,1122799:146123821,"36,904.86",Legal Aid Payment Higher Crime,
MINISTRY OF JUSTICE,LEGAL AID AGENCY,28/12/2016,Lower Crime,LEGAL AID FUND,J D SPICER ZEB,1124097:146122500,"115,075.00",Legal Aid Payment Lower Crime,
MINISTRY OF JUSTICE,LEGAL AID AGENCY,20/12/2016,Civil Representation,LEGAL AID FUND,J STEPHEN WHITAKER,1118206:146082490,"-40,229.06",Legal Aid Payment Civil Representation,
MINISTRY OF JUSTICE,LEGAL AID AGENCY,07/12/2016,Higher Crime,LEGAL AID FUND,JABEEN AKHTAR,1111130:145942711,"37,201.44",Legal Aid Payment Higher Crime,
MINISTRY OF JUSTICE,LEGAL AID AGENCY,28/12/2016,Higher Crime,LEGAL AID FUND,JACOBS & TRICKS,1126054:146103326,"35,090.09",Legal Aid Payment Higher Crime,
MINISTRY OF JUSTICE,LEGAL AID AGENCY,28/12/2016,Higher Crime,LEGAL AID FUND,JAMES FLETCHER,1123421:146108643,"43,248.00",Legal Aid Payment Higher Crime,
MINISTRY OF JUSTICE,LEGAL AID AGENCY,14/12/2016,Higher Crime,LEGAL AID FUND,JAMES L BOURNE-ARTON,1115761:146037386,"37,200.00",Legal Aid Payment Higher Crime,
MINISTRY OF JUSTICE,LEGAL AID AGENCY,28/12/2016,Lower Crime,LEGAL AID FUND,JAMES MURRAY SOLICITORS,1125381:146122586,"29,052.00",Legal Aid Payment Lower Crime,
MINISTRY OF JUSTICE,LEGAL AID AGENCY,21/12/2016,Civil Representation,LEGAL AID FUND,JANE E CROWLEY QC,1120385:3000001323380034,"41,190.00",Legal Aid Payment Civil Representation,
MINISTRY OF JUSTICE,LEGAL AID AGENCY,14/12/2016,Higher Crime,LEGAL AID FUND,JANES SOLICITORS,1116479:145992966,"28,071.29",Legal Aid Payment Higher Crime,
MINISTRY OF JUSTICE,LEGAL AID AGENCY,21/12/2016,Higher Crime,LEGAL AID FUND,JANES SOLICITORS,1119480:146054850,"36,267.00",Legal Aid Payment Higher Crime,
MINISTRY OF JUSTICE,LEGAL AID AGENCY,21/12/2016,Higher Crime,LEGAL AID FUND,JANES SOLICITORS,1119480:146064378,"25,339.44",Legal Aid Payment Higher Crime,
MINISTRY OF JUSTICE,LEGAL AID AGENCY,21/12/2016,Higher Crime,LEGAL AID FUND,JANES SOLICITORS,1119480:146091381,"60,501.03",Legal Aid Payment Higher Crime,
MINISTRY OF JUSTICE,LEGAL AID AGENCY,21/12/2016,Higher Crime,LEGAL AID FUND,JANES SOLICITORS,1119480:146091800,"39,268.54",Legal Aid Payment Higher Crime,
MINISTRY OF JUSTICE,LEGAL AID AGENCY,21/12/2016,Higher Crime,LEGAL AID FUND,JANES SOLICITORS,1119480:146092104,"109,209.39",Legal Aid Payment Higher Crime,
MINISTRY OF JUSTICE,LEGAL AID AGENCY,28/12/2016,Higher Crime,LEGAL AID FUND,JANES SOLICITORS,1123999:146100220,"113,183.63",Legal Aid Payment Higher Crime,
MINISTRY OF JUSTICE,LEGAL AID AGENCY,28/12/2016,Higher Crime,LEGAL AID FUND,JANES SOLICITORS,1123999:146108559,"116,638.50",Legal Aid Payment Higher Crime,
MINISTRY OF JUSTICE,LEGAL AID AGENCY,28/12/2016,Civil Representation,LEGAL AID FUND,JAYNE A HARRILL,1123200:145998462,"109,382.40",Legal Aid Payment Civil Representation,
MINISTRY OF JUSTICE,LEGAL AID AGENCY,28/12/2016,Civil Representation,LEGAL AID FUND,JAYNE A HARRILL,1123200:146044441,"-44,193.60",Legal Aid Payment Civil Representation,
MINISTRY OF JUSTICE,LEGAL AID AGENCY,21/12/2016,Civil Representation,LEGAL AID FUND,JAYNE MCKENZIE SMITH LTD,1120767:146063483,"32,743.23",Legal Aid Payment Civil Representation,
MINISTRY OF JUSTICE,LEGAL AID AGENCY,14/12/2016,Higher Crime,LEGAL AID FUND,JEREMY P WAINWRIGHT,1114633:146011373,"33,614.66",Legal Aid Payment Higher Crime,
MINISTRY OF JUSTICE,LEGAL AID AGENCY,21/12/2016,Civil Representation,LEGAL AID FUND,JEREMY P WESTON,1120527:3000001497860030,"70,644.48",Legal Aid Payment Civil Representation,
MINISTRY OF JUSTICE,LEGAL AID AGENCY,14/12/2016,Higher Crime,LEGAL AID FUND,JERMAN SAMUELS & PEARSON LLP,1116295:146003352,"107,574.07",Legal Aid Payment Higher Crime,
MINISTRY OF JUSTICE,LEGAL AID AGENCY,28/12/2016,Lower Crime,LEGAL AID FUND,JERMAN SAMUELS & PEARSON LLP,1123782:146121817,"37,600.00",Legal Aid Payment Lower Crime,
MINISTRY OF JUSTICE,LEGAL AID AGENCY,28/12/2016,Lower Crime,LEGAL AID FUND,JERMAN SAMUELS & PEARSON LLP,1123783:146121816,"35,000.00",Legal Aid Payment Lower Crime,
MINISTRY OF JUSTICE,LEGAL AID AGENCY,28/12/2016,Legal Help,LEGAL AID FUND,JESSE DOUGLAS & AASKELLS SOLICITORS,1125822:146121082,"48,926.00",Legal Aid Payment Legal Help,
MINISTRY OF JUSTICE,LEGAL AID AGENCY,21/12/2016,Higher Crime,LEGAL AID FUND,JOAO ARSENIO,1120154:145884863,"31,084.44",Legal Aid Payment Higher Crime,
MINISTRY OF JUSTICE,LEGAL AID AGENCY,21/12/2016,Higher Crime,LEGAL AID FUND,JOAO ARSENIO,1120154:145875739,"-39,405.47",Legal Aid Payment Higher Crime,
MINISTRY OF JUSTICE,LEGAL AID AGENCY,07/12/2016,Civil Representation,LEGAL AID FUND,JOHANNE E DELAHUNTY QC,1110683:3000000866880017,"35,382.78",Legal Aid Payment Civil Representation,
MINISTRY OF JUSTICE,LEGAL AID AGENCY,28/12/2016,Civil Representation,LEGAL AID FUND,JOHANNE E DELAHUNTY QC,1123067:3000000866880019,"47,177.04",Legal Aid Payment Civil Representation,
MINISTRY OF JUSTICE,LEGAL AID AGENCY,28/12/2016,Lower Crime,LEGAL AID FUND,JOHN DELANEY & CO SOLICITORS,1125270:146122025,"30,000.00",Legal Aid Payment Lower Crime,
MINISTRY OF JUSTICE,LEGAL AID AGENCY,14/12/2016,Higher Crime,LEGAL AID FUND,JOHN FOSTER HARRISON,1117062:146037581,"73,920.00",Legal Aid Payment Higher Crime,
MINISTRY OF JUSTICE,LEGAL AID AGENCY,28/12/2016,Lower Crime,LEGAL AID FUND,JOHN FULLER & PARTNERS,1126688:146122412,"25,563.00",Legal Aid Payment Lower Crime,
MINISTRY OF JUSTICE,LEGAL AID AGENCY,14/12/2016,Higher Crime,LEGAL AID FUND,JOHN H SMITH,1117808:145983810,"30,815.96",Legal Aid Payment Higher Crime,
MINISTRY OF JUSTICE,LEGAL AID AGENCY,07/12/2016,Higher Crime,LEGAL AID FUND,JOHN L HIPKIN,1111728:145925867,"25,785.60",Legal Aid Payment Higher Crime,
MINISTRY OF JUSTICE,LEGAL AID AGENCY,28/12/2016,Lower Crime,LEGAL AID FUND,JOHN ONIONS SOLICITORS,1127232:146122898,"47,035.00",Legal Aid Payment Lower Crime,
MINISTRY OF JUSTICE,LEGAL AID AGENCY,28/12/2016,Civil Representation,LEGAL AID FUND,JOHN P GODFREY,1124774:146108915,"46,198.80",Legal Aid Payment Civil Representation,
MINISTRY OF JUSTICE,LEGAL AID AGENCY,14/12/2016,Higher Crime,LEGAL AID FUND,JOHN W WILLIAMS,1115654:145993269,"28,307.78",Legal Aid Payment Higher Crime,
MINISTRY OF JUSTICE,LEGAL AID AGENCY,28/12/2016,Lower Crime,LEGAL AID FUND,JONAS ROY BLOOM,1126798:146122212,"57,500.00",Legal Aid Payment Lower Crime,
MINISTRY OF JUSTICE,LEGAL AID AGENCY,07/12/2016,Higher Crime,LEGAL AID FUND,JONATHAN DUFFY,1110956:145952366,"41,007.84",Legal Aid Payment Higher Crime,
MINISTRY OF JUSTICE,LEGAL AID AGENCY,21/12/2016,Civil Representation,LEGAL AID FUND,JONATHANN C WILSON,1118706:3000001497860031,"43,125.12",Legal Aid Payment Civil Representation,
MINISTRY OF JUSTICE,LEGAL AID AGENCY,28/12/2016,Lower Crime,LEGAL AID FUND,JOSEPH HILL & CO,1123930:146122502,"44,565.00",Legal Aid Payment Lower Crime,
MINISTRY OF JUSTICE,LEGAL AID AGENCY,14/12/2016,Higher Crime,LEGAL AID FUND,JOSS TICEHURST,1114558:145983992,"33,465.89",Legal Aid Payment Higher Crime,
MINISTRY OF JUSTICE,LEGAL AID AGENCY,28/12/2016,Lower Crime,LEGAL AID FUND,JSP LAW LTD,1125155:146123075,"62,364.00",Legal Aid Payment Lower Crime,
MINISTRY OF JUSTICE,LEGAL AID AGENCY,07/12/2016,Civil Representation,LEGAL AID FUND,JUDY M CLAXTON,1111929:3000001166670005,"34,214.40",Legal Aid Payment Civil Representation,
MINISTRY OF JUSTICE,LEGAL AID AGENCY,28/12/2016,Higher Crime,LEGAL AID FUND,JULIA E G COX,1126567:146113166,"33,256.68",Legal Aid Payment Higher Crime,
MINISTRY OF JUSTICE,LEGAL AID AGENCY,07/12/2016,Higher Crime,LEGAL AID FUND,JULIAN A NUTTER,1111044:145943193,"27,297.26",Legal Aid Payment Higher Crime,
MINISTRY OF JUSTICE,LEGAL AID AGENCY,14/12/2016,Higher Crime,LEGAL AID FUND,K A SOLICITORS,1114696:146003278,"96,480.82",Legal Aid Payment Higher Crime,
MINISTRY OF JUSTICE,LEGAL AID AGENCY,28/12/2016,Lower Crime,LEGAL AID FUND,K LEGAL SOLICITORS,1126675:146123101,"38,660.00",Legal Aid Payment Lower Crime,
MINISTRY OF JUSTICE,LEGAL AID AGENCY,28/12/2016,Lower Crime,LEGAL AID FUND,KAIM TODNER SOLICITORS LIMITED,1125771:146122482,"26,590.00",Legal Aid Payment Lower Crime,
MINISTRY OF JUSTICE,LEGAL AID AGENCY,28/12/2016,Lower Crime,LEGAL AID FUND,KAIM TODNER SOLICITORS LIMITED,1125772:146122481,"45,810.00",Legal Aid Payment Lower Crime,
MINISTRY OF JUSTICE,LEGAL AID AGENCY,21/12/2016,Higher Crime,LEGAL AID FUND,KANGS SOLICITORS,1121044:146050102,"74,017.86",Legal Aid Payment Higher Crime,
MINISTRY OF JUSTICE,LEGAL AID AGENCY,28/12/2016,Higher Crime,LEGAL AID FUND,KANGS SOLICITORS,1125683:146104136,"26,698.10",Legal Aid Payment Higher Crime,
MINISTRY OF JUSTICE,LEGAL AID AGENCY,28/12/2016,Higher Crime,LEGAL AID FUND,KANGS SOLICITORS,1125683:146124341,"105,857.75",Legal Aid Payment Higher Crime,
MINISTRY OF JUSTICE,LEGAL AID AGENCY,28/12/2016,Higher Crime,LEGAL AID FUND,KARL J MASI,1122803:146108642,"43,248.00",Legal Aid Payment Higher Crime,
MINISTRY OF JUSTICE,LEGAL AID AGENCY,21/12/2016,Civil Representation,LEGAL AID FUND,KARL J ROWLEY,1119083:3000001215340005,"36,676.80",Legal Aid Payment Civil Representation,
MINISTRY OF JUSTICE,LEGAL AID AGENCY,28/12/2016,Lower Crime,LEGAL AID FUND,KEANEY WHITEHEAD PARTNERSHIP,1126766:146109480,"34,764.00",Legal Aid Payment Lower Crime,
MINISTRY OF JUSTICE,LEGAL AID AGENCY,07/12/2016,Higher Crime,LEGAL AID FUND,KEMPS SOLICITORS,1113183:145925354,"38,333.68",Legal Aid Payment Higher Crime,
MINISTRY OF JUSTICE,LEGAL AID AGENCY,28/12/2016,Lower Crime,LEGAL AID FUND,KEMPS SOLICITORS,1124037:146122708,"30,892.00",Legal Aid Payment Lower Crime,
MINISTRY OF JUSTICE,LEGAL AID AGENCY,28/12/2016,Higher Crime,LEGAL AID FUND,KEMPS-ADVOCATE,1124627:146124318,"31,449.00",Legal Aid Payment Higher Crime,
MINISTRY OF JUSTICE,LEGAL AID AGENCY,07/12/2016,Higher Crime,LEGAL AID FUND,KEPPE ROFER,1112774:145975195,"44,960.52",Legal Aid Payment Higher Crime,
MINISTRY OF JUSTICE,LEGAL AID AGENCY,28/12/2016,Lower Crime,LEGAL AID FUND,KESAR & CO SOLICITORS,1126671:146123103,"25,404.00",Legal Aid Payment Lower Crime,
MINISTRY OF JUSTICE,LEGAL AID AGENCY,07/12/2016,Higher Crime,LEGAL AID FUND,KHAN'S LAW FIRM LTD TA KK & CO,1112067:145934414,"39,263.80",Legal Aid Payment Higher Crime,
MINISTRY OF JUSTICE,LEGAL AID AGENCY,21/12/2016,Higher Crime,LEGAL AID FUND,KHAN'S LAW FIRM LTD TA KK & CO,1122026:146069684,"56,438.56",Legal Aid Payment Higher Crime,
MINISTRY OF JUSTICE,LEGAL AID AGENCY,14/12/2016,Higher Crime,LEGAL AID FUND,KIRSTIE WATSON,1117066:146037788,"37,200.00",Legal Aid Payment Higher Crime,
MINISTRY OF JUSTICE,LEGAL AID AGENCY,28/12/2016,Lower Crime,LEGAL AID FUND,KIRWANS,1125384:146122583,"70,926.00",Legal Aid Payment Lower Crime,
MINISTRY OF JUSTICE,LEGAL AID AGENCY,07/12/2016,Higher Crime,LEGAL AID FUND,KRISTINA HARRISON SOLICITORS,1113233:145933741,"25,031.74",Legal Aid Payment Higher Crime,
MINISTRY OF JUSTICE,LEGAL AID AGENCY,14/12/2016,Higher Crime,LEGAL AID FUND,KRISTINA HARRISON SOLICITORS,1115069:145983529,"56,315.62",Legal Aid Payment Higher Crime,
MINISTRY OF JUSTICE,LEGAL AID AGENCY,14/12/2016,Civil Representation,LEGAL AID FUND,KUNDERT SOLICITORS LLP,1115131:145998878,"28,262.14",Legal Aid Payment Civil Representation,
MINISTRY OF JUSTICE,LEGAL AID AGENCY,21/12/2016,Higher Crime,LEGAL AID FUND,L P EVANS SOLICITORS,1122054:146041628,"36,434.14",Legal Aid Payment Higher Crime,
MINISTRY OF JUSTICE,LEGAL AID AGENCY,21/12/2016,Higher Crime,LEGAL AID FUND,L P EVANS SOLICITORS,1122054:146060468,"25,370.29",Legal Aid Payment Higher Crime,
MINISTRY OF JUSTICE,LEGAL AID AGENCY,21/12/2016,Higher Crime,LEGAL AID FUND,L P EVANS SOLICITORS,1122054:146069660,"72,743.42",Legal Aid Payment Higher Crime,
MINISTRY OF JUSTICE,LEGAL AID AGENCY,07/12/2016,Higher Crime,LEGAL AID FUND,L T LAW,1112435:145933903,"31,021.67",Legal Aid Payment Higher Crime,
MINISTRY OF JUSTICE,LEGAL AID AGENCY,07/12/2016,Higher Crime,LEGAL AID FUND,LAHIFF & CO,1113539:145975111,"29,014.94",Legal Aid Payment Higher Crime,
MINISTRY OF JUSTICE,LEGAL AID AGENCY,28/12/2016,Lower Crime,LEGAL AID FUND,LANSBURY WORTHINGTON LTD,1124023:146121837,"54,900.00",Legal Aid Payment Lower Crime,
MINISTRY OF JUSTICE,LEGAL AID AGENCY,28/12/2016,Legal Help,LEGAL AID FUND,LAWANA & CO,1126695:146120626,"79,000.00",Legal Aid Payment Legal Help,
MINISTRY OF JUSTICE,LEGAL AID AGENCY,28/12/2016,Lower Crime,LEGAL AID FUND,LAWRENCE & CO,1123931:146121910,"65,000.00",Legal Aid Payment Lower Crime,
MINISTRY OF JUSTICE,LEGAL AID AGENCY,28/12/2016,Legal Help,LEGAL AID FUND,LAWRENCE LUPIN SOLICITORS LTD,1126899:146121079,"86,029.00",Legal Aid Payment Legal Help,
MINISTRY OF JUSTICE,LEGAL AID AGENCY,14/12/2016,Higher Crime,LEGAL AID FUND,LAWTONS SOLICITORS LTD,1114724:146029568,"27,019.18",Legal Aid Payment Higher Crime,
MINISTRY OF JUSTICE,LEGAL AID AGENCY,28/12/2016,Lower Crime,LEGAL AID FUND,LAWTONS SOLICITORS LTD,1123681:146121806,"25,000.00",Legal Aid Payment Lower Crime,
MINISTRY OF JUSTICE,LEGAL AID AGENCY,28/12/2016,Lower Crime,LEGAL AID FUND,LAWTONS SOLICITORS LTD,1125127:146122252,"85,000.00",Legal Aid Payment Lower Crime,
MINISTRY OF JUSTICE,LEGAL AID AGENCY,28/12/2016,Legal Help,LEGAL AID FUND,LEI DAT BAIG SOLICITORS LIMITED,1123511:146121418,"48,267.00",Legal Aid Payment Legal Help,
MINISTRY OF JUSTICE,LEGAL AID AGENCY,07/12/2016,Higher Crime,LEGAL AID FUND,LEON KAZAKOS,1111027:145925300,"29,451.41",Legal Aid Payment Higher Crime,
MINISTRY OF JUSTICE,LEGAL AID AGENCY,28/12/2016,Higher Crime,LEGAL AID FUND,LESLEY LENORA JANE ROWLEY,1123282:146112947,"30,839.14",Legal Aid Payment Higher Crime,
MINISTRY OF JUSTICE,LEGAL AID AGENCY,28/12/2016,Lower Crime,LEGAL AID FUND,LESLIE FRANKS SOLICITORS,1125198:146122542,"103,202.00",Legal Aid Payment Lower Crime,
MINISTRY OF JUSTICE,LEGAL AID AGENCY,21/12/2016,Civil Representation,LEGAL AID FUND,LESLIE J SAMUELS QC,1120201:3000000700650013,"59,432.40",Legal Aid Payment Civil Representation,
MINISTRY OF JUSTICE,LEGAL AID AGENCY,28/12/2016,Lower Crime,LEGAL AID FUND,LEVY & CO SOLICITORS LLP,1126691:146121818,"42,100.00",Legal Aid Payment Lower Crime,
MINISTRY OF JUSTICE,LEGAL AID AGENCY,21/12/2016,Higher Crime,LEGAL AID FUND,LEWIS NEDAS & CO,1119566:146061057,"39,263.80",Legal Aid Payment Higher Crime,
MINISTRY OF JUSTICE,LEGAL AID AGENCY,28/12/2016,Higher Crime,LEGAL AID FUND,LEWIS NEDAS & CO,1127351:146113153,"59,109.24",Legal Aid Payment Higher Crime,
MINISTRY OF JUSTICE,LEGAL AID AGENCY,21/12/2016,Higher Crime,LEGAL AID FUND,LHD SOLICITORS LTD,1119187:146069681,"80,841.39",Legal Aid Payment Higher Crime,
MINISTRY OF JUSTICE,LEGAL AID AGENCY,28/12/2016,Lower Crime,LEGAL AID FUND,LHD SOLICITORS LTD,1123696:146122041,"30,000.00",Legal Aid Payment Lower Crime,
MINISTRY OF JUSTICE,LEGAL AID AGENCY,07/12/2016,Civil Representation,LEGAL AID FUND,LIANNE C MURPHY,1111948:145878880,"30,288.06",Legal Aid Payment Civil Representation,
MINISTRY OF JUSTICE,LEGAL AID AGENCY,28/12/2016,Civil Representation,LEGAL AID FUND,LIANNE C MURPHY,1126535:146047361,"27,777.60",Legal Aid Payment Civil Representation,
MINISTRY OF JUSTICE,LEGAL AID AGENCY,28/12/2016,Civil Representation,LEGAL AID FUND,LIANNE C MURPHY,1126535:146047384,"-30,288.06",Legal Aid Payment Civil Representation,
MINISTRY OF JUSTICE,LEGAL AID AGENCY,28/12/2016,Legal Help,LEGAL AID FUND,LISA MARIE MCNULTY SOLICITOR,1125407:146121155,"33,942.00",Legal Aid Payment Legal Help,
MINISTRY OF JUSTICE,LEGAL AID AGENCY,28/12/2016,Lower Crime,LEGAL AID FUND,LLM SOLICITORS (LONDON) LTD,1125124:146123091,"40,090.00",Legal Aid Payment Lower Crime,
MINISTRY OF JUSTICE,LEGAL AID AGENCY,28/12/2016,Lower Crime,LEGAL AID FUND,LLOYD & ROWE,1127273:146121756,"43,000.00",Legal Aid Payment Lower Crime,
MINISTRY OF JUSTICE,LEGAL AID AGENCY,14/12/2016,Higher Crime,LEGAL AID FUND,LLOYDS PR SOLICITORS,1117545:145993519,"104,104.42",Legal Aid Payment Higher Crime,
MINISTRY OF JUSTICE,LEGAL AID AGENCY,28/12/2016,Lower Crime,LEGAL AID FUND,LLOYDS PR SOLICITORS,1123576:146122414,"26,588.00",Legal Aid Payment Lower Crime,
MINISTRY OF JUSTICE,LEGAL AID AGENCY,07/12/2016,Civil Representation,LEGAL AID FUND,LOVSEY MARSH,1113362:145937820,"46,142.82",Legal Aid Payment Civil Representation,
MINISTRY OF JUSTICE,LEGAL AID AGENCY,28/12/2016,Civil Representation,LEGAL AID FUND,LOVSEY MARSH,1124166:146098772,"46,651.13",Legal Aid Payment Civil Representation,
MINISTRY OF JUSTICE,LEGAL AID AGENCY,28/12/2016,Civil Representation,LEGAL AID FUND,LOVSEY MARSH,1124166:146098763,"-46,142.82",Legal Aid Payment Civil Representation,
MINISTRY OF JUSTICE,LEGAL AID AGENCY,28/12/2016,Lower Crime,LEGAL AID FUND,LUMB & MACGILL,1126848:146122014,"46,800.00",Legal Aid Payment Lower Crime,
MINISTRY OF JUSTICE,LEGAL AID AGENCY,07/12/2016,Higher Crime,LEGAL AID FUND,M & M SOLICITORS,1112354:145933941,"88,662.35",Legal Aid Payment Higher Crime,
MINISTRY OF JUSTICE,LEGAL AID AGENCY,21/12/2016,Higher Crime,LEGAL AID FUND,M & M SOLICITORS,1122122:146069130,"35,506.98",Legal Aid Payment Higher Crime,
MINISTRY OF JUSTICE,LEGAL AID AGENCY,28/12/2016,Lower Crime,LEGAL AID FUND,M B LAW LTD,1126757:146122494,"27,785.00",Legal Aid Payment Lower Crime,
MINISTRY OF JUSTICE,LEGAL AID AGENCY,28/12/2016,Legal Help,LEGAL AID FUND,M H LEGAL,1126867:146121223,"37,842.00",Legal Aid Payment Legal Help,
MINISTRY OF JUSTICE,LEGAL AID AGENCY,28/12/2016,Higher Crime,LEGAL AID FUND,M K LAW SOLICITORS LTD,1126625:146094428,"27,703.48",Legal Aid Payment Higher Crime,
MINISTRY OF JUSTICE,LEGAL AID AGENCY,28/12/2016,Lower Crime,LEGAL AID FUND,M K LAW SOLICITORS LTD,1126625:146123043,"66,645.00",Legal Aid Payment Lower Crime,
MINISTRY OF JUSTICE,LEGAL AID AGENCY,14/12/2016,Higher Crime,LEGAL AID FUND,MACAULEY SMITH  LTD,1116412:145984150,"61,828.98",Legal Aid Payment Higher Crime,
MINISTRY OF JUSTICE,LEGAL AID AGENCY,07/12/2016,Higher Crime,LEGAL AID FUND,MAIDMENTS LTD,1113235:145943284,"38,816.59",Legal Aid Payment Higher Crime,
MINISTRY OF JUSTICE,LEGAL AID AGENCY,07/12/2016,Higher Crime,LEGAL AID FUND,MAIDMENTS LTD,1113235:145952916,"52,704.13",Legal Aid Payment Higher Crime,
MINISTRY OF JUSTICE,LEGAL AID AGENCY,14/12/2016,Civil Representation,LEGAL AID FUND,MAITLAND-WALKER,1113922:145969561,"103,633.61",Legal Aid Payment Civil Representation,
MINISTRY OF JUSTICE,LEGAL AID AGENCY,21/12/2016,Civil Representation,LEGAL AID FUND,MAKIN DIXON SOLICITORS LTD,1120607:145999194,"46,766.30",Legal Aid Payment Civil Representation,
MINISTRY OF JUSTICE,LEGAL AID AGENCY,28/12/2016,Civil Representation,LEGAL AID FUND,MAKIN DIXON SOLICITORS LTD,1122834:3000001100370023,"32,492.40",Legal Aid Payment Civil Representation,
MINISTRY OF JUSTICE,LEGAL AID AGENCY,21/12/2016,Civil Representation,LEGAL AID FUND,MAKIN DIXON SOLICITORS LTD,1120607:146044416,"-25,920.00",Legal Aid Payment Civil Representation,
MINISTRY OF JUSTICE,LEGAL AID AGENCY,28/12/2016,Higher Crime,LEGAL AID FUND,MARC BROWN,1124498:146123847,"34,364.18",Legal Aid Payment Higher Crime,
MINISTRY OF JUSTICE,LEGAL AID AGENCY,14/12/2016,Higher Crime,LEGAL AID FUND,MARC DAVIES,1116834:145984039,"44,131.92",Legal Aid Payment Higher Crime,
MINISTRY OF JUSTICE,LEGAL AID AGENCY,28/12/2016,Higher Crime,LEGAL AID FUND,MARK JONES & PARTNERS,1126967:146124459,"54,070.67",Legal Aid Payment Higher Crime,
MINISTRY OF JUSTICE,LEGAL AID AGENCY,14/12/2016,Civil Representation,LEGAL AID FUND,MARK P BREALEY,1117999:145969602,"29,140.00",Legal Aid Payment Civil Representation,
MINISTRY OF JUSTICE,LEGAL AID AGENCY,21/12/2016,Higher Crime,LEGAL AID FUND,MARK R A FENHALLS,1120354:146050809,"73,738.30",Legal Aid Payment Higher Crime,
MINISTRY OF JUSTICE,LEGAL AID AGENCY,21/12/2016,Civil Representation,LEGAL AID FUND,MARK WHITEHALL,1121508:146038585,"48,455.28",Legal Aid Payment Civil Representation,
MINISTRY OF JUSTICE,LEGAL AID AGENCY,21/12/2016,Civil Representation,LEGAL AID FUND,MARK WHITEHALL,1121508:146044588,"-32,329.80",Legal Aid Payment Civil Representation,
MINISTRY OF JUSTICE,LEGAL AID AGENCY,21/12/2016,Higher Crime,LEGAL AID FUND,MARTIN J TAYLOR,1118753:146087342,"26,968.44",Legal Aid Payment Higher Crime,
MINISTRY OF JUSTICE,LEGAL AID AGENCY,28/12/2016,Lower Crime,LEGAL AID FUND,MARTIN MURRAY & ASSOCIATES,1124179:146122491,"66,117.00",Legal Aid Payment Lower Crime,
MINISTRY OF JUSTICE,LEGAL AID AGENCY,28/12/2016,Lower Crime,LEGAL AID FUND,MARTIN MURRAY & ASSOCIATES,1124237:146122830,"47,121.00",Legal Aid Payment Lower Crime,
MINISTRY OF JUSTICE,LEGAL AID AGENCY,07/12/2016,Higher Crime,LEGAL AID FUND,MARTIN R MCCARTHY,1111023:145975272,"40,798.32",Legal Aid Payment Higher Crime,
MINISTRY OF JUSTICE,LEGAL AID AGENCY,28/12/2016,Lower Crime,LEGAL AID FUND,MARTYN HEWETT,1124192:146122108,"33,900.00",Legal Aid Payment Lower Crime,
MINISTRY OF JUSTICE,LEGAL AID AGENCY,28/12/2016,Lower Crime,LEGAL AID FUND,MCCORMACKS LAW,1125151:146123019,"27,605.00",Legal Aid Payment Lower Crime,
MINISTRY OF JUSTICE,LEGAL AID AGENCY,21/12/2016,Higher Crime,LEGAL AID FUND,MCCORMICKS,1122158:146069666,"68,560.95",Legal Aid Payment Higher Crime,
MINISTRY OF JUSTICE,LEGAL AID AGENCY,14/12/2016,Higher Crime,LEGAL AID FUND,MCGANNS LAW LTD,1114835:146011821,"27,808.63",Legal Aid Payment Higher Crime,
MINISTRY OF JUSTICE,LEGAL AID AGENCY,28/12/2016,Lower Crime,LEGAL AID FUND,MCGANNS LAW LTD,1123659:146122384,"65,777.00",Legal Aid Payment Lower Crime,
MINISTRY OF JUSTICE,LEGAL AID AGENCY,14/12/2016,Higher Crime,LEGAL AID FUND,MCGRATH & CO SOLICITORS,1114819:146031204,"59,109.24",Legal Aid Payment Higher Crime,
MINISTRY OF JUSTICE,LEGAL AID AGENCY,28/12/2016,Lower Crime,LEGAL AID FUND,MCGRATH & CO SOLICITORS,1126800:146122211,"30,000.00",Legal Aid Payment Lower Crime,
MINISTRY OF JUSTICE,LEGAL AID AGENCY,21/12/2016,Civil Representation,LEGAL AID FUND,MCGUINNESS LEGAL,1118517:146055370,"25,639.82",Legal Aid Payment Civil Representation,
MINISTRY OF JUSTICE,LEGAL AID AGENCY,14/12/2016,Civil Representation,LEGAL AID FUND,MCMILLAN WILLIAMS SOLICITORS LTD,1115088:145835093,"26,119.85",Legal Aid Payment Civil Representation,
MINISTRY OF JUSTICE,LEGAL AID AGENCY,14/12/2016,Higher Crime,LEGAL AID FUND,MCMILLAN WILLIAMS SOLICITORS LTD,1115088:145984560,"71,191.13",Legal Aid Payment Higher Crime,
MINISTRY OF JUSTICE,LEGAL AID AGENCY,28/12/2016,Lower Crime,LEGAL AID FUND,MCMILLAN WILLIAMS SOLICITORS LTD,1125680:146121870,"62,200.00",Legal Aid Payment Lower Crime,
MINISTRY OF JUSTICE,LEGAL AID AGENCY,28/12/2016,Lower Crime,LEGAL AID FUND,MCSORLEY LEWIS LAW LTD,1124152:146122328,"36,366.00",Legal Aid Payment Lower Crime,
MINISTRY OF JUSTICE,LEGAL AID AGENCY,28/12/2016,Lower Crime,LEGAL AID FUND,MESSRS WATERFORDS SOLICITORS,1125721:146122513,"27,030.00",Legal Aid Payment Lower Crime,
MINISTRY OF JUSTICE,LEGAL AID AGENCY,28/12/2016,Higher Crime,LEGAL AID FUND,MESSRS WATERFORDS SOLICITORS,1125721:146124210,"32,554.20",Legal Aid Payment Higher Crime,
MINISTRY OF JUSTICE,LEGAL AID AGENCY,28/12/2016,Lower Crime,LEGAL AID FUND,METCALFE COPEMAN & PETTEFAR,1125471:146121831,"38,700.00",Legal Aid Payment Lower Crime,
MINISTRY OF JUSTICE,LEGAL AID AGENCY,21/12/2016,Higher Crime,LEGAL AID FUND,METRO LAW SOLICITORS LTD,1118286:146069656,"100,724.99",Legal Aid Payment Higher Crime,
MINISTRY OF JUSTICE,LEGAL AID AGENCY,21/12/2016,Higher Crime,LEGAL AID FUND,MICHAEL CARROLL & CO,1119360:146060635,"26,766.41",Legal Aid Payment Higher Crime,
MINISTRY OF JUSTICE,LEGAL AID AGENCY,07/12/2016,Higher Crime,LEGAL AID FUND,MICHAEL F A BORELLI QC,1111033:145933974,"55,325.00",Legal Aid Payment Higher Crime,
MINISTRY OF JUSTICE,LEGAL AID AGENCY,14/12/2016,Higher Crime,LEGAL AID FUND,MICHAEL J REED LTD,1117935:145983784,"33,480.23",Legal Aid Payment Higher Crime,
MINISTRY OF JUSTICE,LEGAL AID AGENCY,14/12/2016,Higher Crime,LEGAL AID FUND,MICHAEL MANSFIELD QC,1117484:146012297,"27,928.60",Legal Aid Payment Higher Crime,
MINISTRY OF JUSTICE,LEGAL AID AGENCY,28/12/2016,Lower Crime,LEGAL AID FUND,MICHAEL PURDON,1125592:146122618,"29,854.00",Legal Aid Payment Lower Crime,
MINISTRY OF JUSTICE,LEGAL AID AGENCY,07/12/2016,Higher Crime,LEGAL AID FUND,MICHAEL SALT SOLICITORS,1113127:145952991,"75,829.66",Legal Aid Payment Higher Crime,
MINISTRY OF JUSTICE,LEGAL AID AGENCY,28/12/2016,Civil Representation,LEGAL AID FUND,MICHAELS & CO LAW LTD,1124214:146082461,"26,423.11",Legal Aid Payment Civil Representation,
MINISTRY OF JUSTICE,LEGAL AID AGENCY,07/12/2016,Civil Representation,LEGAL AID FUND,MICHELMORES,1113413:213034,"30,156.90",Legal Aid Payment Civil Representation,
MINISTRY OF JUSTICE,LEGAL AID AGENCY,28/12/2016,Legal Help,LEGAL AID FUND,MIGRANT LEGAL PROJECT,1122820:146121605,"29,429.00",Legal Aid Payment Legal Help,
MINISTRY OF JUSTICE,LEGAL AID AGENCY,28/12/2016,Legal Help,LEGAL AID FUND,MIGRANT LEGAL PROJECT,1122821:146121606,"43,887.00",Legal Aid Payment Legal Help,
MINISTRY OF JUSTICE,LEGAL AID AGENCY,28/12/2016,Legal Help,LEGAL AID FUND,MIGRANT LEGAL PROJECT,1126062:146121503,"49,494.00",Legal Aid Payment Legal Help,
MINISTRY OF JUSTICE,LEGAL AID AGENCY,28/12/2016,Civil Representation,LEGAL AID FUND,MILES & PARTNERS LLP,1127118:146045085,"29,101.03",Legal Aid Payment Civil Representation,
MINISTRY OF JUSTICE,LEGAL AID AGENCY,28/12/2016,Legal Help,LEGAL AID FUND,MONTAGUE SOLICITORS LTD,1126602:146121428,"28,092.00",Legal Aid Payment Legal Help,
MINISTRY OF JUSTICE,LEGAL AID AGENCY,28/12/2016,Lower Crime,LEGAL AID FUND,MORGAN CULLEN & BALL LTD,1124582:146123149,"35,682.00",Legal Aid Payment Lower Crime,
MINISTRY OF JUSTICE,LEGAL AID AGENCY,07/12/2016,Civil Representation,LEGAL AID FUND,MORTIMERS SOLICITORS,1112617:145946964,"31,815.99",Legal Aid Payment Civil Representation,
MINISTRY OF JUSTICE,LEGAL AID AGENCY,28/12/2016,Lower Crime,LEGAL AID FUND,MPR SOLICITORS LLP,1127050:146121921,"30,500.00",Legal Aid Payment Lower Crime,
MINISTRY OF JUSTICE,LEGAL AID AGENCY,28/12/2016,Lower Crime,LEGAL AID FUND,MURRAY BRANKIN,1124541:146122258,"30,000.00",Legal Aid Payment Lower Crime,
MINISTRY OF JUSTICE,LEGAL AID AGENCY,28/12/2016,Higher Crime,LEGAL AID FUND,MURRAYS PARTNERSHIP SOLICITORS,1124038:146111978,"69,837.02",Legal Aid Payment Higher Crime,
MINISTRY OF JUSTICE,LEGAL AID AGENCY,28/12/2016,Lower Crime,LEGAL AID FUND,MURRAYS SOLICITORS LTD,1125242:146122671,"69,334.00",Legal Aid Payment Lower Crime,
MINISTRY OF JUSTICE,LEGAL AID AGENCY,28/12/2016,Lower Crime,LEGAL AID FUND,MUSTOE SHORTER SOLICITORS & ADVOCATES,1125416:146122884,"25,277.00",Legal Aid Payment Lower Crime,
MINISTRY OF JUSTICE,LEGAL AID AGENCY,23/12/2016,Civil Representation,LEGAL AID FUND,NAOMI MARIA MADDERSON,1122655:144943093,"-28,114.30",Legal Aid Payment Civil Representation,
MINISTRY OF JUSTICE,LEGAL AID AGENCY,21/12/2016,Civil Representation,LEGAL AID FUND,NASH & CO SOLICITORS LLP,1122441:145879402,"-25,872.00",Legal Aid Payment Civil Representation,
MINISTRY OF JUSTICE,LEGAL AID AGENCY,14/12/2016,Civil Representation,LEGAL AID FUND,NATALIA W PERRETT,1117353:146005362,"30,327.48",Legal Aid Payment Civil Representation,
MINISTRY OF JUSTICE,LEGAL AID AGENCY,28/12/2016,Civil Representation,LEGAL AID FUND,NATIONAL FAMILY MEDIATION,1123445:146123399,"27,545.00",Legal Aid Payment Civil Representation,
MINISTRY OF JUSTICE,LEGAL AID AGENCY,28/12/2016,Lower Crime,LEGAL AID FUND,NEEDHAM POULIER LTD,1123750:146122570,"30,015.00",Legal Aid Payment Lower Crime,
MINISTRY OF JUSTICE,LEGAL AID AGENCY,07/12/2016,Higher Crime,LEGAL AID FUND,NELSON GUEST & PARTNERS,1113552:145952340,"31,417.93",Legal Aid Payment Higher Crime,
MINISTRY OF JUSTICE,LEGAL AID AGENCY,28/12/2016,Lower Crime,LEGAL AID FUND,NELSON GUEST & PARTNERS,1124185:146122496,"38,632.00",Legal Aid Payment Lower Crime,
MINISTRY OF JUSTICE,LEGAL AID AGENCY,14/12/2016,Higher Crime,LEGAL AID FUND,NEUMANS LLP,1114834:146003271,"114,848.41",Legal Aid Payment Higher Crime,
MINISTRY OF JUSTICE,LEGAL AID AGENCY,28/12/2016,Lower Crime,LEGAL AID FUND,NEUMANS LLP,1123657:146122462,"32,452.00",Legal Aid Payment Lower Crime,
MINISTRY OF JUSTICE,LEGAL AID AGENCY,07/12/2016,Higher Crime,LEGAL AID FUND,NEWTON LAW PRACTICE,1112265:145942353,"35,842.82",Legal Aid Payment Higher Crime,
MINISTRY OF JUSTICE,LEGAL AID AGENCY,21/12/2016,Higher Crime,LEGAL AID FUND,NICHOLA J CAFFERKEY,1121224:146068795,"33,870.89",Legal Aid Payment Higher Crime,
MINISTRY OF JUSTICE,LEGAL AID AGENCY,21/12/2016,Civil Representation,LEGAL AID FUND,NICHOLAS A J GOODWIN,1118869:3000001085810015,"27,442.80",Legal Aid Payment Civil Representation,
MINISTRY OF JUSTICE,LEGAL AID AGENCY,14/12/2016,Higher Crime,LEGAL AID FUND,NICHOLAS R A CORSELLIS,1115789:145992326,"38,344.08",Legal Aid Payment Higher Crime,
MINISTRY OF JUSTICE,LEGAL AID AGENCY,14/12/2016,Higher Crime,LEGAL AID FUND,NIGEL R EDWARDS,1117067:146037579,"43,880.00",Legal Aid Payment Higher Crime,
MINISTRY OF JUSTICE,LEGAL AID AGENCY,21/12/2016,Civil Representation,LEGAL AID FUND,NKUMBE EKANEY QC,1120392:145999325,"57,380.40",Legal Aid Payment Civil Representation,
MINISTRY OF JUSTICE,LEGAL AID AGENCY,21/12/2016,Civil Representation,LEGAL AID FUND,NKUMBE EKANEY QC,1120392:146044415,"-41,164.20",Legal Aid Payment Civil Representation,
MINISTRY OF JUSTICE,LEGAL AID AGENCY,14/12/2016,Higher Crime,LEGAL AID FUND,NOBLE SOLICITORS,1114953:145999517,"58,688.31",Legal Aid Payment Higher Crime,
MINISTRY OF JUSTICE,LEGAL AID AGENCY,28/12/2016,Lower Crime,LEGAL AID FUND,NOBLE SOLICITORS,1123559:146122420,"57,480.00",Legal Aid Payment Lower Crime,
MINISTRY OF JUSTICE,LEGAL AID AGENCY,28/12/2016,Legal Help,LEGAL AID FUND,NOBLE SOLICITORS,1123806:146121286,"34,170.00",Legal Aid Payment Legal Help,
MINISTRY OF JUSTICE,LEGAL AID AGENCY,28/12/2016,Lower Crime,LEGAL AID FUND,NOBLE SOLICITORS,1126628:146122984,"32,558.00",Legal Aid Payment Lower Crime,
MINISTRY OF JUSTICE,LEGAL AID AGENCY,21/12/2016,Civil Representation,LEGAL AID FUND,NORTHWOOD LAW PRACTICE LTD,1122359:145997997,"26,772.41",Legal Aid Payment Civil Representation,
MINISTRY OF JUSTICE,LEGAL AID AGENCY,14/12/2016,Higher Crime,LEGAL AID FUND,NUMBER ONE LAW LLP,1117574:145993515,"74,540.38",Legal Aid Payment Higher Crime,
MINISTRY OF JUSTICE,LEGAL AID AGENCY,28/12/2016,Lower Crime,LEGAL AID FUND,NUMBER ONE LAW LLP,1123531:146122959,"35,153.00",Legal Aid Payment Lower Crime,
MINISTRY OF JUSTICE,LEGAL AID AGENCY,28/12/2016,Lower Crime,LEGAL AID FUND,OBW PERERA LTD,1126788:146121827,"29,000.00",Legal Aid Payment Lower Crime,
MINISTRY OF JUSTICE,LEGAL AID AGENCY,28/12/2016,Legal Help,LEGAL AID FUND,O'DONNELLS SOLICITORS,1126881:146121152,"31,841.00",Legal Aid Payment Legal Help,
MINISTRY OF JUSTICE,LEGAL AID AGENCY,14/12/2016,Higher Crime,LEGAL AID FUND,O'KEEFFE SOLICITORS,1115189:146003277,"83,417.17",Legal Aid Payment Higher Crime,
MINISTRY OF JUSTICE,LEGAL AID AGENCY,21/12/2016,Higher Crime,LEGAL AID FUND,O'KEEFFE SOLICITORS,1122484:146041943,"97,258.75",Legal Aid Payment Higher Crime,
MINISTRY OF JUSTICE,LEGAL AID AGENCY,28/12/2016,Higher Crime,LEGAL AID FUND,O'KEEFFE SOLICITORS,1125821:146094948,"44,496.66",Legal Aid Payment Higher Crime,
MINISTRY OF JUSTICE,LEGAL AID AGENCY,14/12/2016,Higher Crime,LEGAL AID FUND,OLIVER C J SAXBY,1116067:146030995,"27,756.98",Legal Aid Payment Higher Crime,
MINISTRY OF JUSTICE,LEGAL AID AGENCY,28/12/2016,Lower Crime,LEGAL AID FUND,OLIVER D'SA SOLICITORS,1127245:146122371,"39,435.00",Legal Aid Payment Lower Crime,
MINISTRY OF JUSTICE,LEGAL AID AGENCY,14/12/2016,Higher Crime,LEGAL AID FUND,OLLIERS SOLICITORS LTD,1116276:145997741,"99,664.61",Legal Aid Payment Higher Crime,
MINISTRY OF JUSTICE,LEGAL AID AGENCY,28/12/2016,Lower Crime,LEGAL AID FUND,OLLIERS SOLICITORS LTD,1126922:146122733,"26,936.00",Legal Aid Payment Lower Crime,
MINISTRY OF JUSTICE,LEGAL AID AGENCY,21/12/2016,Higher Crime,LEGAL AID FUND,ONE LEGAL SERVICES LTD,1121113:146051211,"26,844.49",Legal Aid Payment Higher Crime,
MINISTRY OF JUSTICE,LEGAL AID AGENCY,28/12/2016,Lower Crime,LEGAL AID FUND,ONE LEGAL SERVICES LTD,1124318:146116796,"29,098.52",Legal Aid Payment Lower Crime,
MINISTRY OF JUSTICE,LEGAL AID AGENCY,28/12/2016,Lower Crime,LEGAL AID FUND,O'NEILL WRIGHT & NASH,1126655:146122971,"41,258.00",Legal Aid Payment Lower Crime,
MINISTRY OF JUSTICE,LEGAL AID AGENCY,28/12/2016,Lower Crime,LEGAL AID FUND,ONUMA & CO LLP,1122715:146123250,"34,712.00",Legal Aid Payment Lower Crime,
MINISTRY OF JUSTICE,LEGAL AID AGENCY,14/12/2016,Higher Crime,LEGAL AID FUND,OPUS LAW,1116248:145988307,"139,830.83",Legal Aid Payment Higher Crime,
MINISTRY OF JUSTICE,LEGAL AID AGENCY,28/12/2016,Lower Crime,LEGAL AID FUND,ORACLE SOLICITORS,1126952:146122550,"39,006.00",Legal Aid Payment Lower Crime,
MINISTRY OF JUSTICE,LEGAL AID AGENCY,28/12/2016,Legal Help,LEGAL AID FUND,OTTEN PENNA LTD,1125401:146120674,"29,000.00",Legal Aid Payment Legal Help,
MINISTRY OF JUSTICE,LEGAL AID AGENCY,28/12/2016,Lower Crime,LEGAL AID FUND,OWEN NASH & CO,1124085:146122222,"41,000.00",Legal Aid Payment Lower Crime,
MINISTRY OF JUSTICE,LEGAL AID AGENCY,28/12/2016,Lower Crime,LEGAL AID FUND,OWEN WHITE & CATLIN,1124183:146121888,"26,500.00",Legal Aid Payment Lower Crime,
MINISTRY OF JUSTICE,LEGAL AID AGENCY,28/12/2016,Lower Crime,LEGAL AID FUND,PALMERS CRIMINAL DEFENCE SOLICITORS,1125195:146122109,"28,100.00",Legal Aid Payment Lower Crime,
MINISTRY OF JUSTICE,LEGAL AID AGENCY,28/12/2016,Legal Help,LEGAL AID FUND,PARAGON LAW LTD,1126866:146120746,"40,000.00",Legal Aid Payment Legal Help,
MINISTRY OF JUSTICE,LEGAL AID AGENCY,28/12/2016,Civil Representation,LEGAL AID FUND,PARDOES SOLICITORS LLP,1123538:146106861,"31,056.11",Legal Aid Payment Civil Representation,
MINISTRY OF JUSTICE,LEGAL AID AGENCY,28/12/2016,Lower Crime,LEGAL AID FUND,PARKER BIRD WHITELEY,1125210:146122668,"32,491.00",Legal Aid Payment Lower Crime,
MINISTRY OF JUSTICE,LEGAL AID AGENCY,14/12/2016,Higher Crime,LEGAL AID FUND,PARLBYS SOLCITORS,1117674:145993349,"26,719.37",Legal Aid Payment Higher Crime,
MINISTRY OF JUSTICE,LEGAL AID AGENCY,21/12/2016,Higher Crime,LEGAL AID FUND,PARRY WELCH LACEY LLP,1122046:146086657,"29,884.85",Legal Aid Payment Higher Crime,
MINISTRY OF JUSTICE,LEGAL AID AGENCY,21/12/2016,Higher Crime,LEGAL AID FUND,PARRY WELCH LACEY LLP,1122046:146086687,"25,722.47",Legal Aid Payment Higher Crime,
MINISTRY OF JUSTICE,LEGAL AID AGENCY,07/12/2016,Higher Crime,LEGAL AID FUND,PATTICHI HILL & CROQUES LTD,1112559:145930979,"36,093.76",Legal Aid Payment Higher Crime,
MINISTRY OF JUSTICE,LEGAL AID AGENCY,14/12/2016,Higher Crime,LEGAL AID FUND,PATTICHI HILL & CROQUES LTD,1116274:146003320,"110,056.69",Legal Aid Payment Higher Crime,
MINISTRY OF JUSTICE,LEGAL AID AGENCY,07/12/2016,Civil Representation,LEGAL AID FUND,PAUL A LOPEZ,1112041:145937824,"36,164.40",Legal Aid Payment Civil Representation,
MINISTRY OF JUSTICE,LEGAL AID AGENCY,07/12/2016,Civil Representation,LEGAL AID FUND,PAUL A LOPEZ,1112041:144760053,"-25,793.52",Legal Aid Payment Civil Representation,
MINISTRY OF JUSTICE,LEGAL AID AGENCY,07/12/2016,Civil Representation,LEGAL AID FUND,PAUL CROWLEY & CO SOLICITORS LTD,1110230:3000000842260001,"34,075.22",Legal Aid Payment Civil Representation,
MINISTRY OF JUSTICE,LEGAL AID AGENCY,21/12/2016,Civil Representation,LEGAL AID FUND,PAUL M STOREY QC,1118654:145998465,"90,687.60",Legal Aid Payment Civil Representation,
MINISTRY OF JUSTICE,LEGAL AID AGENCY,21/12/2016,Civil Representation,LEGAL AID FUND,PAUL M STOREY QC,1118654:146044448,"-92,307.60",Legal Aid Payment Civil Representation,
MINISTRY OF JUSTICE,LEGAL AID AGENCY,21/12/2016,Higher Crime,LEGAL AID FUND,PAUL MARTIN & CO,1120724:146061059,"29,039.88",Legal Aid Payment Higher Crime,
MINISTRY OF JUSTICE,LEGAL AID AGENCY,28/12/2016,Higher Crime,LEGAL AID FUND,PAUL R DUNKELS QC,1124922:146124423,"40,110.95",Legal Aid Payment Higher Crime,
MINISTRY OF JUSTICE,LEGAL AID AGENCY,21/12/2016,Higher Crime,LEGAL AID FUND,PAUL S BOGAN,1120394:146086674,"57,379.90",Legal Aid Payment Higher Crime,
MINISTRY OF JUSTICE,LEGAL AID AGENCY,28/12/2016,Lower Crime,LEGAL AID FUND,PEARSON CAULFIELD,1125634:146122623,"26,813.00",Legal Aid Payment Lower Crime,
MINISTRY OF JUSTICE,LEGAL AID AGENCY,28/12/2016,Legal Help,LEGAL AID FUND,PETER EDWARDS LAW LTD,1126875:146120620,"59,200.00",Legal Aid Payment Legal Help,
MINISTRY OF JUSTICE,LEGAL AID AGENCY,28/12/2016,Higher Crime,LEGAL AID FUND,PETER J DOYLE QC,1126521:146095532,"25,862.76",Legal Aid Payment Higher Crime,
MINISTRY OF JUSTICE,LEGAL AID AGENCY,07/12/2016,Higher Crime,LEGAL AID FUND,PETER L GUEST,1111035:145925212,"32,480.45",Legal Aid Payment Higher Crime,
MINISTRY OF JUSTICE,LEGAL AID AGENCY,28/12/2016,Higher Crime,LEGAL AID FUND,PETER L GUEST,1123168:146112781,"31,934.02",Legal Aid Payment Higher Crime,
MINISTRY OF JUSTICE,LEGAL AID AGENCY,07/12/2016,Civil Representation,LEGAL AID FUND,PETER ROTHERY,1111338:3000001560300011,"27,086.40",Legal Aid Payment Civil Representation,
MINISTRY OF JUSTICE,LEGAL AID AGENCY,14/12/2016,Higher Crime,LEGAL AID FUND,PETHERBRIDGE BASSRA SOLICITORS LTD,1117651:145983714,"49,729.07",Legal Aid Payment Higher Crime,
MINISTRY OF JUSTICE,LEGAL AID AGENCY,14/12/2016,Higher Crime,LEGAL AID FUND,PLATT HALPERN,1114881:145993670,"55,995.01",Legal Aid Payment Higher Crime,
MINISTRY OF JUSTICE,LEGAL AID AGENCY,28/12/2016,Lower Crime,LEGAL AID FUND,POOLE ALCOCK LLP,1126979:146122726,"28,271.00",Legal Aid Payment Lower Crime,
MINISTRY OF JUSTICE,LEGAL AID AGENCY,28/12/2016,Civil Representation,LEGAL AID FUND,POONHAM BHARI,1122872:146116399,"53,550.46",Legal Aid Payment Civil Representation,
MINISTRY OF JUSTICE,LEGAL AID AGENCY,14/12/2016,Higher Crime,LEGAL AID FUND,POTTER DERBY SOLICITORS,1116464:146003312,"107,574.07",Legal Aid Payment Higher Crime,
MINISTRY OF JUSTICE,LEGAL AID AGENCY,28/12/2016,Lower Crime,LEGAL AID FUND,POTTER SHELLEY & CO,1126759:146122458,"25,374.00",Legal Aid Payment Lower Crime,
MINISTRY OF JUSTICE,LEGAL AID AGENCY,21/12/2016,Higher Crime,LEGAL AID FUND,POWELL SPENCER AND PARTNERS,1121006:146051035,"46,121.78",Legal Aid Payment Higher Crime,
MINISTRY OF JUSTICE,LEGAL AID AGENCY,28/12/2016,Lower Crime,LEGAL AID FUND,POWELL SPENCER AND PARTNERS,1124098:146121854,"42,600.00",Legal Aid Payment Lower Crime,
MINISTRY OF JUSTICE,LEGAL AID AGENCY,28/12/2016,Lower Crime,LEGAL AID FUND,PURCELL PARKER LTD,1123815:146122213,"110,300.00",Legal Aid Payment Lower Crime,
MINISTRY OF JUSTICE,LEGAL AID AGENCY,28/12/2016,Legal Help,LEGAL AID FUND,QS JACKSON CANTER LTD,1123045:146115765,"99,000.00",Legal Aid Payment Legal Help,
MINISTRY OF JUSTICE,LEGAL AID AGENCY,28/12/2016,Lower Crime,LEGAL AID FUND,QS JACKSON CANTER LTD,1123045:146123151,"66,162.00",Legal Aid Payment Lower Crime,
MINISTRY OF JUSTICE,LEGAL AID AGENCY,07/12/2016,Civil Representation,LEGAL AID FUND,QUALITY SOLICITORS ABNEY GARSDEN,1112663:145921139,"29,946.58",Legal Aid Payment Civil Representation,
MINISTRY OF JUSTICE,LEGAL AID AGENCY,28/12/2016,Legal Help,LEGAL AID FUND,QUALITY SOLICITORS CMHT,1124167:146120816,"34,434.00",Legal Aid Payment Legal Help,
MINISTRY OF JUSTICE,LEGAL AID AGENCY,14/12/2016,Civil Representation,LEGAL AID FUND,QUALITYSOLICITORS CHARLESWORTH NICHOLL,1116583:146037792,"56,005.56",Legal Aid Payment Civil Representation,
MINISTRY OF JUSTICE,LEGAL AID AGENCY,14/12/2016,Civil Representation,LEGAL AID FUND,QUALITYSOLICITORS CHARLESWORTH NICHOLL,1116583:145929012,"-44,354.26",Legal Aid Payment Civil Representation,
MINISTRY OF JUSTICE,LEGAL AID AGENCY,28/12/2016,Lower Crime,LEGAL AID FUND,QUALITYSOLICITORS HPJV,1125703:146122303,"27,172.00",Legal Aid Payment Lower Crime,
MINISTRY OF JUSTICE,LEGAL AID AGENCY,21/12/2016,Higher Crime,LEGAL AID FUND,QUALITYSOLICITORS JOHN DONKIN,1122251:146091782,"252,714.30",Legal Aid Payment Higher Crime,
MINISTRY OF JUSTICE,LEGAL AID AGENCY,28/12/2016,Lower Crime,LEGAL AID FUND,QUALITYSOLICITORS JONES ROBERTSON,1123762:146122695,"28,398.00",Legal Aid Payment Lower Crime,
MINISTRY OF JUSTICE,LEGAL AID AGENCY,14/12/2016,Higher Crime,LEGAL AID FUND,QUALITYSOLICITORS WRAGG MARK-BELL,1115079:146011989,"31,359.62",Legal Aid Payment Higher Crime,
MINISTRY OF JUSTICE,LEGAL AID AGENCY,21/12/2016,Higher Crime,LEGAL AID FUND,QUALITYSOLICITORS WRAGG MARK-BELL,1122391:146068748,"78,965.97",Legal Aid Payment Higher Crime,
MINISTRY OF JUSTICE,LEGAL AID AGENCY,28/12/2016,Higher Crime,LEGAL AID FUND,QUINN MELVILLE,1123755:146095541,"63,592.23",Legal Aid Payment Higher Crime,
MINISTRY OF JUSTICE,LEGAL AID AGENCY,07/12/2016,Civil Representation,LEGAL AID FUND,RACHEL A LANGDALE QC,1110896:3000000414380013,"44,922.00",Legal Aid Payment Civil Representation,
MINISTRY OF JUSTICE,LEGAL AID AGENCY,14/12/2016,Higher Crime,LEGAL AID FUND,RACHEL Z DARBY,1116108:145983723,"41,373.36",Legal Aid Payment Higher Crime,
MINISTRY OF JUSTICE,LEGAL AID AGENCY,28/12/2016,Higher Crime,LEGAL AID FUND,RAHMAN RAVELLI SOLICTORS LTD,1125421:146112050,"54,485.74",Legal Aid Payment Higher Crime,
MINISTRY OF JUSTICE,LEGAL AID AGENCY,28/12/2016,Higher Crime,LEGAL AID FUND,RAHMAN RAVELLI SOLICTORS LTD,1125421:146123814,"45,231.62",Legal Aid Payment Higher Crime,
MINISTRY OF JUSTICE,LEGAL AID AGENCY,07/12/2016,Higher Crime,LEGAL AID FUND,RALPH & CO LLP,1113480:145975508,"49,022.62",Legal Aid Payment Higher Crime,
MINISTRY OF JUSTICE,LEGAL AID AGENCY,28/12/2016,Civil Representation,LEGAL AID FUND,RAMSDENS SOLICITORS LLP,1123530:146115339,"25,318.35",Legal Aid Payment Civil Representation,
MINISTRY OF JUSTICE,LEGAL AID AGENCY,14/12/2016,Higher Crime,LEGAL AID FUND,RANDELL LLOYD & MARTIN SOLICITORS,1116607:146003253,"74,796.16",Legal Aid Payment Higher Crime,
MINISTRY OF JUSTICE,LEGAL AID AGENCY,07/12/2016,Civil Representation,LEGAL AID FUND,REBECCA FRANKLIN,1110720:145937825,"42,352.10",Legal Aid Payment Civil Representation,
MINISTRY OF JUSTICE,LEGAL AID AGENCY,28/12/2016,Lower Crime,LEGAL AID FUND,REECE THOMAS WATSON LTD,1122694:146123244,"27,953.00",Legal Aid Payment Lower Crime,
MINISTRY OF JUSTICE,LEGAL AID AGENCY,14/12/2016,Higher Crime,LEGAL AID FUND,REEDS SOLICITORS LTD,1114870:146030422,"65,816.64",Legal Aid Payment Higher Crime,
MINISTRY OF JUSTICE,LEGAL AID AGENCY,28/12/2016,Lower Crime,LEGAL AID FUND,REEDS SOLICITORS LTD,1122983:146123150,"36,732.00",Legal Aid Payment Lower Crime,
MINISTRY OF JUSTICE,LEGAL AID AGENCY,28/12/2016,Lower Crime,LEGAL AID FUND,REEDS SOLICITORS LTD,1123822:146122839,"60,785.00",Legal Aid Payment Lower Crime,
MINISTRY OF JUSTICE,LEGAL AID AGENCY,28/12/2016,Lower Crime,LEGAL AID FUND,REEDS SOLICITORS LTD,1124272:146123260,"38,902.00",Legal Aid Payment Lower Crime,
MINISTRY OF JUSTICE,LEGAL AID AGENCY,28/12/2016,Lower Crime,LEGAL AID FUND,REEDS SOLICITORS LTD,1125979:146123183,"28,634.00",Legal Aid Payment Lower Crime,
MINISTRY OF JUSTICE,LEGAL AID AGENCY,28/12/2016,Lower Crime,LEGAL AID FUND,REEDS SOLICITORS LTD,1126661:146123001,"33,185.00",Legal Aid Payment Lower Crime,
MINISTRY OF JUSTICE,LEGAL AID AGENCY,28/12/2016,Lower Crime,LEGAL AID FUND,REEVES  & CO SOLICITORS,1126765:146122790,"41,616.00",Legal Aid Payment Lower Crime,
MINISTRY OF JUSTICE,LEGAL AID AGENCY,28/12/2016,Lower Crime,LEGAL AID FUND,RENSHAW DERRICK & CO,1127324:146122849,"29,417.00",Legal Aid Payment Lower Crime,
MINISTRY OF JUSTICE,LEGAL AID AGENCY,28/12/2016,Higher Crime,LEGAL AID FUND,RH LAW LLP,1127169:146111866,"42,673.45",Legal Aid Payment Higher Crime,
MINISTRY OF JUSTICE,LEGAL AID AGENCY,28/12/2016,Higher Crime,LEGAL AID FUND,RIAZ SOLICITORS,1125239:146123976,"36,029.50",Legal Aid Payment Higher Crime,
MINISTRY OF JUSTICE,LEGAL AID AGENCY,28/12/2016,Lower Crime,LEGAL AID FUND,RICHARD BODY LAW LTD,1126964:146122107,"31,400.00",Legal Aid Payment Lower Crime,
MINISTRY OF JUSTICE,LEGAL AID AGENCY,07/12/2016,Higher Crime,LEGAL AID FUND,RICHARD GRIFFITHS & CO,1112850:145974913,"33,720.40",Legal Aid Payment Higher Crime,
MINISTRY OF JUSTICE,LEGAL AID AGENCY,21/12/2016,Higher Crime,LEGAL AID FUND,RICHARD HASWELL SOLICITORS LLP,1120940:146069652,"97,258.75",Legal Aid Payment Higher Crime,
MINISTRY OF JUSTICE,LEGAL AID AGENCY,28/12/2016,Lower Crime,LEGAL AID FUND,RICHARD HASWELL SOLICITORS LLP,1125630:146122616,"30,038.00",Legal Aid Payment Lower Crime,
MINISTRY OF JUSTICE,LEGAL AID AGENCY,28/12/2016,Higher Crime,LEGAL AID FUND,RICHARD HUTCHINGS,1124931:146095107,"27,329.29",Legal Aid Payment Higher Crime,
MINISTRY OF JUSTICE,LEGAL AID AGENCY,14/12/2016,Higher Crime,LEGAL AID FUND,RICHARD L SMITH QC,1115836:146002613,"41,142.65",Legal Aid Payment Higher Crime,
MINISTRY OF JUSTICE,LEGAL AID AGENCY,07/12/2016,Civil Representation,LEGAL AID FUND,RICHARD M A HADLEY,1111226:3000000567930011,"35,684.40",Legal Aid Payment Civil Representation,
MINISTRY OF JUSTICE,LEGAL AID AGENCY,21/12/2016,Higher Crime,LEGAL AID FUND,RICHARD T KEOGH,1121640:146050741,"44,555.28",Legal Aid Payment Higher Crime,
MINISTRY OF JUSTICE,LEGAL AID AGENCY,28/12/2016,Lower Crime,LEGAL AID FUND,RICHARDSON SOLICITORS,1125419:146122120,"27,700.00",Legal Aid Payment Lower Crime,
MINISTRY OF JUSTICE,LEGAL AID AGENCY,07/12/2016,Civil Representation,LEGAL AID FUND,RIDLEY & HALL LEGAL LTD,1112520:3000000910960005,"42,649.52",Legal Aid Payment Civil Representation,
MINISTRY OF JUSTICE,LEGAL AID AGENCY,21/12/2016,Civil Representation,LEGAL AID FUND,RIDLEY & HALL LEGAL LTD,1122094:3000000476130025,"58,806.78",Legal Aid Payment Civil Representation,
MINISTRY OF JUSTICE,LEGAL AID AGENCY,21/12/2016,Higher Crime,LEGAL AID FUND,RILEY HAYES & CO,1122174:146041582,"48,936.48",Legal Aid Payment Higher Crime,
MINISTRY OF JUSTICE,LEGAL AID AGENCY,28/12/2016,Higher Crime,LEGAL AID FUND,RILEY HAYES & CO,1123816:146094525,"51,322.28",Legal Aid Payment Higher Crime,
MINISTRY OF JUSTICE,LEGAL AID AGENCY,28/12/2016,Lower Crime,LEGAL AID FUND,RILEY HAYES & CO,1123816:146122237,"47,000.00",Legal Aid Payment Lower Crime,
MINISTRY OF JUSTICE,LEGAL AID AGENCY,14/12/2016,Higher Crime,LEGAL AID FUND,RMNJ SOLICITORS ***,1117710:146003205,"81,347.36",Legal Aid Payment Higher Crime,
MINISTRY OF JUSTICE,LEGAL AID AGENCY,28/12/2016,Lower Crime,LEGAL AID FUND,RMNJ SOLICITORS ***,1127059:146122582,"39,490.00",Legal Aid Payment Lower Crime,
MINISTRY OF JUSTICE,LEGAL AID AGENCY,28/12/2016,Lower Crime,LEGAL AID FUND,ROACH PITTIS,1125764:146122135,"26,400.00",Legal Aid Payment Lower Crime,
MINISTRY OF JUSTICE,LEGAL AID AGENCY,07/12/2016,Higher Crime,LEGAL AID FUND,ROBERT A P WOODCOCK QC,1111164:145952875,"40,467.97",Legal Aid Payment Higher Crime,
MINISTRY OF JUSTICE,LEGAL AID AGENCY,14/12/2016,Higher Crime,LEGAL AID FUND,ROBERT LIZAR,1116544:146012380,"60,272.49",Legal Aid Payment Higher Crime,
MINISTRY OF JUSTICE,LEGAL AID AGENCY,28/12/2016,Lower Crime,LEGAL AID FUND,ROBERT LIZAR,1127163:146122092,"35,000.00",Legal Aid Payment Lower Crime,
MINISTRY OF JUSTICE,LEGAL AID AGENCY,28/12/2016,Lower Crime,LEGAL AID FUND,ROBERTSON'S SOLICITORS,1125508:146122008,"48,500.00",Legal Aid Payment Lower Crime,
MINISTRY OF JUSTICE,LEGAL AID AGENCY,07/12/2016,Higher Crime,LEGAL AID FUND,RODERICK CARUS,1110769:145925271,"31,074.94",Legal Aid Payment Higher Crime,
MINISTRY OF JUSTICE,LEGAL AID AGENCY,21/12/2016,Civil Representation,LEGAL AID FUND,RODNEY WARREN & CO LTD,1119585:145998450,"104,412.39",Legal Aid Payment Civil Representation,
MINISTRY OF JUSTICE,LEGAL AID AGENCY,21/12/2016,Higher Crime,LEGAL AID FUND,RODNEY WARREN & CO LTD,1119585:146086921,"42,048.73",Legal Aid Payment Higher Crime,
MINISTRY OF JUSTICE,LEGAL AID AGENCY,28/12/2016,Lower Crime,LEGAL AID FUND,RODNEY WARREN & CO LTD,1127282:146122103,"66,500.00",Legal Aid Payment Lower Crime,
MINISTRY OF JUSTICE,LEGAL AID AGENCY,21/12/2016,Civil Representation,LEGAL AID FUND,RODNEY WARREN & CO LTD,1119585:146044443,"-75,086.10",Legal Aid Payment Civil Representation,
MINISTRY OF JUSTICE,LEGAL AID AGENCY,28/12/2016,Legal Help,LEGAL AID FUND,ROEBUCKS SOLICITORS,1124056:146121159,"28,959.00",Legal Aid Payment Legal Help,
MINISTRY OF JUSTICE,LEGAL AID AGENCY,28/12/2016,Lower Crime,LEGAL AID FUND,ROEBUCKS SOLICITORS,1124056:146122741,"28,146.00",Legal Aid Payment Lower Crime,
MINISTRY OF JUSTICE,LEGAL AID AGENCY,21/12/2016,Higher Crime,LEGAL AID FUND,RONALD FLETCHER BAKER LLP,1121081:146050116,"65,378.40",Legal Aid Payment Higher Crime,
MINISTRY OF JUSTICE,LEGAL AID AGENCY,28/12/2016,Lower Crime,LEGAL AID FUND,ROSS SOLICITORS LTD,1127337:146122177,"35,000.00",Legal Aid Payment Lower Crime,
MINISTRY OF JUSTICE,LEGAL AID AGENCY,28/12/2016,Higher Crime,LEGAL AID FUND,RUNDLEWALKER,1127342:146123543,"29,664.55",Legal Aid Payment Higher Crime,
MINISTRY OF JUSTICE,LEGAL AID AGENCY,28/12/2016,Lower Crime,LEGAL AID FUND,RUSSELL & RUSSELL SOLICITORS,1124070:146122698,"35,064.00",Legal Aid Payment Lower Crime,
MINISTRY OF JUSTICE,LEGAL AID AGENCY,14/12/2016,Higher Crime,LEGAL AID FUND,RUSTEM GUARDIAN SOLICITORS,1114830:146030469,"29,664.55",Legal Aid Payment Higher Crime,
MINISTRY OF JUSTICE,LEGAL AID AGENCY,14/12/2016,Civil Representation,LEGAL AID FUND,RUTH M KIRBY,1114273:146037826,"58,406.70",Legal Aid Payment Civil Representation,
MINISTRY OF JUSTICE,LEGAL AID AGENCY,05/12/2016,Civil Representation,LEGAL AID FUND,RUTH M KIRBY,1109486:145929015,"-52,344.60",Legal Aid Payment Civil Representation,
MINISTRY OF JUSTICE,LEGAL AID AGENCY,28/12/2016,Lower Crime,LEGAL AID FUND,S A LAW CHAMBERS SOLICITORS,1123792:146121846,"45,600.00",Legal Aid Payment Lower Crime,
MINISTRY OF JUSTICE,LEGAL AID AGENCY,28/12/2016,Higher Crime,LEGAL AID FUND,S SATHA & CO LTD,1127094:146103968,"61,232.35",Legal Aid Payment Higher Crime,
MINISTRY OF JUSTICE,LEGAL AID AGENCY,21/12/2016,Higher Crime,LEGAL AID FUND,SAKHI LEGAL SERVICES LTD,1119223:146059941,"55,809.38",Legal Aid Payment Higher Crime,
MINISTRY OF JUSTICE,LEGAL AID AGENCY,07/12/2016,Higher Crime,LEGAL AID FUND,SALHAN & CO LTD,1112454:145925709,"65,378.40",Legal Aid Payment Higher Crime,
MINISTRY OF JUSTICE,LEGAL AID AGENCY,21/12/2016,Higher Crime,LEGAL AID FUND,SALHAN & CO LTD,1120774:146050854,"81,347.36",Legal Aid Payment Higher Crime,
MINISTRY OF JUSTICE,LEGAL AID AGENCY,28/12/2016,Higher Crime,LEGAL AID FUND,SALLIE A BENNETT JENKINS QC,1124851:146123929,"37,914.47",Legal Aid Payment Higher Crime,
MINISTRY OF JUSTICE,LEGAL AID AGENCY,28/12/2016,Lower Crime,LEGAL AID FUND,SANSBURY DOUGLAS,1125113:146122244,"50,000.00",Legal Aid Payment Lower Crime,
MINISTRY OF JUSTICE,LEGAL AID AGENCY,21/12/2016,Civil Representation,LEGAL AID FUND,SARAH POPE,1121258:146063628,"27,075.60",Legal Aid Payment Civil Representation,
MINISTRY OF JUSTICE,LEGAL AID AGENCY,28/12/2016,Lower Crime,LEGAL AID FUND,SAUNDERS SOLICITORS LTD,1125814:146121907,"25,700.00",Legal Aid Payment Lower Crime,
MINISTRY OF JUSTICE,LEGAL AID AGENCY,14/12/2016,Higher Crime,LEGAL AID FUND,SBG SOLICITORS,1114672:146011560,"44,609.47",Legal Aid Payment Higher Crime,
MINISTRY OF JUSTICE,LEGAL AID AGENCY,07/12/2016,Civil Representation,LEGAL AID FUND,SBS SOLICITORS LTD,1112910:145929213,"38,963.39",Legal Aid Payment Civil Representation,
MINISTRY OF JUSTICE,LEGAL AID AGENCY,07/12/2016,Civil Representation,LEGAL AID FUND,SBS SOLICITORS LTD,1112910:145929335,"32,752.31",Legal Aid Payment Civil Representation,
MINISTRY OF JUSTICE,LEGAL AID AGENCY,21/12/2016,Civil Representation,LEGAL AID FUND,SBS SOLICITORS LTD,1119461:146053719,"39,206.95",Legal Aid Payment Civil Representation,
MINISTRY OF JUSTICE,LEGAL AID AGENCY,21/12/2016,Civil Representation,LEGAL AID FUND,SBS SOLICITORS LTD,1119461:146053723,"-38,963.39",Legal Aid Payment Civil Representation,
MINISTRY OF JUSTICE,LEGAL AID AGENCY,28/12/2016,Legal Help,LEGAL AID FUND,SCOTT-MONCRIEFF & ASSOCIATES LLP,1124232:146120646,"49,300.00",Legal Aid Payment Legal Help,
MINISTRY OF JUSTICE,LEGAL AID AGENCY,28/12/2016,Lower Crime,LEGAL AID FUND,SEDGWICK CHUDLEIGH MCKENN SOLICITORS,1126738:146122283,"30,579.00",Legal Aid Payment Lower Crime,
MINISTRY OF JUSTICE,LEGAL AID AGENCY,14/12/2016,Higher Crime,LEGAL AID FUND,SHAW GRAHAM KERSH,1116272:146025698,"68,868.78",Legal Aid Payment Higher Crime,
MINISTRY OF JUSTICE,LEGAL AID AGENCY,28/12/2016,Legal Help,LEGAL AID FUND,SHELTER.,1123614:146117904,"42,378.19",Legal Aid Payment Legal Help,
MINISTRY OF JUSTICE,LEGAL AID AGENCY,28/12/2016,Lower Crime,LEGAL AID FUND,SHEPHERD SOLICITORS LTD,1123578:146122771,"25,555.00",Legal Aid Payment Lower Crime,
MINISTRY OF JUSTICE,LEGAL AID AGENCY,14/12/2016,Civil Representation,LEGAL AID FUND,SIMA KOTHARI,1115938:3000000570780007,"39,787.20",Legal Aid Payment Civil Representation,
MINISTRY OF JUSTICE,LEGAL AID AGENCY,14/12/2016,Civil Representation,LEGAL AID FUND,SIMEON A MASKREY QC,1117099:145980599,"47,172.38",Legal Aid Payment Civil Representation,
MINISTRY OF JUSTICE,LEGAL AID AGENCY,28/12/2016,Higher Crime,LEGAL AID FUND,SIMON BETHEL SOLICITORS,1123557:146124365,"107,574.07",Legal Aid Payment Higher Crime,
MINISTRY OF JUSTICE,LEGAL AID AGENCY,14/12/2016,Higher Crime,LEGAL AID FUND,SIMON L BICKLER QC,1117064:146037385,"73,920.00",Legal Aid Payment Higher Crime,
MINISTRY OF JUSTICE,LEGAL AID AGENCY,21/12/2016,Higher Crime,LEGAL AID FUND,SIMPSON HEALD PEARSON,1122177:146086793,"28,893.14",Legal Aid Payment Higher Crime,
MINISTRY OF JUSTICE,LEGAL AID AGENCY,21/12/2016,Civil Representation,LEGAL AID FUND,SIMPSON MILLAR SOLICITORS LLP,1122338:146063800,"25,950.98",Legal Aid Payment Civil Representation,
MINISTRY OF JUSTICE,LEGAL AID AGENCY,28/12/2016,Legal Help,LEGAL AID FUND,SIMPSON MILLAR SOLICITORS LLP,1123518:146117902,"101,547.07",Legal Aid Payment Legal Help,
MINISTRY OF JUSTICE,LEGAL AID AGENCY,28/12/2016,Civil Representation,LEGAL AID FUND,SIMPSON MILLAR SOLICITORS LLP,1124435:3000000562850005,"32,281.42",Legal Aid Payment Civil Representation,
MINISTRY OF JUSTICE,LEGAL AID AGENCY,28/12/2016,Lower Crime,LEGAL AID FUND,SJ LAW SOLICITORS,1125413:146122507,"48,836.00",Legal Aid Payment Lower Crime,
MINISTRY OF JUSTICE,LEGAL AID AGENCY,14/12/2016,Higher Crime,LEGAL AID FUND,SMITH & DAWSON,1115084:146003230,"69,796.06",Legal Aid Payment Higher Crime,
MINISTRY OF JUSTICE,LEGAL AID AGENCY,28/12/2016,Lower Crime,LEGAL AID FUND,SMITH & DAWSON,1125673:146122900,"25,364.00",Legal Aid Payment Lower Crime,
MINISTRY OF JUSTICE,LEGAL AID AGENCY,28/12/2016,Lower Crime,LEGAL AID FUND,SMITH PARTNERSHIP,1126826:146121791,"63,700.00",Legal Aid Payment Lower Crime,
MINISTRY OF JUSTICE,LEGAL AID AGENCY,28/12/2016,Lower Crime,LEGAL AID FUND,SMITH PARTNERSHIP,1126828:146121790,"33,300.00",Legal Aid Payment Lower Crime,
MINISTRY OF JUSTICE,LEGAL AID AGENCY,28/12/2016,Lower Crime,LEGAL AID FUND,SMITH PARTNERSHIP,1126830:146122217,"28,700.00",Legal Aid Payment Lower Crime,
MINISTRY OF JUSTICE,LEGAL AID AGENCY,28/12/2016,Higher Crime,LEGAL AID FUND,SMITHS SOLICITORS,1125244:146112099,"89,975.11",Legal Aid Payment Higher Crime,
MINISTRY OF JUSTICE,LEGAL AID AGENCY,07/12/2016,Higher Crime,LEGAL AID FUND,SONN MACMILLAN WALKER LTD,1113549:145931529,"40,332.00",Legal Aid Payment Higher Crime,
MINISTRY OF JUSTICE,LEGAL AID AGENCY,14/12/2016,Higher Crime,LEGAL AID FUND,SONN MACMILLAN WALKER LTD,1115136:146011190,"30,696.68",Legal Aid Payment Higher Crime,
MINISTRY OF JUSTICE,LEGAL AID AGENCY,28/12/2016,Lower Crime,LEGAL AID FUND,SONN MACMILLAN WALKER LTD,1124182:146121841,"58,500.00",Legal Aid Payment Lower Crime,
MINISTRY OF JUSTICE,LEGAL AID AGENCY,28/12/2016,Legal Help,LEGAL AID FUND,SOUTHERNS SOLICITORS,1125614:146121160,"27,898.00",Legal Aid Payment Legal Help,
MINISTRY OF JUSTICE,LEGAL AID AGENCY,14/12/2016,Higher Crime,LEGAL AID FUND,STEEL & SHAMASH,1117913:145999521,"39,737.50",Legal Aid Payment Higher Crime,
MINISTRY OF JUSTICE,LEGAL AID AGENCY,28/12/2016,Civil Representation,LEGAL AID FUND,STEPHANIE PERPLUS,1123389:3000001205740009,"29,123.72",Legal Aid Payment Civil Representation,
MINISTRY OF JUSTICE,LEGAL AID AGENCY,28/12/2016,Lower Crime,LEGAL AID FUND,STEPHEN BURDON SOLICITORS,1126900:146121785,"29,500.00",Legal Aid Payment Lower Crime,
MINISTRY OF JUSTICE,LEGAL AID AGENCY,21/12/2016,Civil Representation,LEGAL AID FUND,STEPHEN CHIPPECK,1121621:145980837,"66,897.32",Legal Aid Payment Civil Representation,
MINISTRY OF JUSTICE,LEGAL AID AGENCY,07/12/2016,Higher Crime,LEGAL AID FUND,STEPHEN FIDLER & CO,1112562:145933794,"65,378.40",Legal Aid Payment Higher Crime,
MINISTRY OF JUSTICE,LEGAL AID AGENCY,14/12/2016,Higher Crime,LEGAL AID FUND,STEPHEN LICKRISH & ASSOCIATES LTD,1114836:146003259,"92,099.90",Legal Aid Payment Higher Crime,
MINISTRY OF JUSTICE,LEGAL AID AGENCY,28/12/2016,Higher Crime,LEGAL AID FUND,STEPHEN O AKINSANYA,1122886:146124310,"30,346.80",Legal Aid Payment Higher Crime,
MINISTRY OF JUSTICE,LEGAL AID AGENCY,14/12/2016,Civil Representation,LEGAL AID FUND,STEPHEN P AINSLEY,1115820:145968636,"63,547.20",Legal Aid Payment Civil Representation,
MINISTRY OF JUSTICE,LEGAL AID AGENCY,14/12/2016,Civil Representation,LEGAL AID FUND,STEPHEN P AINSLEY,1115820:146005971,"-44,193.00",Legal Aid Payment Civil Representation,
MINISTRY OF JUSTICE,LEGAL AID AGENCY,28/12/2016,Lower Crime,LEGAL AID FUND,STEPHEN RIMMER LLP,1123827:146122106,"30,000.00",Legal Aid Payment Lower Crime,
MINISTRY OF JUSTICE,LEGAL AID AGENCY,21/12/2016,Civil Representation,LEGAL AID FUND,STEPHENS & SCOWN LLP,1119587:146038556,"44,148.43",Legal Aid Payment Civil Representation,
MINISTRY OF JUSTICE,LEGAL AID AGENCY,28/12/2016,Lower Crime,LEGAL AID FUND,STEPHENSONS SOLICITORS LLP,1127168:146122714,"38,090.00",Legal Aid Payment Lower Crime,
MINISTRY OF JUSTICE,LEGAL AID AGENCY,07/12/2016,Civil Representation,LEGAL AID FUND,STERNBERG REED SOLICITORS,1112239:145861679,"30,146.78",Legal Aid Payment Civil Representation,
MINISTRY OF JUSTICE,LEGAL AID AGENCY,28/12/2016,Civil Representation,LEGAL AID FUND,STERNBERG REED SOLICITORS,1123521:3000001025310010,"32,649.60",Legal Aid Payment Civil Representation,
MINISTRY OF JUSTICE,LEGAL AID AGENCY,28/12/2016,Lower Crime,LEGAL AID FUND,STERNBERG REED SOLICITORS,1123626:146121892,"55,000.00",Legal Aid Payment Lower Crime,
MINISTRY OF JUSTICE,LEGAL AID AGENCY,28/12/2016,Higher Crime,LEGAL AID FUND,STERNBERG REED SOLICITORS,1123626:146123946,"57,668.27",Legal Aid Payment Higher Crime,
MINISTRY OF JUSTICE,LEGAL AID AGENCY,28/12/2016,Lower Crime,LEGAL AID FUND,STEVEN YOUNG & CO INC ROWBIS,1125315:146122880,"37,209.00",Legal Aid Payment Lower Crime,
MINISTRY OF JUSTICE,LEGAL AID AGENCY,28/12/2016,Lower Crime,LEGAL AID FUND,STEVENS SOLICITORS,1124000:146122207,"39,000.00",Legal Aid Payment Lower Crime,
MINISTRY OF JUSTICE,LEGAL AID AGENCY,28/12/2016,Lower Crime,LEGAL AID FUND,STEVENS SOLICITORS,1124002:146122201,"60,000.00",Legal Aid Payment Lower Crime,
MINISTRY OF JUSTICE,LEGAL AID AGENCY,28/12/2016,Lower Crime,LEGAL AID FUND,STEVENS SOLICITORS,1124003:146122200,"74,500.00",Legal Aid Payment Lower Crime,
MINISTRY OF JUSTICE,LEGAL AID AGENCY,14/12/2016,Higher Crime,LEGAL AID FUND,STOKOE PARTNERSHIP,1114743:146003302,"68,560.95",Legal Aid Payment Higher Crime,
MINISTRY OF JUSTICE,LEGAL AID AGENCY,28/12/2016,Lower Crime,LEGAL AID FUND,STOKOE PARTNERSHIP,1125775:146122497,"25,912.00",Legal Aid Payment Lower Crime,
MINISTRY OF JUSTICE,LEGAL AID AGENCY,28/12/2016,Lower Crime,LEGAL AID FUND,STUART MILLER SOLICITORS LTD,1125605:146122540,"115,058.00",Legal Aid Payment Lower Crime,
MINISTRY OF JUSTICE,LEGAL AID AGENCY,28/12/2016,Higher Crime,LEGAL AID FUND,STUART MILLER SOLICITORS LTD,1125605:146124309,"97,258.75",Legal Aid Payment Higher Crime,
MINISTRY OF JUSTICE,LEGAL AID AGENCY,07/12/2016,Civil Representation,LEGAL AID FUND,SULTAN LLOYD SOLICITORS LTD,1112534:145863404,"-30,013.75",Legal Aid Payment Civil Representation,
MINISTRY OF JUSTICE,LEGAL AID AGENCY,14/12/2016,Higher Crime,LEGAL AID FUND,SUNDIP MURRIA SOLICITORS,1114850:146030584,"41,090.11",Legal Aid Payment Higher Crime,
MINISTRY OF JUSTICE,LEGAL AID AGENCY,07/12/2016,Civil Representation,LEGAL AID FUND,SUSAN C CAMPBELL QC,1110999:3000001472600007,"33,679.80",Legal Aid Payment Civil Representation,
MINISTRY OF JUSTICE,LEGAL AID AGENCY,07/12/2016,Civil Representation,LEGAL AID FUND,SUSAN GROCOTT QC,1111347:3000001560300012,"39,916.80",Legal Aid Payment Civil Representation,
MINISTRY OF JUSTICE,LEGAL AID AGENCY,28/12/2016,Lower Crime,LEGAL AID FUND,SUSSEX DEFENCE SOLICITORS,1126709:146122123,"37,000.00",Legal Aid Payment Lower Crime,
MINISTRY OF JUSTICE,LEGAL AID AGENCY,28/12/2016,Legal Help,LEGAL AID FUND,SUTOVIC & HARTIGAN,1125833:146120652,"34,300.00",Legal Aid Payment Legal Help,
MINISTRY OF JUSTICE,LEGAL AID AGENCY,28/12/2016,Lower Crime,LEGAL AID FUND,SWAIN & CO SOLICITORS LLP,1125316:146122128,"38,300.00",Legal Aid Payment Lower Crime,
MINISTRY OF JUSTICE,LEGAL AID AGENCY,28/12/2016,Legal Help,LEGAL AID FUND,SWAIN & CO SOLICITORS LLP,1125317:146120762,"35,000.00",Legal Aid Payment Legal Help,
MINISTRY OF JUSTICE,LEGAL AID AGENCY,14/12/2016,Higher Crime,LEGAL AID FUND,SWINBURNE SNOWBALL & JACKSON,1117815:146002376,"70,119.10",Legal Aid Payment Higher Crime,
MINISTRY OF JUSTICE,LEGAL AID AGENCY,07/12/2016,Civil Representation,LEGAL AID FUND,SWITALSKI'S SOLICITORS LTD,1112924:3000001465910005,"29,793.77",Legal Aid Payment Civil Representation,
MINISTRY OF JUSTICE,LEGAL AID AGENCY,21/12/2016,Civil Representation,LEGAL AID FUND,SWITALSKI'S SOLICITORS LTD,1122257:146064886,"31,996.74",Legal Aid Payment Civil Representation,
MINISTRY OF JUSTICE,LEGAL AID AGENCY,28/12/2016,Civil Representation,LEGAL AID FUND,SWITALSKI'S SOLICITORS LTD,1122774:3000001291330002,"31,669.87",Legal Aid Payment Civil Representation,
MINISTRY OF JUSTICE,LEGAL AID AGENCY,28/12/2016,Legal Help,LEGAL AID FUND,SWITALSKI'S SOLICITORS LTD,1123973:146121003,"83,066.00",Legal Aid Payment Legal Help,
MINISTRY OF JUSTICE,LEGAL AID AGENCY,28/12/2016,Civil Representation,LEGAL AID FUND,SYMES BAINS BROOMER,1123918:146108898,"41,299.66",Legal Aid Payment Civil Representation,
MINISTRY OF JUSTICE,LEGAL AID AGENCY,14/12/2016,Civil Representation,LEGAL AID FUND,T LLEWELLYN JONES,1116608:144987425,"25,600.29",Legal Aid Payment Civil Representation,
MINISTRY OF JUSTICE,LEGAL AID AGENCY,28/12/2016,Lower Crime,LEGAL AID FUND,T S LAW LTD,1124570:146122257,"25,000.00",Legal Aid Payment Lower Crime,
MINISTRY OF JUSTICE,LEGAL AID AGENCY,28/12/2016,Lower Crime,LEGAL AID FUND,T S LAW LTD,1125411:146121893,"25,000.00",Legal Aid Payment Lower Crime,
MINISTRY OF JUSTICE,LEGAL AID AGENCY,14/12/2016,Civil Representation,LEGAL AID FUND,T V EDWARDS LLP,1117786:146006053,"32,564.23",Legal Aid Payment Civil Representation,
MINISTRY OF JUSTICE,LEGAL AID AGENCY,14/12/2016,Civil Representation,LEGAL AID FUND,T V EDWARDS LLP,1117786:146006337,"56,129.30",Legal Aid Payment Civil Representation,
MINISTRY OF JUSTICE,LEGAL AID AGENCY,21/12/2016,Higher Crime,LEGAL AID FUND,T V EDWARDS LLP,1120942:146060807,"37,993.05",Legal Aid Payment Higher Crime,
MINISTRY OF JUSTICE,LEGAL AID AGENCY,28/12/2016,Legal Help,LEGAL AID FUND,T V EDWARDS LLP,1124024:146120629,"61,300.00",Legal Aid Payment Legal Help,
MINISTRY OF JUSTICE,LEGAL AID AGENCY,28/12/2016,Lower Crime,LEGAL AID FUND,T V EDWARDS LLP,1124024:146121891,"58,600.00",Legal Aid Payment Lower Crime,
MINISTRY OF JUSTICE,LEGAL AID AGENCY,21/12/2016,Legal Help,LEGAL AID FUND,T. A. LAW,1121993:146065119,"34,799.70",Legal Aid Payment Legal Help,
MINISTRY OF JUSTICE,LEGAL AID AGENCY,28/12/2016,Civil Representation,LEGAL AID FUND,TAYLOR & EMMET LLP SOLICITORS,1122658:8405361,"39,129.69",Legal Aid Payment Civil Representation,
MINISTRY OF JUSTICE,LEGAL AID AGENCY,28/12/2016,Lower Crime,LEGAL AID FUND,TAYLOR HALDANE BARLEX LLP,1122726:146123281,"45,548.00",Legal Aid Payment Lower Crime,
MINISTRY OF JUSTICE,LEGAL AID AGENCY,28/12/2016,Lower Crime,LEGAL AID FUND,TAYLOR HALDANE BARLEX LLP,1126916:146122448,"26,954.00",Legal Aid Payment Lower Crime,
MINISTRY OF JUSTICE,LEGAL AID AGENCY,28/12/2016,Lower Crime,LEGAL AID FUND,TAYLOR STREET SOLICITORS LLP,1127120:146122111,"61,700.00",Legal Aid Payment Lower Crime,
MINISTRY OF JUSTICE,LEGAL AID AGENCY,28/12/2016,Civil Representation,LEGAL AID FUND,TAYNTONS INC ROWBIS,1122764:146116284,"33,401.04",Legal Aid Payment Civil Representation,
MINISTRY OF JUSTICE,LEGAL AID AGENCY,02/12/2016,Civil Representation,LEGAL AID FUND,TEACHER STERN LLP,1109480:139854674,"-26,359.48",Legal Aid Payment Civil Representation,
MINISTRY OF JUSTICE,LEGAL AID AGENCY,05/12/2016,Civil Representation,LEGAL AID FUND,TEERTHA GUPTA QC,1109488:145929014,"-50,593.14",Legal Aid Payment Civil Representation,
MINISTRY OF JUSTICE,LEGAL AID AGENCY,28/12/2016,Lower Crime,LEGAL AID FUND,TEESSIDE LAW LTD,1124374:146123177,"31,326.00",Legal Aid Payment Lower Crime,
MINISTRY OF JUSTICE,LEGAL AID AGENCY,28/12/2016,Legal Help,LEGAL AID FUND,THALIWAL & CO LTD,1125348:146121221,"29,962.00",Legal Aid Payment Legal Help,
MINISTRY OF JUSTICE,LEGAL AID AGENCY,28/12/2016,Lower Crime,LEGAL AID FUND,THE CASTLE PARTNERSHIP,1126974:146122113,"37,000.00",Legal Aid Payment Lower Crime,
MINISTRY OF JUSTICE,LEGAL AID AGENCY,21/12/2016,Legal Help,LEGAL AID FUND,THE COMMUNITY LAW PARTNERSHIP LTD,1120705:146081647,"30,136.86",Legal Aid Payment Legal Help,
MINISTRY OF JUSTICE,LEGAL AID AGENCY,14/12/2016,Civil Representation,LEGAL AID FUND,THE D.M.PARTNERSHIP,1116327:3000000495000015,"27,122.65",Legal Aid Payment Civil Representation,
MINISTRY OF JUSTICE,LEGAL AID AGENCY,28/12/2016,Lower Crime,LEGAL AID FUND,THE FIRM LLP,1126767:146122234,"27,500.00",Legal Aid Payment Lower Crime,
MINISTRY OF JUSTICE,LEGAL AID AGENCY,14/12/2016,Lower Crime,LEGAL AID FUND,THE JOHNSON PARTNERSHIP,1116422:145998382,"28,457.66",Legal Aid Payment Lower Crime,
MINISTRY OF JUSTICE,LEGAL AID AGENCY,14/12/2016,Higher Crime,LEGAL AID FUND,THE JOHNSON PARTNERSHIP,1116422:146003000,"97,258.75",Legal Aid Payment Higher Crime,
MINISTRY OF JUSTICE,LEGAL AID AGENCY,28/12/2016,Lower Crime,LEGAL AID FUND,THE JOHNSON PARTNERSHIP,1125111:146122247,"40,000.00",Legal Aid Payment Lower Crime,
MINISTRY OF JUSTICE,LEGAL AID AGENCY,28/12/2016,Lower Crime,LEGAL AID FUND,THE JOHNSON PARTNERSHIP,1125546:146121783,"38,200.00",Legal Aid Payment Lower Crime,
MINISTRY OF JUSTICE,LEGAL AID AGENCY,28/12/2016,Lower Crime,LEGAL AID FUND,THE JOHNSON PARTNERSHIP,1125547:146121782,"34,000.00",Legal Aid Payment Lower Crime,
MINISTRY OF JUSTICE,LEGAL AID AGENCY,28/12/2016,Higher Crime,LEGAL AID FUND,THE JOHNSON PARTNERSHIP,1125548:146094414,"25,257.32",Legal Aid Payment Higher Crime,
MINISTRY OF JUSTICE,LEGAL AID AGENCY,28/12/2016,Lower Crime,LEGAL AID FUND,THE JOHNSON PARTNERSHIP,1125548:146121781,"190,000.00",Legal Aid Payment Lower Crime,
MINISTRY OF JUSTICE,LEGAL AID AGENCY,28/12/2016,Civil Representation,LEGAL AID FUND,THE RICHMOND PARTNERSHIP,1125566:146099018,"33,924.75",Legal Aid Payment Civil Representation,
MINISTRY OF JUSTICE,LEGAL AID AGENCY,28/12/2016,Lower Crime,LEGAL AID FUND,THOMAS BOYD WHYTE,1125793:146122499,"42,491.00",Legal Aid Payment Lower Crime,
MINISTRY OF JUSTICE,LEGAL AID AGENCY,14/12/2016,Higher Crime,LEGAL AID FUND,THOMAS M C ALLEN,1114400:146007480,"70,960.00",Legal Aid Payment Higher Crime,
MINISTRY OF JUSTICE,LEGAL AID AGENCY,21/12/2016,Higher Crime,LEGAL AID FUND,THOMAS PRICE QC,1121930:146087301,"76,711.26",Legal Aid Payment Higher Crime,
MINISTRY OF JUSTICE,LEGAL AID AGENCY,28/12/2016,Legal Help,LEGAL AID FUND,THOMPSON & CO,1124079:146120634,"27,300.00",Legal Aid Payment Legal Help,
MINISTRY OF JUSTICE,LEGAL AID AGENCY,14/12/2016,Higher Crime,LEGAL AID FUND,THOMSON WEBB & CORFIELD,1114860:145993429,"27,191.39",Legal Aid Payment Higher Crime,
MINISTRY OF JUSTICE,LEGAL AID AGENCY,07/12/2016,Higher Crime,LEGAL AID FUND,TIMOTHY A FORTE,1110937:145934696,"27,276.14",Legal Aid Payment Higher Crime,
MINISTRY OF JUSTICE,LEGAL AID AGENCY,21/12/2016,Higher Crime,LEGAL AID FUND,TOUSSAINT & CO,1119534:146069674,"107,574.07",Legal Aid Payment Higher Crime,
MINISTRY OF JUSTICE,LEGAL AID AGENCY,14/12/2016,Civil Representation,LEGAL AID FUND,TOZERS LLP,1116373:3000000764830014,"30,906.63",Legal Aid Payment Civil Representation,
MINISTRY OF JUSTICE,LEGAL AID AGENCY,14/12/2016,Higher Crime,LEGAL AID FUND,TRANTERS CRIMINAL LAW PRACTICE-ADVOCATE,1114109:145983919,"26,712.60",Legal Aid Payment Higher Crime,
MINISTRY OF JUSTICE,LEGAL AID AGENCY,21/12/2016,Civil Representation,LEGAL AID FUND,TRETHOWANS LLP,1119621:146064880,"27,158.37",Legal Aid Payment Civil Representation,
MINISTRY OF JUSTICE,LEGAL AID AGENCY,21/12/2016,Civil Representation,LEGAL AID FUND,TRETHOWANS LLP,1119621:146064881,"-26,108.73",Legal Aid Payment Civil Representation,
MINISTRY OF JUSTICE,LEGAL AID AGENCY,28/12/2016,Lower Crime,LEGAL AID FUND,TRINITY ADVOCATES,1123613:146122240,"27,100.00",Legal Aid Payment Lower Crime,
MINISTRY OF JUSTICE,LEGAL AID AGENCY,28/12/2016,Legal Help,LEGAL AID FUND,TRP SOLICITORS LTD,1126736:146120519,"26,600.00",Legal Aid Payment Legal Help,
MINISTRY OF JUSTICE,LEGAL AID AGENCY,21/12/2016,Higher Crime,LEGAL AID FUND,TUCKERS SOLICITORS LLP,1120922:146050397,"33,905.15",Legal Aid Payment Higher Crime,
MINISTRY OF JUSTICE,LEGAL AID AGENCY,21/12/2016,Higher Crime,LEGAL AID FUND,TUCKERS SOLICITORS LLP,1120923:146041457,"25,288.93",Legal Aid Payment Higher Crime,
MINISTRY OF JUSTICE,LEGAL AID AGENCY,28/12/2016,Lower Crime,LEGAL AID FUND,TUCKERS SOLICITORS LLP,1124334:146122266,"45,800.00",Legal Aid Payment Lower Crime,
MINISTRY OF JUSTICE,LEGAL AID AGENCY,28/12/2016,Lower Crime,LEGAL AID FUND,TUCKERS SOLICITORS LLP,1125602:146122087,"80,900.00",Legal Aid Payment Lower Crime,
MINISTRY OF JUSTICE,LEGAL AID AGENCY,28/12/2016,Higher Crime,LEGAL AID FUND,TUCKERS SOLICITORS LLP,1125603:146104027,"105,857.75",Legal Aid Payment Higher Crime,
MINISTRY OF JUSTICE,LEGAL AID AGENCY,28/12/2016,Lower Crime,LEGAL AID FUND,TUCKERS SOLICITORS LLP,1125603:146121909,"110,000.00",Legal Aid Payment Lower Crime,
MINISTRY OF JUSTICE,LEGAL AID AGENCY,28/12/2016,Lower Crime,LEGAL AID FUND,TUCKERS SOLICITORS LLP,1125604:146122214,"43,300.00",Legal Aid Payment Lower Crime,
MINISTRY OF JUSTICE,LEGAL AID AGENCY,28/12/2016,Legal Help,LEGAL AID FUND,TURPIN & MILLER LLP,1123798:146121274,"29,191.00",Legal Aid Payment Legal Help,
MINISTRY OF JUSTICE,LEGAL AID AGENCY,07/12/2016,Higher Crime,LEGAL AID FUND,UK LAW,1112027:145943639,"35,502.53",Legal Aid Payment Higher Crime,
MINISTRY OF JUSTICE,LEGAL AID AGENCY,28/12/2016,Lower Crime,LEGAL AID FUND,USMANI KING LTD,1123797:146122418,"45,193.00",Legal Aid Payment Lower Crime,
MINISTRY OF JUSTICE,LEGAL AID AGENCY,07/12/2016,Higher Crime,LEGAL AID FUND,VEJA & CO LTD,1113052:145925161,"32,184.01",Legal Aid Payment Higher Crime,
MINISTRY OF JUSTICE,LEGAL AID AGENCY,07/12/2016,Higher Crime,LEGAL AID FUND,VEJA & CO LTD,1113052:145925334,"46,610.10",Legal Aid Payment Higher Crime,
MINISTRY OF JUSTICE,LEGAL AID AGENCY,28/12/2016,Lower Crime,LEGAL AID FUND,VEJA & CO LTD,1125612:146121872,"32,200.00",Legal Aid Payment Lower Crime,
MINISTRY OF JUSTICE,LEGAL AID AGENCY,28/12/2016,Lower Crime,LEGAL AID FUND,VHS FLETCHERS,1122748:146122276,"29,200.00",Legal Aid Payment Lower Crime,
MINISTRY OF JUSTICE,LEGAL AID AGENCY,28/12/2016,Lower Crime,LEGAL AID FUND,VHS FLETCHERS,1123595:146121786,"32,700.00",Legal Aid Payment Lower Crime,
MINISTRY OF JUSTICE,LEGAL AID AGENCY,28/12/2016,Lower Crime,LEGAL AID FUND,VHS FLETCHERS,1127034:146121784,"66,500.00",Legal Aid Payment Lower Crime,
MINISTRY OF JUSTICE,LEGAL AID AGENCY,28/12/2016,Lower Crime,LEGAL AID FUND,VICKERS CHISMAN & WISHLADE,1127067:146121953,"43,800.00",Legal Aid Payment Lower Crime,
MINISTRY OF JUSTICE,LEGAL AID AGENCY,14/12/2016,Higher Crime,LEGAL AID FUND,VIRDEES SOLICITORS LTD,1116085:145992643,"48,137.15",Legal Aid Payment Higher Crime,
MINISTRY OF JUSTICE,LEGAL AID AGENCY,14/12/2016,Higher Crime,LEGAL AID FUND,VIRDEES SOLICITORS LTD,1116085:145993641,"29,664.55",Legal Aid Payment Higher Crime,
MINISTRY OF JUSTICE,LEGAL AID AGENCY,14/12/2016,Higher Crime,LEGAL AID FUND,VIRDEES SOLICITORS LTD,1116085:146030262,"31,021.67",Legal Aid Payment Higher Crime,
MINISTRY OF JUSTICE,LEGAL AID AGENCY,21/12/2016,Higher Crime,LEGAL AID FUND,VIRDEES SOLICITORS LTD,1119182:146051094,"92,266.83",Legal Aid Payment Higher Crime,
MINISTRY OF JUSTICE,LEGAL AID AGENCY,28/12/2016,Lower Crime,LEGAL AID FUND,VYMAN SOLICITORS LTD,1125286:146122780,"57,879.00",Legal Aid Payment Lower Crime,
MINISTRY OF JUSTICE,LEGAL AID AGENCY,28/12/2016,Lower Crime,LEGAL AID FUND,W M B LAW LTD,1125372:146122907,"28,411.00",Legal Aid Payment Lower Crime,
MINISTRY OF JUSTICE,LEGAL AID AGENCY,28/12/2016,Civil Representation,LEGAL AID FUND,WAINWRIGHT & CUMMINS LLP,1126857:146108560,"78,874.69",Legal Aid Payment Civil Representation,
MINISTRY OF JUSTICE,LEGAL AID AGENCY,28/12/2016,Lower Crime,LEGAL AID FUND,WAINWRIGHT & CUMMINS LLP,1126857:146121925,"42,000.00",Legal Aid Payment Lower Crime,
MINISTRY OF JUSTICE,LEGAL AID AGENCY,28/12/2016,Lower Crime,LEGAL AID FUND,WALDRONS SOLICITORS LTD,1126676:146123016,"27,603.00",Legal Aid Payment Lower Crime,
MINISTRY OF JUSTICE,LEGAL AID AGENCY,28/12/2016,Lower Crime,LEGAL AID FUND,WALKER LAHIVE,1125536:146122857,"38,056.00",Legal Aid Payment Lower Crime,
MINISTRY OF JUSTICE,LEGAL AID AGENCY,14/12/2016,Civil Representation,LEGAL AID FUND,WARD HADAWAY,1117837:145996645,"27,759.87",Legal Aid Payment Civil Representation,
MINISTRY OF JUSTICE,LEGAL AID AGENCY,14/12/2016,Civil Representation,LEGAL AID FUND,WARD HADAWAY,1117837:145997071,"27,766.27",Legal Aid Payment Civil Representation,
MINISTRY OF JUSTICE,LEGAL AID AGENCY,14/12/2016,Civil Representation,LEGAL AID FUND,WARD HADAWAY,1117837:145996842,"-27,759.87",Legal Aid Payment Civil Representation,
MINISTRY OF JUSTICE,LEGAL AID AGENCY,07/12/2016,Higher Crime,LEGAL AID FUND,WATSON WOODHOUSE SOLICITORS LLP,1113041:145926189,"29,447.85",Legal Aid Payment Higher Crime,
MINISTRY OF JUSTICE,LEGAL AID AGENCY,21/12/2016,Higher Crime,LEGAL AID FUND,WATSON WOODHOUSE SOLICITORS LLP,1120917:146041658,"59,370.43",Legal Aid Payment Higher Crime,
MINISTRY OF JUSTICE,LEGAL AID AGENCY,28/12/2016,Lower Crime,LEGAL AID FUND,WATSON WOODHOUSE SOLICITORS LLP,1125597:146121954,"53,700.00",Legal Aid Payment Lower Crime,
MINISTRY OF JUSTICE,LEGAL AID AGENCY,28/12/2016,Higher Crime,LEGAL AID FUND,WATSON WOODHOUSE SOLICITORS LLP,1125597:146124345,"25,247.18",Legal Aid Payment Higher Crime,
MINISTRY OF JUSTICE,LEGAL AID AGENCY,28/12/2016,Lower Crime,LEGAL AID FUND,WELLS BURCOMBE LLP,1123564:146122413,"51,554.00",Legal Aid Payment Lower Crime,
MINISTRY OF JUSTICE,LEGAL AID AGENCY,28/12/2016,Lower Crime,LEGAL AID FUND,WELLS BURCOMBE LLP,1126588:146123044,"57,932.00",Legal Aid Payment Lower Crime,
MINISTRY OF JUSTICE,LEGAL AID AGENCY,28/12/2016,Lower Crime,LEGAL AID FUND,WESSEX SOLICITORS CHAMBERS,1123520:146122241,"55,000.00",Legal Aid Payment Lower Crime,
MINISTRY OF JUSTICE,LEGAL AID AGENCY,14/12/2016,Higher Crime,LEGAL AID FUND,WILFORD SMITH & CO LTD,1117643:146012346,"31,865.93",Legal Aid Payment Higher Crime,
MINISTRY OF JUSTICE,LEGAL AID AGENCY,21/12/2016,Higher Crime,LEGAL AID FUND,WILFORD SMITH & CO LTD,1120777:146069311,"60,245.88",Legal Aid Payment Higher Crime,
MINISTRY OF JUSTICE,LEGAL AID AGENCY,14/12/2016,Civil Representation,LEGAL AID FUND,WILLIAMSONS SOLICITORS LTD,1117853:146035739,"28,373.23",Legal Aid Payment Civil Representation,
MINISTRY OF JUSTICE,LEGAL AID AGENCY,21/12/2016,Civil Representation,LEGAL AID FUND,WILLIAMSONS SOLICITORS LTD,1120980:146066290,"28,423.23",Legal Aid Payment Civil Representation,
MINISTRY OF JUSTICE,LEGAL AID AGENCY,28/12/2016,Lower Crime,LEGAL AID FUND,WILLIAMSONS SOLICITORS LTD,1125640:146122029,"48,600.00",Legal Aid Payment Lower Crime,
MINISTRY OF JUSTICE,LEGAL AID AGENCY,14/12/2016,Civil Representation,LEGAL AID FUND,WILLIAMSONS SOLICITORS LTD,1117853:146035747,"-28,432.43",Legal Aid Payment Civil Representation,
MINISTRY OF JUSTICE,LEGAL AID AGENCY,21/12/2016,Civil Representation,LEGAL AID FUND,WILLIAMSONS SOLICITORS LTD,1120980:146066291,"-28,373.23",Legal Aid Payment Civil Representation,
MINISTRY OF JUSTICE,LEGAL AID AGENCY,28/12/2016,Lower Crime,LEGAL AID FUND,WILSON DEVONALD GRIFFITHS JOHN,1123844:146121754,"45,000.00",Legal Aid Payment Lower Crime,
MINISTRY OF JUSTICE,LEGAL AID AGENCY,28/12/2016,Legal Help,LEGAL AID FUND,WILSON SOLICITORS LLP,1123895:146115666,"95,000.00",Legal Aid Payment Legal Help,
MINISTRY OF JUSTICE,LEGAL AID AGENCY,28/12/2016,Legal Help,LEGAL AID FUND,WILSON SOLICITORS LLP,1123895:146115667,"30,000.00",Legal Aid Payment Legal Help,
MINISTRY OF JUSTICE,LEGAL AID AGENCY,28/12/2016,Civil Representation,LEGAL AID FUND,WOLLEN MICHELMORE,1127294:3000000481520040,"36,905.11",Legal Aid Payment Civil Representation,
MINISTRY OF JUSTICE,LEGAL AID AGENCY,28/12/2016,Legal Help,LEGAL AID FUND,WOLTON & CO,1126817:146120839,"30,468.00",Legal Aid Payment Legal Help,
MINISTRY OF JUSTICE,LEGAL AID AGENCY,14/12/2016,Higher Crime,LEGAL AID FUND,WOODS SOLICITORS,1116168:146031275,"36,186.36",Legal Aid Payment Higher Crime,
MINISTRY OF JUSTICE,LEGAL AID AGENCY,21/12/2016,Higher Crime,LEGAL AID FUND,WOODS SOLICITORS,1119278:146060526,"81,347.36",Legal Aid Payment Higher Crime,
MINISTRY OF JUSTICE,LEGAL AID AGENCY,21/12/2016,Higher Crime,LEGAL AID FUND,YARWOOD & STUBLEY,1120914:146041134,"45,473.34",Legal Aid Payment Higher Crime,
MINISTRY OF JUSTICE,LEGAL AID AGENCY,28/12/2016,Lower Crime,LEGAL AID FUND,YARWOOD & STUBLEY,1125594:146121955,"35,900.00",Legal Aid Payment Lower Crime,
MINISTRY OF JUSTICE,LEGAL AID AGENCY,21/12/2016,Higher Crime,LEGAL AID FUND,YOGAIN J CHANDARANA,1120546:146050399,"36,300.98",Legal Aid Payment Higher Crime,
MINISTRY OF JUSTICE,LEGAL AID AGENCY,28/12/2016,Higher Crime,LEGAL AID FUND,ZARIF KHAN,1124734:146113199,"28,724.64",Legal Aid Payment Higher Crime,
MINISTRY OF JUSTICE,LEGAL AID AGENCY,14/12/2016,Higher Crime,LEGAL AID FUND,ZIA U CHAUDRY,1116129:145992249,"29,478.24",Legal Aid Payment Higher Crime,
MINISTRY OF JUSTICE,LEGAL AID AGENCY,28/12/2016,Lower Crime,LEGAL AID FUND,ZMS LEGAL LTD TA ZMS SOLICITORS,1126737:146122374,"27,897.00",Legal Aid Payment Lower Crime,
